NUMERO_MANDATO;IMPORTO_RIGA;BENEFICIARIO;CIG;TITOLO_PAGAMENTO;DATA_MANDATO;CAPITOLO;ARTICOLO;NUMERO_IMPEGNO;TITOLO;DESCR_TITOLO;DESCR_LIVELLO_II;DESCR_LIVELLO_III;DESCR_LIVELLO_IV;DESCR_LIVELLO_V
2;1.754,00;S.I.P.A.L. SRL;ZD12FFA1D6;SALDO Fatt.n. 367  del 27/12/2021 ONORARI R.S.P.P. E FORMAZIONE PROFESSIONALE IN MATERIA DI SICUREZZA COMUNE DI PISCINAS- ANNUALITA 2021 -;12/01/2022;1045;1;339;1;Spese correnti;Acquisto di beni e servizi;Acquisto di servizi;Acquisto di servizi per formazione e addestramento del personale dell'ente;Acquisto di servizi per formazione obbligatoria
3;640,5;SAIU ELETTROSERVICE DI CADDIA GIOVANNA ANGELA;7054703D12;SALDO Fatt.n. FATTPA 79_21  del 30/12/2021 SERVIZIO DI MANUTENZIONE ORDINARIA IMPIANTI DI ILLUMINAZIONE PUBBLICA - MESE DI DICEMBRE 2021 -;12/01/2022;1938;0;66;1;Spese correnti;Acquisto di beni e servizi;Acquisto di servizi;Contratti di servizio pubblico;Contratti di servizio per l'illuminazione pubblica
7;200;SOGGETTI DIVERSI; ;DELEGA UFFICIO AMMINISTRATORE DI SOSTEGNO EX DECRETO GIUDICE TUTELARE VG 4728/17 DEL 09.07.2020. RICONOSCIMENTO EQUO INDENNIZZO  - MESE DI DICEMBRE 2021 -;12/01/2022;1920;13;107;1;Spese correnti;Acquisto di beni e servizi;Acquisto di servizi;Prestazioni professionali e specialistiche;Altre prestazioni professionali e specialistiche n.a.c.
8;375;SOGGETTI DIVERSI; ;L.162/98 PIANI PERSONALIZZATI  - MESE DI DICEMBRE 2021 -;12/01/2022;1920;15;140;1;Spese correnti;Trasferimenti correnti;Trasferimenti correnti a Famiglie;Interventi assistenziali;Altri assegni e sussidi assistenziali
9;206;SOGGETTI DIVERSI; ;L.162/98 PIANI PERSONALIZZATI MESE DI DICEMBRE 2021 -;12/01/2022;1920;15;158;1;Spese correnti;Trasferimenti correnti;Trasferimenti correnti a Famiglie;Interventi assistenziali;Altri assegni e sussidi assistenziali
10;25,31;SOGGETTI DIVERSI; ;IMPEGNO SPESA PER LA CONCESSIONE E LEROGAZIONE DI SUSSIDI IN FAVORE DI PARTICOLARI CATEGORIE DI CITTADINI. L.R. 8/99, ART. 4, ANNUALITA 2021.;12/01/2022;1917;0;88;1;Spese correnti;Trasferimenti correnti;Trasferimenti correnti a Famiglie;Interventi assistenziali;Altri assegni e sussidi assistenziali
11;648,65;SOGGETTI DIVERSI; ;PROGETTI RITORNARE A CASA PLUS MESE DI DICEMBRE 2022 -;17/01/2022;1920;0;126;1;Spese correnti;Trasferimenti correnti;Trasferimenti correnti a Famiglie;Interventi assistenziali;Altri assegni e sussidi assistenziali
12;1.244,50;COOP. SOCIALE ADEST A R.L. ONLUS; ;PROGETTI RITORNARE A CASA PLUS MESE DI DICEMBRE 2022.;17/01/2022;1920;0;127;1;Spese correnti;Trasferimenti correnti;Trasferimenti correnti a Famiglie;Interventi assistenziali;Altri assegni e sussidi assistenziali
13;1.952,79;SOGGETTI DIVERSI; ;PROGETTI RITORNARE A CASA PLUS MESE DI DICEMBRE 2021.;17/01/2022;1920;0;127;1;Spese correnti;Trasferimenti correnti;Trasferimenti correnti a Famiglie;Interventi assistenziali;Altri assegni e sussidi assistenziali
14;2.000,00;COOP. SOCIALE ADEST A R.L. ONLUS; ;PROGETTI RITORNARE A CASA PLUS MESE DI DICEMBRE 2021 -;17/01/2022;1920;0;128;1;Spese correnti;Trasferimenti correnti;Trasferimenti correnti a Famiglie;Interventi assistenziali;Altri assegni e sussidi assistenziali
15;2.526,94;SOGGETTI DIVERSI; ;PROGETTI RITORNARE A CASA PLUS MESE DI DICEMBRE 2021 E CONTR. INPS;17/01/2022;1920;0;129;1;Spese correnti;Trasferimenti correnti;Trasferimenti correnti a Famiglie;Interventi assistenziali;Altri assegni e sussidi assistenziali
16;692,81;SOGGETTI DIVERSI; ;L. 431/98, ART. 11 -  CONTRIBUTI A SOSTEGNO DELLACCESSO ALLE ABITAZIONI IN LOCAZIONE -  ANNO 2021;17/01/2022;1907;0;290;1;Spese correnti;Trasferimenti correnti;Trasferimenti correnti a Famiglie;Interventi assistenziali;Altri assegni e sussidi assistenziali
17;853,7;SOGGETTI DIVERSI; ;CONTRIBUTI A SOSTEGNO DELLACCESSO ALLE ABITAZIONI IN LOCAZIONE. ANNO 2021;17/01/2022;1907;0;290;1;Spese correnti;Trasferimenti correnti;Trasferimenti correnti a Famiglie;Interventi assistenziali;Altri assegni e sussidi assistenziali
18;490,13;SOGGETTI DIVERSI; ;CONCESSIONE E LEROGAZIONE DI SUSSIDI IN FAVORE DI PARTICOLARI CATEGORIE DI CITTADINI. L.R. 8/99, ART. 4, COMMI 1, 2, 3, 7 E LETTERE A) B) C) E L.R. 09/04 ART. 1, LETTERA F) ANNUALITA 2021.;17/01/2022;1916;0;211;1;Spese correnti;Trasferimenti correnti;Trasferimenti correnti a Famiglie;Interventi assistenziali;Altri assegni e sussidi assistenziali
19;464,82;SOGGETTI DIVERSI; ;CONCESSIONE E LEROGAZIONE DI SUSSIDI IN FAVORE DI PARTICOLARI CATEGORIE DI CITTADINI. L.R. 8/99, ART. 4, COMMI 1, 2, 3, 7 E LETTERE A) B) C) E L.R. 09/04 ART. 1, LETTERA F) ANNUALITA 2021.;17/01/2022;1916;0;211;1;Spese correnti;Trasferimenti correnti;Trasferimenti correnti a Famiglie;Interventi assistenziali;Altri assegni e sussidi assistenziali
20;515,44;SOGGETTI DIVERSI; ;CONCESSIONE E LEROGAZIONE DI SUSSIDI IN FAVORE DI PARTICOLARI CATEGORIE DI CITTADINI. L.R. 8/99, ART. 4, COMMI 1, 2, 3, 7 E LETTERE A) B) C) E L.R. 09/04 ART. 1, LETTERA F) ANNUALITA 2021.;17/01/2022;1916;0;211;1;Spese correnti;Trasferimenti correnti;Trasferimenti correnti a Famiglie;Interventi assistenziali;Altri assegni e sussidi assistenziali
21;464,82;SOGGETTI DIVERSI; ;CONCESSIONE E LEROGAZIONE DI SUSSIDI IN FAVORE DI PARTICOLARI CATEGORIE DI CITTADINI. L.R. 8/99, ART. 4, COMMI 1, 2, 3, 7 E LETTERE A) B) C) E L.R. 09/04 ART. 1, LETTERA F) ANNUALITA 2021.;17/01/2022;1916;0;211;1;Spese correnti;Trasferimenti correnti;Trasferimenti correnti a Famiglie;Interventi assistenziali;Altri assegni e sussidi assistenziali
22;540,75;SOGGETTI DIVERSI; ;CONCESSIONE E LEROGAZIONE DI SUSSIDI IN FAVORE DI PARTICOLARI CATEGORIE DI CITTADINI. L.R. 8/99, ART. 4, COMMI 1, 2, 3, 7 E LETTERE A) B) C) E L.R. 09/04 ART. 1, LETTERA F) ANNUALITA 2021.;17/01/2022;1916;0;211;1;Spese correnti;Trasferimenti correnti;Trasferimenti correnti a Famiglie;Interventi assistenziali;Altri assegni e sussidi assistenziali
23;464,82;SOGGETTI DIVERSI; ;CONCESSIONE E LEROGAZIONE DI SUSSIDI IN FAVORE DI PARTICOLARI CATEGORIE DI CITTADINI. L.R. 8/99, ART. 4, COMMI 1, 2, 3, 7 E LETTERE A) B) C) E L.R. 09/04 ART. 1, LETTERA F) ANNUALITA 2021.;17/01/2022;1916;0;211;1;Spese correnti;Trasferimenti correnti;Trasferimenti correnti a Famiglie;Interventi assistenziali;Altri assegni e sussidi assistenziali
24;464,82;SOGGETTI DIVERSI; ;CONCESSIONE E LEROGAZIONE DI SUSSIDI IN FAVORE DI PARTICOLARI CATEGORIE DI CITTADINI. L.R. 8/99, ART. 4, COMMI 1, 2, 3, 7 E LETTERE A) B) C) E L.R. 09/04 ART. 1, LETTERA F) ANNUALITA 2021.;17/01/2022;1916;0;211;1;Spese correnti;Trasferimenti correnti;Trasferimenti correnti a Famiglie;Interventi assistenziali;Altri assegni e sussidi assistenziali
25;506,85;SOGGETTI DIVERSI; ;CONCESSIONE E LEROGAZIONE DI SUSSIDI IN FAVORE DI PARTICOLARI CATEGORIE DI CITTADINI. L.R. 8/99, ART. 4, COMMI 1, 2, 3, 7 E LETTERE A) B) C) E L.R. 09/04 ART. 1, LETTERA F) ANNUALITA 2021.;17/01/2022;1916;0;211;1;Spese correnti;Trasferimenti correnti;Trasferimenti correnti a Famiglie;Interventi assistenziali;Altri assegni e sussidi assistenziali
26;166,7;ABILTECNO Societa' Cooperativa Onlus; ;L.162/98 PIANI PERSONALIZZATI MESE DI DICEMBRE 2021 -;17/01/2022;1920;15;131;1;Spese correnti;Trasferimenti correnti;Trasferimenti correnti a Famiglie;Interventi assistenziali;Altri assegni e sussidi assistenziali
27;211,62;SOGGETTI DIVERSI; ;L.162/98 PIANI PERSONALIZZATI - MESE DI DICEMBRE 2021 -;17/01/2022;1920;15;132;1;Spese correnti;Trasferimenti correnti;Trasferimenti correnti a Famiglie;Interventi assistenziali;Altri assegni e sussidi assistenziali
28;270,2;SOGGETTI DIVERSI; ;L.162/98 PIANI PERSONALIZZATI - MESE DI DICEMBRE 2021 -;17/01/2022;1920;15;133;1;Spese correnti;Trasferimenti correnti;Trasferimenti correnti a Famiglie;Interventi assistenziali;Altri assegni e sussidi assistenziali
29;375;SOGGETTI DIVERSI; ;L.162/98 PIANI PERSONALIZZATI - MESE DI DICEMBRE 2021 -;17/01/2022;1920;15;134;1;Spese correnti;Trasferimenti correnti;Trasferimenti correnti a Famiglie;Interventi assistenziali;Altri assegni e sussidi assistenziali
30;571,8;SOGGETTI DIVERSI; ;L.162/98 PIANI PERSONALIZZATI MESE DI DICEMBRE 2021 E CONTR. INPS.;17/01/2022;1920;15;135;1;Spese correnti;Trasferimenti correnti;Trasferimenti correnti a Famiglie;Interventi assistenziali;Altri assegni e sussidi assistenziali
31;568,74;COOP. SOCIALE ADEST A R.L. ONLUS; ;L.162/98 PIANI PERSONALIZZATI MESI DI NOVEMBRE E DICEMBRE 2022;17/01/2022;1920;15;137;1;Spese correnti;Trasferimenti correnti;Trasferimenti correnti a Famiglie;Interventi assistenziali;Altri assegni e sussidi assistenziali
32;363,74;COOP. SOCIALE ADEST A R.L. ONLUS; ;L.162/98 PIANI PERSONALIZZATI - MESI DI NOVEMBRE/DICEMBRE 2021 -;17/01/2022;1920;15;138;1;Spese correnti;Trasferimenti correnti;Trasferimenti correnti a Famiglie;Interventi assistenziali;Altri assegni e sussidi assistenziali
33;339,85;SOGGETTI DIVERSI; ;L.162/98 PIANI PERSONALIZZATI - MESE DI DICEMBRE 2021 E CONTR. INPS;17/01/2022;1920;15;139;1;Spese correnti;Trasferimenti correnti;Trasferimenti correnti a Famiglie;Interventi assistenziali;Altri assegni e sussidi assistenziali
34;500;COOP. SOCIALE ADEST A R.L. ONLUS; ;L.162/98 PIANI PERSONALIZZATI - MESE DI NOVEMBRE/DICEMBRE 2021 -;17/01/2022;1920;15;141;1;Spese correnti;Trasferimenti correnti;Trasferimenti correnti a Famiglie;Interventi assistenziali;Altri assegni e sussidi assistenziali
35;2.101,66;COOP. SOCIALE ADEST A R.L. ONLUS; ;L.162/98 PIANI PERSONALIZZATI - MESI DI  NOVEMBRE/DICEMBRE 2021 -;17/01/2022;1920;15;142;1;Spese correnti;Trasferimenti correnti;Trasferimenti correnti a Famiglie;Interventi assistenziali;Altri assegni e sussidi assistenziali
36;375;COOP. SOCIALE ADEST A R.L. ONLUS; ;L.162/98 PIANI PERSONALIZZATI - MESI DI NOVEMBRE/DICEMBRE 2021 -;17/01/2022;1920;15;143;1;Spese correnti;Trasferimenti correnti;Trasferimenti correnti a Famiglie;Interventi assistenziali;Altri assegni e sussidi assistenziali
37;454,53;SOGGETTI DIVERSI; ;L.162/98 PIANI PERSONALIZZATI - MESE DI DICEMBRE 2021 E CONTR. INPS -;17/01/2022;1920;15;144;1;Spese correnti;Trasferimenti correnti;Trasferimenti correnti a Famiglie;Interventi assistenziali;Altri assegni e sussidi assistenziali
38;219,24;SOGGETTI DIVERSI; ;L.162/98 PIANI PERSONALIZZATI - MESE DI DICEMBRE 2021 E CONTR. INPS -;17/01/2022;1920;15;146;1;Spese correnti;Trasferimenti correnti;Trasferimenti correnti a Famiglie;Interventi assistenziali;Altri assegni e sussidi assistenziali
39;159,41;SOGGETTI DIVERSI; ;L.162/98 PIANI PERSONALIZZATI - MESE DI DICEMBRE 2021 -;17/01/2022;1920;15;147;1;Spese correnti;Trasferimenti correnti;Trasferimenti correnti a Famiglie;Interventi assistenziali;Altri assegni e sussidi assistenziali
40;485;COOP. SOCIALE ADEST A R.L. ONLUS; ;L.162/98 PIANI PERSONALIZZATI - MESI DI NOVEMBRE/DICEMBRE 2021 -;17/01/2022;1920;15;148;1;Spese correnti;Trasferimenti correnti;Trasferimenti correnti a Famiglie;Interventi assistenziali;Altri assegni e sussidi assistenziali
41;485;COOP. SOCIALE ADEST A R.L. ONLUS; ;L.162/98 PIANI PERSONALIZZATI - MESI DI NOVEMBRE/DICEMBRE 2021 -;17/01/2022;1920;15;149;1;Spese correnti;Trasferimenti correnti;Trasferimenti correnti a Famiglie;Interventi assistenziali;Altri assegni e sussidi assistenziali
42;375;ABILTECNO Societa' Cooperativa Onlus; ;L.162/98 PIANI PERSONALIZZATI - MESE DI DICEMBRE 2021 -;17/01/2022;1920;15;150;1;Spese correnti;Trasferimenti correnti;Trasferimenti correnti a Famiglie;Interventi assistenziali;Altri assegni e sussidi assistenziali
43;358,18;SOGGETTI DIVERSI; ;L.162/98 PIANI PERSONALIZZATI - MESI DI NOVEMBRE/DICEMBRE 2021 -;17/01/2022;1920;15;154;1;Spese correnti;Trasferimenti correnti;Trasferimenti correnti a Famiglie;Interventi assistenziali;Altri assegni e sussidi assistenziali
44;521,06;SOGGETTI DIVERSI; ;L.162/98 PIANI PERSONALIZZATI - MESE DI DICEMBRE 2021  E CONTR. INPS -;17/01/2022;1920;15;155;1;Spese correnti;Trasferimenti correnti;Trasferimenti correnti a Famiglie;Interventi assistenziali;Altri assegni e sussidi assistenziali
45;321,36;SOGGETTI DIVERSI; ;L.162/98 PIANI PERSONALIZZATI MESE DI DICEMBRE E CONTR. INPS 2021 -;17/01/2022;1920;15;156;1;Spese correnti;Trasferimenti correnti;Trasferimenti correnti a Famiglie;Interventi assistenziali;Altri assegni e sussidi assistenziali
46;404,1;SOGGETTI DIVERSI; ;L.162/98 PIANI PERSONALIZZATI MESE DI DICEMBRE E CONTR. INPS 2021 -;17/01/2022;1920;15;157;1;Spese correnti;Trasferimenti correnti;Trasferimenti correnti a Famiglie;Interventi assistenziali;Altri assegni e sussidi assistenziali
47;1.350,00;COOP. SOCIALE ADEST A R.L. ONLUS; ;L.162/98 PIANI PERSONALIZZATI - MESI DI NOVEMBRE/DICEMBRE 2021 -;17/01/2022;1920;15;158;1;Spese correnti;Trasferimenti correnti;Trasferimenti correnti a Famiglie;Interventi assistenziali;Altri assegni e sussidi assistenziali
48;233,59;SOGGETTI DIVERSI; ;L.162/98 PIANI PERSONALIZZATI - MESE DI DICEMBRE 2021 -;17/01/2022;1920;15;159;1;Spese correnti;Trasferimenti correnti;Trasferimenti correnti a Famiglie;Interventi assistenziali;Altri assegni e sussidi assistenziali
49;727,5;COOP. SOCIALE ADEST A R.L. ONLUS; ;L.162/98 PIANI PERSONALIZZATI - MESI  DI NOVEMBRE/DICEMBRE 2021 -;17/01/2022;1920;15;160;1;Spese correnti;Trasferimenti correnti;Trasferimenti correnti a Famiglie;Interventi assistenziali;Altri assegni e sussidi assistenziali
50;276,19;SOGGETTI DIVERSI; ;L.162/98 PIANI PERSONALIZZATI - MESE DI DICEMBRE 2021 E CONTR. INPS -;17/01/2022;1920;15;163;1;Spese correnti;Trasferimenti correnti;Trasferimenti correnti a Famiglie;Interventi assistenziali;Altri assegni e sussidi assistenziali
51;348,61;SOGGETTI DIVERSI; ;L.162/98 PIANI PERSONALIZZATI - MESE DI DICEMBRE 2021 -;17/01/2022;1920;15;165;1;Spese correnti;Trasferimenti correnti;Trasferimenti correnti a Famiglie;Interventi assistenziali;Altri assegni e sussidi assistenziali
52;750;COOP. SOCIALE ADEST A R.L. ONLUS; ;L.162/98 PIANI PERSONALIZZATI - MESI DI NOVEMBRE/DICEMBRE 2021 -;17/01/2022;1920;15;167;1;Spese correnti;Trasferimenti correnti;Trasferimenti correnti a Famiglie;Interventi assistenziali;Altri assegni e sussidi assistenziali
53;179,66;SOGGETTI DIVERSI; ;L.162/98 PIANI PERSONALIZZATI MESE DI DICEMBRE 2021 -;17/01/2022;1920;15;172;1;Spese correnti;Trasferimenti correnti;Trasferimenti correnti a Famiglie;Interventi assistenziali;Altri assegni e sussidi assistenziali
54;156,25;SOGGETTI DIVERSI; ;L.162/98 PIANI PERSONALIZZATI MESE DI DICEMBRE E CONTR. INPS 2021 -;17/01/2022;1920;15;174;1;Spese correnti;Trasferimenti correnti;Trasferimenti correnti a Famiglie;Interventi assistenziali;Altri assegni e sussidi assistenziali
55;141,44;SOGGETTI DIVERSI; ;L.162/98 PIANI PERSONALIZZATI MESE DI DICEMBRE  2021 -;17/01/2022;1920;15;175;1;Spese correnti;Trasferimenti correnti;Trasferimenti correnti a Famiglie;Interventi assistenziali;Altri assegni e sussidi assistenziali
56;181,01;SOGGETTI DIVERSI; ;L.162/98 PIANI PERSONALIZZATI MESE DI DICEMBRE E CONTR. INPS 2021 -;17/01/2022;1920;15;176;1;Spese correnti;Trasferimenti correnti;Trasferimenti correnti a Famiglie;Interventi assistenziali;Altri assegni e sussidi assistenziali
57;256,59;SOGGETTI DIVERSI; ;L.162/98 PIANI PERSONALIZZATI MESE DI DICEMBRE E CONTR. INPS 2021 -;17/01/2022;1920;15;169;1;Spese correnti;Trasferimenti correnti;Trasferimenti correnti a Famiglie;Interventi assistenziali;Altri assegni e sussidi assistenziali
58;2.937,72;SOGGETTI DIVERSI; ;CONCESSIONE E LEROGAZIONE DI SUSSIDI IN FAVORE DI PARTICOLARI CATEGORIE DI CITTADINI. L.R. 8/99, ART. 4, COMMI 1, 2, 3, 7 E LETTERE A) B) C) E L.R. 09/04 ART. 1, LETTERA F)  - 2 SEMESTRE 2021 -;18/01/2022;1916;0;211;1;Spese correnti;Trasferimenti correnti;Trasferimenti correnti a Famiglie;Interventi assistenziali;Altri assegni e sussidi assistenziali
59;129;SOGGETTI DIVERSI; ;L.162/98 PIANI PERSONALIZZATI  - MESE DI DICEMBRE 2021 -;18/01/2022;1920;15;136;1;Spese correnti;Trasferimenti correnti;Trasferimenti correnti a Famiglie;Interventi assistenziali;Altri assegni e sussidi assistenziali
60;179,23;SOGGETTI DIVERSI; ;L.162/98 PIANI PERSONALIZZATI MESE DI DICEMBRE 2021 E CONTR. INPS -;18/01/2022;1920;15;161;1;Spese correnti;Trasferimenti correnti;Trasferimenti correnti a Famiglie;Interventi assistenziali;Altri assegni e sussidi assistenziali
61;630,5;SOGGETTI DIVERSI; ;L.162/98 PIANI PERSONALIZZATI MESE DI DICEMBRE 2021 E CONTR. INPS -;18/01/2022;1920;15;162;1;Spese correnti;Trasferimenti correnti;Trasferimenti correnti a Famiglie;Interventi assistenziali;Altri assegni e sussidi assistenziali
100;102,55;REGIONE AUTONOMA DELLA SARDEGNA; ;CANONE 2022 - ID CA2579C2019 - CDR 00.08.01.30 - CAP EC326.002 - CANONE ANNO 2022 PER CONCESSIONE ACQUE PUBBLICHE (PROV. SUD.SARDEGNA);27/01/2022;1059;0;7;1;Spese correnti;Acquisto di beni e servizi;Acquisto di servizi;Utenze e canoni;Acqua
101;33,58;MINISTERO  - DIPARTIMENTO AFFARI INTERNI; ;COMUNE DI PISCINAS - M291 - CORRISPETTIVO PER RILASCIO DI N. 2 CIE - PERIODO DAL 01.12.2021 AL 31.12.2021 -;27/01/2022;1037;1;119;1;Spese correnti;Trasferimenti correnti;Trasferimenti correnti a Amministrazioni Pubbliche;Trasferimenti correnti a Amministrazioni Centrali;Trasferimenti correnti a Ministeri
102;210;BONACCORSI TORENO; ;RIMBORSO BUONI SPESA FORNITURA GRATUIDA PRODOTTI TIPICI DELLA PANIFICAZIONE - DELIB. G.R. N. 52/16 DEL 23.10.2020 E DELIB. G.R. N. 63/13 DEL 11.12.2020 RECANTE DISPOSIZIONI A FAVORE DELLE FAMIGLIE INDIGENTI.;27/01/2022;1919;9;210;1;Spese correnti;Trasferimenti correnti;Trasferimenti correnti a Famiglie;Interventi assistenziali;Altri assegni e sussidi assistenziali
103;1.550,20;SOGGETTI DIVERSI; ;L.162/98 PIANI PERSONALIZZATI  - MESE DI DICEMBRE 2021 -;27/01/2022;1920;15;145;1;Spese correnti;Trasferimenti correnti;Trasferimenti correnti a Famiglie;Interventi assistenziali;Altri assegni e sussidi assistenziali
104;117,71;SOGGETTI DIVERSI; ;L.162/98 PIANI PERSONALIZZATI - MESE DI DICEMBRE 2021 -;27/01/2022;1920;15;157;1;Spese correnti;Trasferimenti correnti;Trasferimenti correnti a Famiglie;Interventi assistenziali;Altri assegni e sussidi assistenziali
105;231,86;SOGGETTI DIVERSI; ;PROGETTI RITORNARE A CASA PLUS ANNUALITA 2021 - CONTRIBUTI INPS -;27/01/2022;1920;0;126;1;Spese correnti;Trasferimenti correnti;Trasferimenti correnti a Famiglie;Interventi assistenziali;Altri assegni e sussidi assistenziali
106;2.695,00;AUTONOLEGGIO FRACCI ALESSANDRO;8417474F46;SALDO Fatt.n. FE4  del 04/01/2022 SERVIZIO TRASPORTO SCOLASTICO MESE DI DICEMBRE 2021;27/01/2022;1417;3;301;1;Spese correnti;Acquisto di beni e servizi;Acquisto di servizi;Contratti di servizio pubblico;Contratti di servizio di trasporto scolastico
107;2.695,00;AUTONOLEGGIO FRACCI ALESSANDRO;8417474F46;SALDO Fatt.n. FE3  del 04/01/2022 SERVIZIO TRASPORTO SCOLASTICO MESE DICEMBRE 2021;27/01/2022;1417;3;301;1;Spese correnti;Acquisto di beni e servizi;Acquisto di servizi;Contratti di servizio pubblico;Contratti di servizio di trasporto scolastico
108;491,66;ISAR COOPERATIVA SOCIALE ONLUS;Z6E33B9DBA;SALDO Fatt.n. 7  del 11/01/2022 SERVIZIO DI PULIZIE EDIFICI COMUNALI MESE DI NOVEMBRE 2021 -;27/01/2022;1036;0;279;1;Spese correnti;Acquisto di beni e servizi;Acquisto di servizi;Servizi ausiliari per il funzionamento dell'ente;Servizi di pulizia e lavanderia
108;983,32;ISAR COOPERATIVA SOCIALE ONLUS;Z6E33B9DBA;SALDO Fatt.n. 8  del 11/01/2022 SERVIZIO DI PULIZIE EDIFICI COMUNALI MESE DI DICEMBRE 2021 -;27/01/2022;1036;0;279;1;Spese correnti;Acquisto di beni e servizi;Acquisto di servizi;Servizi ausiliari per il funzionamento dell'ente;Servizi di pulizia e lavanderia
109;2.896,28;HALLEY SARDEGNA S.R.L.;Z103470F86;SALDO Fatt.n. 0000072  del 12/01/2022 CANONE ASSISTENZA TECNICA SOFTWARE  PRIMO TRIMESTRE 2022 -;27/01/2022;1043;1;341;1;Spese correnti;Acquisto di beni e servizi;Acquisto di servizi;Servizi informatici e di telecomunicazioni;Gestione e manutenzione applicazioni
110;261,47;FATICONI S.P.A.;Z10310615F;ACCONTO Fatt.n. 001587PA  del 31/12/2021;27/01/2022;1043;5;120;1;Spese correnti;Acquisto di beni e servizi;Acquisto di servizi;Utilizzo di beni di terzi;Noleggi di impianti e macchinari
111;261,47;FATICONI S.P.A.;Z10310615F;SALDO Fatt.n. 001587PA  del 31/12/2021;27/01/2022;1087;1;121;1;Spese correnti;Acquisto di beni e servizi;Acquisto di servizi;Utilizzo di beni di terzi;Noleggi di impianti e macchinari
112;646;S.I.P.A.L.;Z64239C8D1;SALDO Fatt.n. 388  del 13/01/2022 INCARICO RESPONSABILE PROTEZIONE DEI DATI E FORMAZIONE REGOLAMENTO UE 679/2016 - TERZO QUADRIMESTRE 2021 -;27/01/2022;1043;4;189;1;Spese correnti;Acquisto di beni e servizi;Acquisto di servizi;Prestazioni professionali e specialistiche;Altre prestazioni professionali e specialistiche n.a.c.
113;274,5;KRONOWEB DI SANNA SALVATORE GIAN LUCA;Z50345F0D4;SALDO Fatt.n. 6/E  del 23/01/2022 RINNOVO CERTIFICATI DI FIRMA DIGITALE ASSISTENZA E CONSEGNA -;27/01/2022;1043;4;328;1;Spese correnti;Acquisto di beni e servizi;Acquisto di servizi;Prestazioni professionali e specialistiche;Altre prestazioni professionali e specialistiche n.a.c.
114;784,36;DIVERSI; ;INDENNITA DI FUNZIONE SINDACO E ASSESSORI - MESE DI GENNAIO 2022 -;28/01/2022;1001;0;59;1;Spese correnti;Acquisto di beni e servizi;Acquisto di servizi;Organi e incarichi istituzionali dell'amministrazione;Organi istituzionali dell'amministrazione - Indennità
124;1.797,34;TESTONI SRL;ZED34D197B;SALDO Fatt.n. 700359  del 21/01/2022 FORNITURA DI 1.504 LITRI DI GASOLIO DA RISCALDAMENTO PRESSO SCUOLA PRIMARIA PISCINAS;28/01/2022;1366;0;3;1;Spese correnti;Acquisto di beni e servizi;Acquisto di beni;Altri beni di consumo;Carburanti, combustibili e lubrificanti
125;175,96;TECNOCASIC  S.P.A.;Z97305C2A4;SALDO Fatt.n. PA2446/21  del 31/12/2021 SMALTIMENTO R.S.U. - FRAZIONE SECCO INDIFFERENZIATO - IMPIANTO DI SOCCORSO DICEMBRE 2021;28/01/2022;1739;0;5;1;Spese correnti;Acquisto di beni e servizi;Acquisto di servizi;Contratti di servizio pubblico;Contratti di servizio per il conferimento in discarica dei rifiuti
125;793,66;TECNOCASIC  S.P.A.;Z97305C2A4;SALDO Fatt.n. PA2365/21  del 31/12/2021 SERVIZIO SMALTIMENTO R.S.U. FRAZIONE SECCO INDIFFERENZIATO - MESE DI DICEMBRE 2021 -;28/01/2022;1739;0;5;1;Spese correnti;Acquisto di beni e servizi;Acquisto di servizi;Contratti di servizio pubblico;Contratti di servizio per il conferimento in discarica dei rifiuti
126;812,81;VERDE VITA SRL;Z592670EEA;SALDO Fatt.n. 398/CCP  del 31/12/2021 SMALTIMENTO RIFIUTI CER 20 01 08 C/O IMPIANTO DI COMPOSTAGGIO CARBONIA - MESE DI DICEMBRE 2021 -;28/01/2022;1739;0;62;1;Spese correnti;Acquisto di beni e servizi;Acquisto di servizi;Contratti di servizio pubblico;Contratti di servizio per il conferimento in discarica dei rifiuti
127;78,08;OLLA SERVIZI AUTO SRL;Z193442CB7;SALDO Fatt.n. 30/OFF  del 14/01/2022 BATTERIA VARTA 12V;28/01/2022;1057;3;310;1;Spese correnti;Acquisto di beni e servizi;Acquisto di servizi;Manutenzione ordinaria e riparazioni;Manutenzione ordinaria e riparazioni di mezzi di trasporto ad uso civile, di sicurezza e ordine pubblico
127;90,28;OLLA SERVIZI AUTO SRL;Z193442CB7;SALDO Fatt.n. 31/OFF  del 14/01/2022 MANUTENZIONE TOYOTA HILUX TARGA AJ 289 AR;28/01/2022;1057;3;310;1;Spese correnti;Acquisto di beni e servizi;Acquisto di servizi;Manutenzione ordinaria e riparazioni;Manutenzione ordinaria e riparazioni di mezzi di trasporto ad uso civile, di sicurezza e ordine pubblico
127;103,09;OLLA SERVIZI AUTO SRL;Z193442CB7;SALDO Fatt.n. 25/OFF  del 14/01/2022 MANUTENZIONE IVECO DAILY TARGA CA 718252;28/01/2022;1057;3;310;1;Spese correnti;Acquisto di beni e servizi;Acquisto di servizi;Manutenzione ordinaria e riparazioni;Manutenzione ordinaria e riparazioni di mezzi di trasporto ad uso civile, di sicurezza e ordine pubblico
127;109,8;OLLA SERVIZI AUTO SRL;Z193442CB7;SALDO Fatt.n. 29/OFF  del 14/01/2022 BATTERIA TOYOTA HILUX;28/01/2022;1057;3;310;1;Spese correnti;Acquisto di beni e servizi;Acquisto di servizi;Manutenzione ordinaria e riparazioni;Manutenzione ordinaria e riparazioni di mezzi di trasporto ad uso civile, di sicurezza e ordine pubblico
127;111,02;OLLA SERVIZI AUTO SRL;Z193442CB7;SALDO Fatt.n. 28/OFF  del 14/01/2022 MANUTENZIONE FIAT PUNTO CJ442SF -;28/01/2022;1057;3;310;1;Spese correnti;Acquisto di beni e servizi;Acquisto di servizi;Manutenzione ordinaria e riparazioni;Manutenzione ordinaria e riparazioni di mezzi di trasporto ad uso civile, di sicurezza e ordine pubblico
127;241,56;OLLA SERVIZI AUTO SRL;Z193442CB7;SALDO Fatt.n. 27/OFF  del 14/01/2022 MANUTENZIONE RASAERBA;28/01/2022;1057;3;310;1;Spese correnti;Acquisto di beni e servizi;Acquisto di servizi;Manutenzione ordinaria e riparazioni;Manutenzione ordinaria e riparazioni di mezzi di trasporto ad uso civile, di sicurezza e ordine pubblico
127;830,82;OLLA SERVIZI AUTO SRL;Z193442CB7;SALDO Fatt.n. 26/OFF  del 14/01/2022 MANUTENZIONE MEZZO TARGA BN 713 S;28/01/2022;1057;3;310;1;Spese correnti;Acquisto di beni e servizi;Acquisto di servizi;Manutenzione ordinaria e riparazioni;Manutenzione ordinaria e riparazioni di mezzi di trasporto ad uso civile, di sicurezza e ordine pubblico
128;1.128,50;LA MERIDIANA S.N.C. DI TRONCI E. & C.;ZFA276DF86;SALDO Fatt.n. 2-FE  del 17/01/2022 SERVIZIO TUMULAZIONI CIMITERO PISCINAS - ANNO 2021 -;28/01/2022;3304;0;83;2;Spese in conto capitale;Investimenti fissi lordi e acquisto di terreni;Beni materiali;Beni immobili;Cimiteri
129;966,24;SALIS ASCENSORI S.R.L.;Z55234041C;SALDO Fatt.n. 2490  del 31/12/2021 SERVIZIO DI MANUTENZIONE ASCENSORI STABILI COMUNALI PERIODO 01.07.2021/31.12.2021 -;28/01/2022;1089;2;232;1;Spese correnti;Acquisto di beni e servizi;Acquisto di servizi;Manutenzione ordinaria e riparazioni;Manutenzione ordinaria e riparazioni di impianti e macchinari
130;321,79;KUWAIT PETROLEUM ITALIA SPA;Z5928641D0;SALDO Fatt.n. PJ04815644  del 31/12/2021 FORNITURA CARBURANTE MEZZI COMUNALI - MESE DI DICEMBRE 2021 -;28/01/2022;1057;0;58;1;Spese correnti;Acquisto di beni e servizi;Acquisto di beni;Altri beni di consumo;Carburanti, combustibili e lubrificanti
131;2.449,45;T.E.S. GARDEN SRL;Z9C328B6C4;SALDO Fatt.n. FATTPA 28_21  del 31/12/2021 FORNITURA DI PRODOTTI FLOROVIVAISTICI JACARANDA PER IL CENTRO SERVIZI -;28/01/2022;1742;3;303;1;Spese correnti;Acquisto di beni e servizi;Acquisto di servizi;Altri servizi;Altri servizi diversi n.a.c.
132;5.875,79;TEKNOSERVICE S.R.L.;8561985589;SALDO Fatt.n. 3140/PA  del 31/12/2021 SERVIZIO DI RACCOLTA E TRASPORTO R.S.U. C/O DISCARIA MESE DI DICEMBRE 2021 -;28/01/2022;1738;0;333;1;Spese correnti;Acquisto di beni e servizi;Acquisto di servizi;Contratti di servizio pubblico;Contratti di servizio per la raccolta rifiuti
133;16,86;ENEL ENERGIA S.P.A.;84181751C6;SALDO Fatt.n. 004190195999  del 09/01/2022 Descrizione Contratto CONSIPEE17_7_FIX18M - CONSUMI ELETTRICI SEMAFORO  - MESE DI DICEMBRE 2021 -;31/01/2022;1937;0;49;1;Spese correnti;Acquisto di beni e servizi;Acquisto di servizi;Utenze e canoni;Energia elettrica
133;22,24;ENEL ENERGIA S.P.A.;84181751C6;SALDO Fatt.n. 004190195995  del 09/01/2022 Descrizione Contratto CONSIPEE17_7_FIX18M - CONSUMI ELETTRICI PIAZZA SOLIVARIU - MESE DI DICEMBRE 2021 -;31/01/2022;1937;0;49;1;Spese correnti;Acquisto di beni e servizi;Acquisto di servizi;Utenze e canoni;Energia elettrica
133;119,07;ENEL ENERGIA S.P.A.;84181751C6;SALDO Fatt.n. 004190195984  del 09/01/2022 Descrizione Contratto CONSIPEE17_7_FIX18M - CONSUMI ILLUMINAZIONE PUBBLICA PEEP  - MESE DI DICEMBRE 2021 -;31/01/2022;1937;0;49;1;Spese correnti;Acquisto di beni e servizi;Acquisto di servizi;Utenze e canoni;Energia elettrica
133;212,38;ENEL ENERGIA S.P.A.;84181751C6;SALDO Fatt.n. 004190195998  del 09/01/2022 Descrizione Contratto CONSIPEE17_7_FIX18M - CONSUMI ILLUMINAZIONE PUBBLICA SOLIVARIU - MESE DI DICEMBRE 2021 -;31/01/2022;1937;0;49;1;Spese correnti;Acquisto di beni e servizi;Acquisto di servizi;Utenze e canoni;Energia elettrica
133;395,15;ENEL ENERGIA S.P.A.;84181751C6;SALDO Fatt.n. 004190195986  del 09/01/2022 Descrizione Contratto CONSIPEE17_7_FIX18M - CONSUMI ILLUMINAZIONE PUBBLICA VIA MURRECCI  - MESE DI DICEMBRE 2021 -;31/01/2022;1937;0;49;1;Spese correnti;Acquisto di beni e servizi;Acquisto di servizi;Utenze e canoni;Energia elettrica
133;1.604,59;ENEL ENERGIA S.P.A.;84181751C6;SALDO Fatt.n. 004196824148  del 17/01/2022 Descrizione Contratto CONSIPEE17_7_FIX18M - CONSUMI ILLUMINAZIONE PUBBLICA VIA CAMPAGNA  - MESE DI DICEMBRE 2021 -;31/01/2022;1937;0;49;1;Spese correnti;Acquisto di beni e servizi;Acquisto di servizi;Utenze e canoni;Energia elettrica
134;52,31;ENEL ENERGIA S.P.A.;84181751C6;SALDO Fatt.n. 004190195990  del 09/01/2022 Descrizione Contratto CONSIPEE17_7_FIX18M - CONSUMI ELETTRICI EX SCUOLE MEDIE  - MESE DI DICEMBRE 2021 -;31/01/2022;1386;2;50;1;Spese correnti;Acquisto di beni e servizi;Acquisto di servizi;Utenze e canoni;Energia elettrica
135;169,38;ENEL ENERGIA S.P.A.;84181751C6;SALDO Fatt.n. 004190195989  del 09/01/2022 Descrizione Contratto CONSIPEE17_7_FIX18M - CONSUMI ELETTRICI SCUOLE ELEMENTARI  - MESE DI DICEMBRE 2021 -;31/01/2022;1366;3;51;1;Spese correnti;Acquisto di beni e servizi;Acquisto di servizi;Utenze e canoni;Energia elettrica
136;20,78;ENEL ENERGIA S.P.A.;84181751C6;SALDO Fatt.n. 004190195985  del 09/01/2022 Descrizione Contratto CONSIPEE17_7_FIX18M - CONSUMI ELETTRICI EX COMUNE - MESE DI DICEMBRE 2021 -;31/01/2022;1087;2;52;1;Spese correnti;Acquisto di beni e servizi;Acquisto di servizi;Utenze e canoni;Energia elettrica
136;49,11;ENEL ENERGIA S.P.A.;84181751C6;SALDO Fatt.n. 004190195996  del 09/01/2022 Descrizione Contratto CONSIPEE17_7_FIX18M - CONSUMI ELETTRICI BIBLIOTECA - MESE DI DICEMBRE 2021 -;31/01/2022;1087;2;52;1;Spese correnti;Acquisto di beni e servizi;Acquisto di servizi;Utenze e canoni;Energia elettrica
136;886,7;ENEL ENERGIA S.P.A.;84181751C6;SALDO Fatt.n. 004190195997  del 09/01/2022 Descrizione Contratto CONSIPEE17_7_FIX18M - CONSUMI ELETTRICI PALAZZO COMUNALE - MESE DI DICEMBRE 2021 -;31/01/2022;1087;2;52;1;Spese correnti;Acquisto di beni e servizi;Acquisto di servizi;Utenze e canoni;Energia elettrica
137;22,39;ENEL ENERGIA S.P.A.;84181751C6;SALDO Fatt.n. 004190195983  del 09/01/2022 Descrizione Contratto CONSIPEE17_7_FIX18M - CONSUMI ELETTRICI CAMPO POLIVALENTE  - MESE DI DICEMBRE 2021 -;31/01/2022;1826;1;53;1;Spese correnti;Acquisto di beni e servizi;Acquisto di servizi;Utenze e canoni;Energia elettrica
137;149,43;ENEL ENERGIA S.P.A.;84181751C6;SALDO Fatt.n. 004190195987  del 09/01/2022 Descrizione Contratto CONSIPEE17_7_FIX18M - CONSUMI ELETTRICI CAMPO SPORTIVO  - MESE DI DICEMBRE 2021 -;31/01/2022;1826;1;53;1;Spese correnti;Acquisto di beni e servizi;Acquisto di servizi;Utenze e canoni;Energia elettrica
138;11,1;ENEL ENERGIA S.P.A.;84181751C6;SALDO Fatt.n. 004190195988  del 09/01/2022 Descrizione Contratto CONSIPEE17_7_FIX18M - CONSUMI ELETTRICI VILLINO SALAZAR - MESE DI DICEMBRE 2021 -;31/01/2022;1526;0;54;1;Spese correnti;Acquisto di beni e servizi;Acquisto di servizi;Utenze e canoni;Energia elettrica
138;109,65;ENEL ENERGIA S.P.A.;84181751C6;SALDO Fatt.n. 004190195993  del 09/01/2022 Descrizione Contratto CONSIPEE17_7_FIX18M - CONSUMI ELETTRICI CENTRO SOCIALE  - MESE DI DICEMBRE 2021 -;31/01/2022;1526;0;54;1;Spese correnti;Acquisto di beni e servizi;Acquisto di servizi;Utenze e canoni;Energia elettrica
138;110,92;ENEL ENERGIA S.P.A.;84181751C6;SALDO Fatt.n. 004190195994  del 09/01/2022 Descrizione Contratto CONSIPEE17_7_FIX18M - CONSUMI ELETTRICI CENTRO SERVIZI  - MESE DI DICEMBRE 2021 -;31/01/2022;1526;0;54;1;Spese correnti;Acquisto di beni e servizi;Acquisto di servizi;Utenze e canoni;Energia elettrica
139;26,18;ENEL ENERGIA S.P.A.;84181751C6;SALDO Fatt.n. 004190195991  del 09/01/2022 Descrizione Contratto CONSIPEE17_7_FIX18M - CONSUMI ELETTRICI CIMITERO  - MESE DI DICEMBRE 2021 -;31/01/2022;1656;1;55;1;Spese correnti;Acquisto di beni e servizi;Acquisto di servizi;Utenze e canoni;Energia elettrica
140;25,19;ENEL ENERGIA S.P.A.;84181751C6;SALDO Fatt.n. 004190195992  del 09/01/2022 Descrizione Contratto CONSIPEE17_7_FIX18M - CONSUMI ELETTRICI PIAZZA ANFITEATRO - MESE DI DICEMBRE 2021 -;31/01/2022;1090;0;56;1;Spese correnti;Acquisto di beni e servizi;Acquisto di servizi;Utenze e canoni;Energia elettrica
141;162,04;ENEL ENERGIA S.P.A.;84181751C6;SALDO Fatt.n. 004190196000  del 09/01/2022 Descrizione Contratto CONSIPEE17_7_FIX18M - CONSUMI ELETTRICI P.ZZA DON GARAU  - MESE DI DICEMBRE 2021 -;31/01/2022;1086;0;57;1;Spese correnti;Acquisto di beni e servizi;Acquisto di servizi;Utenze e canoni;Energia elettrica
142;488;MEDIANET SRL;ZBD2A99DFB;SALDO Fatt.n. 19/WT  del 01/01/2022 CANONE TELEFONIA FISSA PERIODO GENNAIO/FEBBRAIO 2022 -;31/01/2022;1043;2;64;1;Spese correnti;Acquisto di beni e servizi;Acquisto di servizi;Utenze e canoni;Telefonia fissa
143;5.463,76;MULTISERVIZI G.A.L. SOCIETA' COOPERATIVA SOCIALE;ZF4309425D;SALDO Fatt.n. 389/PA  del 31/12/2021 SERVIZIO DI GESTIONE CANTIERE FORESTAZIONE ANNUALITA 2020 - MESE DI DICEMBRE 2021 -;31/01/2022;1742;3;303;1;Spese correnti;Acquisto di beni e servizi;Acquisto di servizi;Altri servizi;Altri servizi diversi n.a.c.
145;1.791,00;SECCI FRANCESCO SAVERIO; ;ESPROPRIAZIONE IMMOBILI NECESSARI PER REALIZZAZIONE PARCHEGGI VIA REGINA MARGHERITA - LIQUIDAZIONE SALDO -;01/02/2022;3467;1;248;2;Spese in conto capitale;Investimenti fissi lordi e acquisto di terreni;Beni materiali;Beni immobili;Altre vie di comunicazione
146;1.791,00;SECCI GIAN PAOLO; ;ESPROPRIAZIONE IMMOBILI NECESSARI PER REALIZZAZIONE PARCHEGGI VIA REGINA MARGHERITA - LIQUIDAZIONE SALDO -;01/02/2022;3467;1;248;2;Spese in conto capitale;Investimenti fissi lordi e acquisto di terreni;Beni materiali;Beni immobili;Altre vie di comunicazione
147;1.791,00;SECCI MARIA GIOVANNA; ;ESPROPRIAZIONE IMMOBILI NECESSARI PER REALIZZAZIONE PARCHEGGI VIA REGINA MARGHERITA - LIQUIDAZIONE SALDO -;01/02/2022;3467;1;248;2;Spese in conto capitale;Investimenti fissi lordi e acquisto di terreni;Beni materiali;Beni immobili;Altre vie di comunicazione
148;1.791,00;SECCI MARIA GRAZIA; ;ESPROPRIAZIONE IMMOBILI NECESSARI PER REALIZZAZIONE PARCHEGGI VIA REGINA MARGHERITA - LIQUIDAZIONE SALDO -;01/02/2022;3467;1;248;2;Spese in conto capitale;Investimenti fissi lordi e acquisto di terreni;Beni materiali;Beni immobili;Altre vie di comunicazione
149;1.791,00;SECCI PINA; ;ESPROPRIAZIONE IMMOBILI NECESSARI PER REALIZZAZIONE PARCHEGGI VIA REGINA MARGHERITA - LIQUIDAZIONE SALDO -;01/02/2022;3467;1;248;2;Spese in conto capitale;Investimenti fissi lordi e acquisto di terreni;Beni materiali;Beni immobili;Altre vie di comunicazione
150;1.791,00;SECCI ROSANNA; ;ESPROPRIAZIONE IMMOBILI NECESSARI PER REALIZZAZIONE PARCHEGGI VIA REGINA MARGHERITA - LIQUIDAZIONE SALDO -;01/02/2022;3467;1;248;2;Spese in conto capitale;Investimenti fissi lordi e acquisto di terreni;Beni materiali;Beni immobili;Altre vie di comunicazione
151;895,5;BRAI MIRANDA; ;ESPROPRIAZIONE IMMOBILI NECESSARI PER REALIZZAZIONE PARCHEGGI VIA REGINA MARGHERITA - LIQUIDAZIONE SALDO -;01/02/2022;3467;1;248;2;Spese in conto capitale;Investimenti fissi lordi e acquisto di terreni;Beni materiali;Beni immobili;Altre vie di comunicazione
152;895,5;SECCI ANDREA; ;ESPROPRIAZIONE IMMOBILI NECESSARI PER REALIZZAZIONE PARCHEGGI VIA REGINA MARGHERITA - LIQUIDAZIONE SALDO -;01/02/2022;3467;1;248;2;Spese in conto capitale;Investimenti fissi lordi e acquisto di terreni;Beni materiali;Beni immobili;Altre vie di comunicazione
153;186,43;SECCI FRANCESCO SAVERIO; ;ESPROPRIAZIONE IMMOBILI NECESSARI PER REALIZZAZIONE PARCHEGGI VIA REGINA MARGHERITA - LIQUIDAZIONE SALDO -;01/02/2022;3467;1;248;2;Spese in conto capitale;Investimenti fissi lordi e acquisto di terreni;Beni materiali;Beni immobili;Altre vie di comunicazione
154;186,43;SECCI GIAN PAOLO; ;ESPROPRIAZIONE IMMOBILI NECESSARI PER REALIZZAZIONE PARCHEGGI VIA REGINA MARGHERITA - LIQUIDAZIONE SALDO -;01/02/2022;3467;1;248;2;Spese in conto capitale;Investimenti fissi lordi e acquisto di terreni;Beni materiali;Beni immobili;Altre vie di comunicazione
155;186,43;SECCI MARIA GIOVANNA; ;ESPROPRIAZIONE IMMOBILI NECESSARI PER REALIZZAZIONE PARCHEGGI VIA REGINA MARGHERITA - LIQUIDAZIONE SALDO -;01/02/2022;3467;1;248;2;Spese in conto capitale;Investimenti fissi lordi e acquisto di terreni;Beni materiali;Beni immobili;Altre vie di comunicazione
156;186,43;SECCI MARIA GRAZIA; ;ESPROPRIAZIONE IMMOBILI NECESSARI PER REALIZZAZIONE PARCHEGGI VIA REGINA MARGHERITA - LIQUIDAZIONE SALDO -;01/02/2022;3467;1;248;2;Spese in conto capitale;Investimenti fissi lordi e acquisto di terreni;Beni materiali;Beni immobili;Altre vie di comunicazione
157;186,43;SECCI PINA; ;ESPROPRIAZIONE IMMOBILI NECESSARI PER REALIZZAZIONE PARCHEGGI VIA REGINA MARGHERITA - LIQUIDAZIONE SALDO -;01/02/2022;3467;1;248;2;Spese in conto capitale;Investimenti fissi lordi e acquisto di terreni;Beni materiali;Beni immobili;Altre vie di comunicazione
158;186,43;SECCI ROSANNA; ;ESPROPRIAZIONE IMMOBILI NECESSARI PER REALIZZAZIONE PARCHEGGI VIA REGINA MARGHERITA - LIQUIDAZIONE SALDO -;01/02/2022;3467;1;248;2;Spese in conto capitale;Investimenti fissi lordi e acquisto di terreni;Beni materiali;Beni immobili;Altre vie di comunicazione
159;93,21;BRAI MIRANDA; ;ESPROPRIAZIONE IMMOBILI NECESSARI PER REALIZZAZIONE PARCHEGGI VIA REGINA MARGHERITA - LIQUIDAZIONE SALDO -;01/02/2022;3467;1;248;2;Spese in conto capitale;Investimenti fissi lordi e acquisto di terreni;Beni materiali;Beni immobili;Altre vie di comunicazione
160;93,21;SECCI ANDREA; ;ESPROPRIAZIONE IMMOBILI NECESSARI PER REALIZZAZIONE PARCHEGGI VIA REGINA MARGHERITA - LIQUIDAZIONE SALDO -;01/02/2022;3467;1;248;2;Spese in conto capitale;Investimenti fissi lordi e acquisto di terreni;Beni materiali;Beni immobili;Altre vie di comunicazione
162;1.398,60;COMUNE DI PISCINAS; ;PROGETTI RITORNARE A CASA PLUS -  ANNUALITA 2021 - SISTEMAZIONE CONTABILE -;02/02/2022;1920;0;127;1;Spese correnti;Trasferimenti correnti;Trasferimenti correnti a Famiglie;Interventi assistenziali;Altri assegni e sussidi assistenziali
163;512,05;F.LLI MASSA S.R.L.;ZCD3497155;SALDO Fatt.n. 3/V  del 19/01/2022 FORNITURA CORTECCI DI LEGNO VERGINE QUINTALI 66,50 -;02/02/2022;1742;3;344;1;Spese correnti;Acquisto di beni e servizi;Acquisto di servizi;Altri servizi;Altri servizi diversi n.a.c.
164;18.657,89;FRATELLI ALEDDA DI GIANCARLO E MARCELLO ALEDDA SOCIETA' IN NOME COLLETTIVO;8688912D00;ACCONTO Fatt.n. 05/E/2022  del 21/01/2022 Vostro dare per il pagamento del Certificato di Pagamento N.1 del 14/01/2022 inerente i lavori di Recupero e valorizzazione del Parco Salazar 2 intervento.;02/02/2022;3236;0;306;2;Spese in conto capitale;Investimenti fissi lordi e acquisto di terreni;Beni materiali;Beni immobili;Musei, teatri e biblioteche
165;44.820,69;FRATELLI ALEDDA DI GIANCARLO E MARCELLO ALEDDA SOCIETA' IN NOME COLLETTIVO;8688912D00;SALDO Fatt.n. 05/E/2022  del 21/01/2022 Vostro dare per il pagamento del Certificato di Pagamento N.1 del 14/01/2022 inerente i lavori di Recupero e valorizzazione del Parco Salazar 2 intervento.;02/02/2022;3236;0;337;2;Spese in conto capitale;Investimenti fissi lordi e acquisto di terreni;Beni materiali;Beni immobili;Musei, teatri e biblioteche
174;853;COMUNE DI PISCINAS; ;MISURE URGENTI DI SOLIDARIETA ALIMENTARE E DI SOSTEGNO ALLE FAMIGLIE PER IL PAGAMENTO DEI CANONI DI LOCAZIONE E DELLE UTENZE DOMESTICHE ART. 53, COMMA 1,  DEL D.L. N.73/2021 - COMPENSAZIONE TRIBUTO TARI ANNO 2015 -;03/02/2022;1919;7;278;1;Spese correnti;Trasferimenti correnti;Trasferimenti correnti a Istituzioni Sociali Private;Trasferimenti correnti a Istituzioni Sociali Private;Trasferimenti correnti a Istituzioni Sociali Private
175;791;COMUNE DI PISCINAS; ;MISURE URGENTI DI SOLIDARIETA ALIMENTARE E DI SOSTEGNO ALLE FAMIGLIE PER IL PAGAMENTO DEI CANONI DI LOCAZIONE E DELLE UTENZE DOMESTICHE ART. 53, COMMA 1,  DEL D.L. N.73/2021 - COMPENSAZIONE TRIBUTO TARI ANNO 2016 -;03/02/2022;1919;7;278;1;Spese correnti;Trasferimenti correnti;Trasferimenti correnti a Istituzioni Sociali Private;Trasferimenti correnti a Istituzioni Sociali Private;Trasferimenti correnti a Istituzioni Sociali Private
176;1.148,00;COMUNE DI PISCINAS; ;MISURE URGENTI DI SOLIDARIETA ALIMENTARE E DI SOSTEGNO ALLE FAMIGLIE PER IL PAGAMENTO DEI CANONI DI LOCAZIONE E DELLE UTENZE DOMESTICHE ART. 53, COMMA 1,  DEL D.L. N.73/2021 - COMPENSAZIONE TRIBUTO TARI ANNO 2017 -;03/02/2022;1919;7;278;1;Spese correnti;Trasferimenti correnti;Trasferimenti correnti a Istituzioni Sociali Private;Trasferimenti correnti a Istituzioni Sociali Private;Trasferimenti correnti a Istituzioni Sociali Private
177;1.341,00;COMUNE DI PISCINAS; ;MISURE URGENTI DI SOLIDARIETA ALIMENTARE E DI SOSTEGNO ALLE FAMIGLIE PER IL PAGAMENTO DEI CANONI DI LOCAZIONE E DELLE UTENZE DOMESTICHE ART. 53, COMMA 1,  DEL D.L. N.73/2021 - COMPENSAZIONE TRIBUTO TARI ANNO 2018 -;03/02/2022;1919;7;278;1;Spese correnti;Trasferimenti correnti;Trasferimenti correnti a Istituzioni Sociali Private;Trasferimenti correnti a Istituzioni Sociali Private;Trasferimenti correnti a Istituzioni Sociali Private
178;789;COMUNE DI PISCINAS; ;MISURE URGENTI DI SOLIDARIETA ALIMENTARE E DI SOSTEGNO ALLE FAMIGLIE PER IL PAGAMENTO DEI CANONI DI LOCAZIONE E DELLE UTENZE DOMESTICHE ART. 53, COMMA 1,  DEL D.L. N.73/2021 - COMPENSAZIONE TRIBUTO  TARI ANNO 2019 -;03/02/2022;1919;7;278;1;Spese correnti;Trasferimenti correnti;Trasferimenti correnti a Istituzioni Sociali Private;Trasferimenti correnti a Istituzioni Sociali Private;Trasferimenti correnti a Istituzioni Sociali Private
179;1.498,00;COMUNE DI PISCINAS; ;MISURE URGENTI DI SOLIDARIETA ALIMENTARE E DI SOSTEGNO ALLE FAMIGLIE PER IL PAGAMENTO DEI CANONI DI LOCAZIONE E DELLE UTENZE DOMESTICHE ART. 53, COMMA 1,  DEL D.L. N.73/2021 - COMPENSAZIONE TRIBUTO TARI ANNO 2020 -;03/02/2022;1919;7;278;1;Spese correnti;Trasferimenti correnti;Trasferimenti correnti a Istituzioni Sociali Private;Trasferimenti correnti a Istituzioni Sociali Private;Trasferimenti correnti a Istituzioni Sociali Private
180;2.691,00;COMUNE DI PISCINAS; ;MISURE URGENTI DI SOLIDARIETA ALIMENTARE E DI SOSTEGNO ALLE FAMIGLIE PER IL PAGAMENTO DEI CANONI DI LOCAZIONE E DELLE UTENZE DOMESTICHE ART. 53, COMMA 1,  DEL D.L. N.73/2021 - COMPENSAZIONE TRIBUTO TARI ANNO 2021 -;03/02/2022;1919;7;278;1;Spese correnti;Trasferimenti correnti;Trasferimenti correnti a Istituzioni Sociali Private;Trasferimenti correnti a Istituzioni Sociali Private;Trasferimenti correnti a Istituzioni Sociali Private
181;640;COMUNE DI PISCINAS; ;MISURE URGENTI DI SOLIDARIETA ALIMENTARE E DI SOSTEGNO ALLE FAMIGLIE PER IL PAGAMENTO DEI CANONI DI LOCAZIONE E DELLE UTENZE DOMESTICHE ART. 53, COMMA 1,  DEL D.L. N.73/2021 - COMPENSAZIONE TRIBUTO IMU ANNI DAL 2017 AL 2021 -;03/02/2022;1919;7;278;1;Spese correnti;Trasferimenti correnti;Trasferimenti correnti a Istituzioni Sociali Private;Trasferimenti correnti a Istituzioni Sociali Private;Trasferimenti correnti a Istituzioni Sociali Private
182;40,8;ABBANOA S.P.A.; ;SALDO Fatt.n. 0150020210003726500  del 17/12/2021 B/Bollettazione CONSUMI IDRICI EX-COMUNE  PERIODO AGOSTO/NOVEMBRE 2021 -;10/02/2022;1087;3;180;1;Spese correnti;Acquisto di beni e servizi;Acquisto di servizi;Utenze e canoni;Acqua
182;121,09;ABBANOA S.P.A.; ;ACCONTO Fatt.n. 0150020210003710200  del 17/12/2021 B/Bollettazione CONSUMI IDRICI PALAZZO COMUNALE  PERIODO AGOSTO/NOVEMBRE 2021 -;10/02/2022;1087;3;180;1;Spese correnti;Acquisto di beni e servizi;Acquisto di servizi;Utenze e canoni;Acqua
183;330,95;ABBANOA S.P.A.; ;ACCONTO Fatt.n. 0150020210003726400  del 17/12/2021 B/Bollettazione CONSUMI IDRICI SCUOLE ELEMENTARI PERIODO AGOSTO/NOVEMBRE 2021 -;10/02/2022;1367;0;76;1;Spese correnti;Acquisto di beni e servizi;Acquisto di servizi;Utenze e canoni;Acqua
184;60,19;ABBANOA S.P.A.; ;SALDO Fatt.n. 0150020210003710500  del 17/12/2021 B/Bollettazione CONSUMI IDRICI EX SCUOLE MEDIE  PERIODO AGOSTO/NOVEMBRE 2021 -;10/02/2022;1387;0;182;1;Spese correnti;Acquisto di beni e servizi;Acquisto di servizi;Utenze e canoni;Acqua
184;528,67;ABBANOA S.P.A.; ;ACCONTO Fatt.n. 0150020210003726400  del 17/12/2021 B/Bollettazione CONSUMI IDRICI SCUOLE ELEMENTARI PERIODO AGOSTO/NOVEMBRE 2021 -;10/02/2022;1387;0;182;1;Spese correnti;Acquisto di beni e servizi;Acquisto di servizi;Utenze e canoni;Acqua
185;69,36;ABBANOA S.P.A.; ;SALDO Fatt.n. 0150020210003710300  del 17/12/2021 B/Bollettazione CONSUMI IDRICI CENTRO SOCIALE PERIODO AGOSTO/NOVEMBRE 2021 -;10/02/2022;1526;1;183;1;Spese correnti;Acquisto di beni e servizi;Acquisto di servizi;Utenze e canoni;Acqua
185;120,34;ABBANOA S.P.A.; ;SALDO Fatt.n. 0150020210003710000  del 17/12/2021 B/Bollettazione CONSUMI IDRICI VILLINO SALAZAR  PERIODO AGOSTO/NOVEMBRE 2021 -;10/02/2022;1526;1;183;1;Spese correnti;Acquisto di beni e servizi;Acquisto di servizi;Utenze e canoni;Acqua
186;970,06;ABBANOA S.P.A.; ;SALDO Fatt.n. 0150020210003710600  del 17/12/2021 B/Bollettazione CONSUMI IDRICI CIMITERO PERIODO AGOSTO/NOVEMBRE 2021 -;10/02/2022;1657;0;79;1;Spese correnti;Acquisto di beni e servizi;Acquisto di servizi;Utenze e canoni;Acqua
187;20,31;ABBANOA S.P.A.; ;SALDO Fatt.n. 0150020210003726400  del 17/12/2021 B/Bollettazione CONSUMI IDRICI SCUOLE ELEMENTARI PERIODO AGOSTO/NOVEMBRE 2021 -;10/02/2022;1717;1;185;1;Spese correnti;Acquisto di beni e servizi;Acquisto di servizi;Utenze e canoni;Acqua
187;59,19;ABBANOA S.P.A.; ;SALDO Fatt.n. 0150020210003710400  del 17/12/2021 B/Bollettazione CONSUMI IDRICI VERDE PUBBLICO (EX-POMPE) PERIODO AGOSTO/NOVEMBRE 2021 -;10/02/2022;1717;1;185;1;Spese correnti;Acquisto di beni e servizi;Acquisto di servizi;Utenze e canoni;Acqua
188;23,78;ABBANOA S.P.A.; ;SALDO Fatt.n. 0150020210003710200  del 17/12/2021 B/Bollettazione CONSUMI IDRICI PALAZZO COMUNALE  PERIODO AGOSTO/NOVEMBRE 2021 -;10/02/2022;1827;0;186;1;Spese correnti;Acquisto di beni e servizi;Acquisto di servizi;Utenze e canoni;Acqua
188;59,19;ABBANOA S.P.A.; ;SALDO Fatt.n. 0150020210003710700  del 17/12/2021 B/Bollettazione CONSUMI IDRICI CAMPO POLIVALENTE PERIODO AGOSTO/NOVEMBRE 2021 -;10/02/2022;1827;0;186;1;Spese correnti;Acquisto di beni e servizi;Acquisto di servizi;Utenze e canoni;Acqua
188;91,38;ABBANOA S.P.A.; ;SALDO Fatt.n. 0150020210003710100  del 17/12/2021 B/Bollettazione CONSUMI IDRICI CAMPO SPORTIVO  PERIODO AGOSTO/NOVEMBRE 2021 -;10/02/2022;1827;0;186;1;Spese correnti;Acquisto di beni e servizi;Acquisto di servizi;Utenze e canoni;Acqua
189;245,88;ABBANOA S.P.A.; ;SALDO Fatt.n. 0150020210003726600  del 17/12/2021 B/Bollettazione CONSUMI IDRICI EX-ESMAS  PERIODO AGOSTO/NOVEMBRE 2021 -;10/02/2022;1087;3;75;1;Spese correnti;Acquisto di beni e servizi;Acquisto di servizi;Utenze e canoni;Acqua
190;1.024,02;VERDE VITA SRL;Z2734D619D;SALDO Fatt.n. 8/CCP  del 31/01/2022 SMALTIMENTO R.S.U. CER 200108 E CER 200307 PRESSO IMPIANTO COMPOSTAGGIO CARBONIA - MESE DI GENNAIO 2022 -;10/02/2022;1739;0;1;1;Spese correnti;Acquisto di beni e servizi;Acquisto di servizi;Contratti di servizio pubblico;Contratti di servizio per il conferimento in discarica dei rifiuti
191;162;KUWAIT PETROLEUM ITALIA SPA;Z5928641D0;SALDO Fatt.n. PJ04933810  del 31/01/2022 FORNITURA CARBURANTE PER I MEZZI COMUNALI - MESE DI GENNAIO 2022 -;10/02/2022;1057;0;4;1;Spese correnti;Acquisto di beni e servizi;Acquisto di beni;Altri beni di consumo;Carburanti, combustibili e lubrificanti
192;5.875,84;TEKNOSERVICE S.R.L.;Z2734449FB;SALDO Fatt.n. 252/PA  del 31/01/2022 SERVIZIO DI RACCOLTA E TRASPORTO RSU DIFFERENZIATI - MESE DI GENNAIO 2022 -;10/02/2022;1738;0;327;1;Spese correnti;Acquisto di beni e servizi;Acquisto di servizi;Contratti di servizio pubblico;Contratti di servizio per la raccolta rifiuti
193;640,5;SAIU ELETTROSERVICE DI CADDIA GIOVANNA ANGELA;7054703D12;SALDO Fatt.n. FATTPA 5_22  del 31/01/2022 SERVIZIO DI MANUTENZIONE ORDINARIA IMPIANTI DI ILLUMINAZIONE PUBBLICA - MESE DI GENNAIO 2022 -;10/02/2022;1938;0;85;1;Spese correnti;Acquisto di beni e servizi;Acquisto di servizi;Contratti di servizio pubblico;Contratti di servizio per l'illuminazione pubblica
194;4.244,81;MULTISERVIZI G.A.L. SOCIETA' COOPERATIVA SOCIALE;ZF4309425D;ACCONTO Fatt.n. 46/PA  del 31/01/2022;10/02/2022;1742;3;303;1;Spese correnti;Acquisto di beni e servizi;Acquisto di servizi;Altri servizi;Altri servizi diversi n.a.c.
195;214,69;MULTISERVIZI G.A.L. SOCIETA' COOPERATIVA SOCIALE;ZF4309425D;SALDO Fatt.n. 46/PA  del 31/01/2022;10/02/2022;1742;3;140;1;Spese correnti;Acquisto di beni e servizi;Acquisto di servizi;Altri servizi;Altri servizi diversi n.a.c.
196;200;SOGGETTI DIVERSI; ;DELEGA UFFICIO AMMINISTRATORE DI SOSTEGNO EX DECRETO GIUDICE TUTELARE VG 4728/17 DEL 09.07.2020. RICONOSCIMENTO EQUO INDENNIZZO MESE DI GENNAIO 2022 -;16/02/2022;1920;13;107;1;Spese correnti;Acquisto di beni e servizi;Acquisto di servizi;Prestazioni professionali e specialistiche;Altre prestazioni professionali e specialistiche n.a.c.
197;202,35;SOGGETTI DIVERSI; ;L.162/98 PIANI PERSONALIZZATI MESE DI DICEMBRE 2021 E CONTR. INPS;16/02/2022;1920;15;151;1;Spese correnti;Trasferimenti correnti;Trasferimenti correnti a Famiglie;Interventi assistenziali;Altri assegni e sussidi assistenziali
198;166,66;ABILTECNO Societa' Cooperativa Onlus; ;L. 162/98 PIANI PERSONALIZZATI  PERIODO GENNAIO 2022.;16/02/2022;1920;15;11;1;Spese correnti;Trasferimenti correnti;Trasferimenti correnti a Famiglie;Interventi assistenziali;Altri assegni e sussidi assistenziali
199;142,6;SOGGETTI DIVERSI; ;L. 162/98 PIANI PERSONALIZZATI  PERIODO GENNAIO 2022.;16/02/2022;1920;15;13;1;Spese correnti;Trasferimenti correnti;Trasferimenti correnti a Famiglie;Interventi assistenziali;Altri assegni e sussidi assistenziali
200;375;SOGGETTI DIVERSI; ;L. 162/98 PIANI PERSONALIZZATI  PERIODO GENNAIO 2022.;16/02/2022;1920;15;14;1;Spese correnti;Trasferimenti correnti;Trasferimenti correnti a Famiglie;Interventi assistenziali;Altri assegni e sussidi assistenziali
201;322,14;SOGGETTI DIVERSI; ;L. 162/98 PIANI PERSONALIZZATI  PERIODO GENNAIO 2022.;16/02/2022;1920;15;24;1;Spese correnti;Trasferimenti correnti;Trasferimenti correnti a Famiglie;Interventi assistenziali;Altri assegni e sussidi assistenziali
202;375;ABILTECNO Societa' Cooperativa Onlus; ;L. 162/98 PIANI PERSONALIZZATI  PERIODO GENNAIO 2022.;16/02/2022;1920;15;30;1;Spese correnti;Trasferimenti correnti;Trasferimenti correnti a Famiglie;Interventi assistenziali;Altri assegni e sussidi assistenziali
203;163,14;SOGGETTI DIVERSI; ;L. 162/98 PIANI PERSONALIZZATI  PERIODO GENNAIO 2022.;16/02/2022;1920;15;31;1;Spese correnti;Trasferimenti correnti;Trasferimenti correnti a Famiglie;Interventi assistenziali;Altri assegni e sussidi assistenziali
204;323,98;SOGGETTI DIVERSI; ;L. 162/98 PIANI PERSONALIZZATI  PERIODO GENNAIO 2022.;16/02/2022;1920;15;33;1;Spese correnti;Trasferimenti correnti;Trasferimenti correnti a Famiglie;Interventi assistenziali;Altri assegni e sussidi assistenziali
205;390,66;SOGGETTI DIVERSI; ;L. 162/98 PIANI PERSONALIZZATI  PERIODO GENNAIO 2022.;16/02/2022;1920;15;35;1;Spese correnti;Trasferimenti correnti;Trasferimenti correnti a Famiglie;Interventi assistenziali;Altri assegni e sussidi assistenziali
206;215,61;SOGGETTI DIVERSI; ;L. 162/98 PIANI PERSONALIZZATI  PERIODO GENNAIO 2022.;16/02/2022;1920;15;37;1;Spese correnti;Trasferimenti correnti;Trasferimenti correnti a Famiglie;Interventi assistenziali;Altri assegni e sussidi assistenziali
207;326,24;SOGGETTI DIVERSI; ;L. 162/98 PIANI PERSONALIZZATI  PERIODO GENNAIO 2022.;16/02/2022;1920;15;42;1;Spese correnti;Trasferimenti correnti;Trasferimenti correnti a Famiglie;Interventi assistenziali;Altri assegni e sussidi assistenziali
208;120,39;SOGGETTI DIVERSI; ;L. 162/98 PIANI PERSONALIZZATI  PERIODO GENNAIO 2022.;16/02/2022;1920;15;45;1;Spese correnti;Trasferimenti correnti;Trasferimenti correnti a Famiglie;Interventi assistenziali;Altri assegni e sussidi assistenziali
209;156,25;SOGGETTI DIVERSI; ;L. 162/98 PIANI PERSONALIZZATI  PERIODO GENNAIO 2022.;16/02/2022;1920;15;47;1;Spese correnti;Trasferimenti correnti;Trasferimenti correnti a Famiglie;Interventi assistenziali;Altri assegni e sussidi assistenziali
210;114,6;SOGGETTI DIVERSI; ;L. 162/98 PIANI PERSONALIZZATI  PERIODO GENNAIO 2022.;16/02/2022;1920;15;49;1;Spese correnti;Trasferimenti correnti;Trasferimenti correnti a Famiglie;Interventi assistenziali;Altri assegni e sussidi assistenziali
211;278,48;SOGGETTI DIVERSI; ;L. 162/98 PIANI PERSONALIZZATI  PERIODO GENNAIO 2022.;16/02/2022;1920;15;15;1;Spese correnti;Trasferimenti correnti;Trasferimenti correnti a Famiglie;Interventi assistenziali;Altri assegni e sussidi assistenziali
212;203,13;SOGGETTI DIVERSI; ;L. 162/98 PIANI PERSONALIZZATI  PERIODO GENNAIO 2022.;16/02/2022;1920;15;34;1;Spese correnti;Trasferimenti correnti;Trasferimenti correnti a Famiglie;Interventi assistenziali;Altri assegni e sussidi assistenziali
213;593,48;SOGGETTI DIVERSI; ;PROGETTI RITORNARE A CASA PLUS  MESE DI GENNAIO 2022 -;16/02/2022;1920;0;65;1;Spese correnti;Trasferimenti correnti;Trasferimenti correnti a Famiglie;Interventi assistenziali;Altri assegni e sussidi assistenziali
214;136,95;SOGGETTI DIVERSI; ;L. 162/98 PIANI PERSONALIZZATI  PERIODO GENNAIO 2022.;16/02/2022;1920;15;12;1;Spese correnti;Trasferimenti correnti;Trasferimenti correnti a Famiglie;Interventi assistenziali;Altri assegni e sussidi assistenziali
215;214,04;SOGGETTI DIVERSI; ;L. 162/98 PIANI PERSONALIZZATI  PERIODO GENNAIO 2022.;16/02/2022;1920;15;19;1;Spese correnti;Trasferimenti correnti;Trasferimenti correnti a Famiglie;Interventi assistenziali;Altri assegni e sussidi assistenziali
216;103,59;SOGGETTI DIVERSI; ;L. 162/98 PIANI PERSONALIZZATI  PERIODO GENNAIO 2022.;16/02/2022;1920;15;26;1;Spese correnti;Trasferimenti correnti;Trasferimenti correnti a Famiglie;Interventi assistenziali;Altri assegni e sussidi assistenziali
217;122,57;SOGGETTI DIVERSI; ;L. 162/98 PIANI PERSONALIZZATI  PERIODO GENNAIO 2022.;16/02/2022;1920;15;32;1;Spese correnti;Trasferimenti correnti;Trasferimenti correnti a Famiglie;Interventi assistenziali;Altri assegni e sussidi assistenziali
218;384,95;SOGGETTI DIVERSI; ;L. 162/98 PIANI PERSONALIZZATI  PERIODO GENNAIO 2022.;16/02/2022;1920;15;40;1;Spese correnti;Trasferimenti correnti;Trasferimenti correnti a Famiglie;Interventi assistenziali;Altri assegni e sussidi assistenziali
219;171,34;SOGGETTI DIVERSI; ;L. 162/98 PIANI PERSONALIZZATI  PERIODO GENNAIO 2022.;16/02/2022;1920;15;41;1;Spese correnti;Trasferimenti correnti;Trasferimenti correnti a Famiglie;Interventi assistenziali;Altri assegni e sussidi assistenziali
220;178,4;SOGGETTI DIVERSI; ;L. 162/98 PIANI PERSONALIZZATI  PERIODO GENNAIO 2022.;16/02/2022;1920;15;46;1;Spese correnti;Trasferimenti correnti;Trasferimenti correnti a Famiglie;Interventi assistenziali;Altri assegni e sussidi assistenziali
221;953,44;SOGGETTI DIVERSI; ;PROGETTI RITORNARE A CASA PLUS  - MESE DI GENNAIO 2022 -;16/02/2022;1920;0;69;1;Spese correnti;Trasferimenti correnti;Trasferimenti correnti a Famiglie;Interventi assistenziali;Altri assegni e sussidi assistenziali
222;1.333,33;COOP. SOCIALE ADEST A R.L. ONLUS; ;PROGETTI RITORNARE A CASA PLUS   - MESE DI GENNAIO 2022 -;16/02/2022;1920;0;68;1;Spese correnti;Trasferimenti correnti;Trasferimenti correnti a Famiglie;Interventi assistenziali;Altri assegni e sussidi assistenziali
223;159,37;SOGGETTI DIVERSI; ;L. 162/98 PIANI PERSONALIZZATI  PERIODO GENNAIO 2022.;16/02/2022;1920;15;27;1;Spese correnti;Trasferimenti correnti;Trasferimenti correnti a Famiglie;Interventi assistenziali;Altri assegni e sussidi assistenziali
224;6,93;SOGGETTI DIVERSI; ;L.162/98 PIANI PERSONALIZZATI CONTR. INPS 2021 -;16/02/2022;1920;15;175;1;Spese correnti;Trasferimenti correnti;Trasferimenti correnti a Famiglie;Interventi assistenziali;Altri assegni e sussidi assistenziali
225;226,43;SOGGETTI DIVERSI; ;L. 162/98 PIANI PERSONALIZZATI  PERIODO GENNAIO 2022.;16/02/2022;1920;15;48;1;Spese correnti;Trasferimenti correnti;Trasferimenti correnti a Famiglie;Interventi assistenziali;Altri assegni e sussidi assistenziali
226;879,3;SOGGETTI DIVERSI; ;MISURE URGENTI DI SOLIDARIET ALIMENTARE E DI SOSTEGNO ALLE FAMIGLIE PER IL PAGAMENTO DEI CANONI DI LOCAZIONE E DELLE UTENZE DOMESTICHE ART. 53, COMMA 1,  DEL D.L. N.73/2021.;17/02/2022;1919;7;278;1;Spese correnti;Trasferimenti correnti;Trasferimenti correnti a Istituzioni Sociali Private;Trasferimenti correnti a Istituzioni Sociali Private;Trasferimenti correnti a Istituzioni Sociali Private
227;879,29;SOGGETTI DIVERSI; ;MISURE URGENTI DI SOLIDARIET ALIMENTARE E DI SOSTEGNO ALLE FAMIGLIE PER IL PAGAMENTO DEI CANONI DI LOCAZIONE E DELLE UTENZE DOMESTICHE ART. 53, COMMA 1,  DEL D.L. N.73/2021.;17/02/2022;1919;7;278;1;Spese correnti;Trasferimenti correnti;Trasferimenti correnti a Istituzioni Sociali Private;Trasferimenti correnti a Istituzioni Sociali Private;Trasferimenti correnti a Istituzioni Sociali Private
228;879,29;SOGGETTI DIVERSI; ;MISURE URGENTI DI SOLIDARIET ALIMENTARE E DI SOSTEGNO ALLE FAMIGLIE PER IL PAGAMENTO DEI CANONI DI LOCAZIONE E DELLE UTENZE DOMESTICHE ART. 53, COMMA 1,  DEL D.L. N.73/2021.;17/02/2022;1919;7;278;1;Spese correnti;Trasferimenti correnti;Trasferimenti correnti a Istituzioni Sociali Private;Trasferimenti correnti a Istituzioni Sociali Private;Trasferimenti correnti a Istituzioni Sociali Private
229;879,29;SOGGETTI DIVERSI; ;MISURE URGENTI DI SOLIDARIET ALIMENTARE E DI SOSTEGNO ALLE FAMIGLIE PER IL PAGAMENTO DEI CANONI DI LOCAZIONE E DELLE UTENZE DOMESTICHE ART. 53, COMMA 1,  DEL D.L. N.73/2021.;17/02/2022;1919;7;278;1;Spese correnti;Trasferimenti correnti;Trasferimenti correnti a Istituzioni Sociali Private;Trasferimenti correnti a Istituzioni Sociali Private;Trasferimenti correnti a Istituzioni Sociali Private
230;879,3;SOGGETTI DIVERSI; ;MISURE URGENTI DI SOLIDARIET ALIMENTARE E DI SOSTEGNO ALLE FAMIGLIE PER IL PAGAMENTO DEI CANONI DI LOCAZIONE E DELLE UTENZE DOMESTICHE ART. 53, COMMA 1,  DEL D.L. N.73/2021.;17/02/2022;1919;7;278;1;Spese correnti;Trasferimenti correnti;Trasferimenti correnti a Istituzioni Sociali Private;Trasferimenti correnti a Istituzioni Sociali Private;Trasferimenti correnti a Istituzioni Sociali Private
231;879,3;SOGGETTI DIVERSI; ;MISURE URGENTI DI SOLIDARIET ALIMENTARE E DI SOSTEGNO ALLE FAMIGLIE PER IL PAGAMENTO DEI CANONI DI LOCAZIONE E DELLE UTENZE DOMESTICHE ART. 53, COMMA 1,  DEL D.L. N.73/2021.;17/02/2022;1919;7;278;1;Spese correnti;Trasferimenti correnti;Trasferimenti correnti a Istituzioni Sociali Private;Trasferimenti correnti a Istituzioni Sociali Private;Trasferimenti correnti a Istituzioni Sociali Private
232;879,29;SOGGETTI DIVERSI; ;MISURE URGENTI DI SOLIDARIET ALIMENTARE E DI SOSTEGNO ALLE FAMIGLIE PER IL PAGAMENTO DEI CANONI DI LOCAZIONE E DELLE UTENZE DOMESTICHE ART. 53, COMMA 1,  DEL D.L. N.73/2021.;17/02/2022;1919;7;278;1;Spese correnti;Trasferimenti correnti;Trasferimenti correnti a Istituzioni Sociali Private;Trasferimenti correnti a Istituzioni Sociali Private;Trasferimenti correnti a Istituzioni Sociali Private
233;879,3;SOGGETTI DIVERSI; ;MISURE URGENTI DI SOLIDARIET ALIMENTARE E DI SOSTEGNO ALLE FAMIGLIE PER IL PAGAMENTO DEI CANONI DI LOCAZIONE E DELLE UTENZE DOMESTICHE ART. 53, COMMA 1,  DEL D.L. N.73/2021.;17/02/2022;1919;7;278;1;Spese correnti;Trasferimenti correnti;Trasferimenti correnti a Istituzioni Sociali Private;Trasferimenti correnti a Istituzioni Sociali Private;Trasferimenti correnti a Istituzioni Sociali Private
234;879,3;SOGGETTI DIVERSI; ;MISURE URGENTI DI SOLIDARIET ALIMENTARE E DI SOSTEGNO ALLE FAMIGLIE PER IL PAGAMENTO DEI CANONI DI LOCAZIONE E DELLE UTENZE DOMESTICHE ART. 53, COMMA 1,  DEL D.L. N.73/2021.;17/02/2022;1919;7;278;1;Spese correnti;Trasferimenti correnti;Trasferimenti correnti a Istituzioni Sociali Private;Trasferimenti correnti a Istituzioni Sociali Private;Trasferimenti correnti a Istituzioni Sociali Private
235;104;SOGGETTI DIVERSI; ;L. 162/98 PIANI PERSONALIZZATI  PERIODO GENNAIO 2022.;17/02/2022;1920;15;36;1;Spese correnti;Trasferimenti correnti;Trasferimenti correnti a Famiglie;Interventi assistenziali;Altri assegni e sussidi assistenziali
236;134,4;SOGGETTI DIVERSI; ;L.R. 18/16 FONDO REGIONALE PER IL REDDITO DI INCLUSIONE SOCIALE (REIS) AGIUDU TORRAU ANNUALITA 2021 - PROGETTI DI INCLUSIONE ATTIVA I SEMESTRE;17/02/2022;1919;6;312;1;Spese correnti;Trasferimenti correnti;Trasferimenti correnti a Famiglie;Interventi assistenziali;Altri assegni e sussidi assistenziali
237;800;ISTITUTO COMPRENSIVO G.MARCONI; ;FONDI PER IL DIRITTO ALLO STUDIO L.R. 31/84 ALLISTITUTO COMPRENSIVO G. MARCONI  DI S. GIOVANNI SUERGIU - GIBA. A.S. 2020/2021 - SCUOLA DELLINFANZIA -;17/02/2022;1346;0;296;1;Spese correnti;Trasferimenti correnti;Trasferimenti correnti a Amministrazioni Pubbliche;Trasferimenti correnti a Amministrazioni Locali;Trasferimenti correnti a altre Amministrazioni Locali n.a.c.
238;500;ISTITUTO COMPRENSIVO G.MARCONI; ;FONDI PER IL DIRITTO ALLO STUDIO L.R. 31/84 ALLISTITUTO COMPRENSIVO G. MARCONI  DI S. GIOVANNI SUERGIU - GIBA. A.S. 2020/2021 - SCUOLA PRIMARIA -;17/02/2022;1421;2;297;1;Spese correnti;Trasferimenti correnti;Trasferimenti correnti a Amministrazioni Pubbliche;Trasferimenti correnti a Amministrazioni Locali;Trasferimenti correnti a altre Amministrazioni Locali n.a.c.
239;500;ISTITUTO COMPRENSIVO G.MARCONI; ;FONDI PER IL DIRITTO ALLO STUDIO L.R. 31/84 ALLISTITUTO COMPRENSIVO G. MARCONI  DI S. GIOVANNI SUERGIU - GIBA. A.S. 2020/2021 - SCUOLA SECONDARIA -;17/02/2022;1421;3;298;1;Spese correnti;Trasferimenti correnti;Trasferimenti correnti a Amministrazioni Pubbliche;Trasferimenti correnti a Amministrazioni Locali;Trasferimenti correnti a altre Amministrazioni Locali n.a.c.
240;154;A.N.U.T.E.L.; ;ADESIONE ALLASSOCIAZIONE NAZIONALE UFFICI TRIBUTI ENTI LOCALI A.N.U.T.E.L. PER LANNO 2022;17/02/2022;1050;0;89;1;Spese correnti;Acquisto di beni e servizi;Acquisto di servizi;Altri servizi;Quote di associazioni
241;120,88;ASEL ASSOCIAZIONE SARDA ENTI LOCALI; ;ADESIONE ALLASSOCIAZIONE SARDA ENTI LOCALI (ASEL) -  ANNO 2022 -;17/02/2022;1012;0;87;1;Spese correnti;Acquisto di beni e servizi;Acquisto di servizi;Altri servizi;Quote di associazioni
242;85;AGENZIA DELLE ENTRATE RISCOSSIONE - VERONA; ;ADESIONE ALLASSOCIAZIONE NAZIONALE COMUNI ITALIANI (ANCI). QUOTA ASSOCIATIVA  ANNO 2022.;17/02/2022;1011;0;88;1;Spese correnti;Acquisto di beni e servizi;Acquisto di servizi;Altri servizi;Quote di associazioni
243;132,72;ANCI SARDEGNA; ;ADESIONE ALLASSOCIAZIONE NAZIONALE COMUNI ITALIANI (ANCI - ADDIZIONALE REGIONALE QUOTA ASSOCIATIVA ANNO 2022.;17/02/2022;1011;0;88;1;Spese correnti;Acquisto di beni e servizi;Acquisto di servizi;Altri servizi;Quote di associazioni
282;32.763,31;COMUNE DI PISCINAS; ;ASSEGNAZIONI ART. 4 L.R. 8/99 E ART.1 C.1 LETT.F L.R. 9/04 - SISTEMAZIONE CONTABILE - ANNUALITA 2021 -;22/02/2022;1916;0;211;1;Spese correnti;Trasferimenti correnti;Trasferimenti correnti a Famiglie;Interventi assistenziali;Altri assegni e sussidi assistenziali
283;1.019,16;COMUNE DI PISCINAS; ;ASSEGNAZIONI L.R. 8/99, ART. 4, COMMI 1, 2, 3, 7 E LETTERE A) B) C) E L.R. 09/04 ART. 1, LETTERA F) - SISTEMAZIONE CONTABILE - ANNUALITA 2021 -;22/02/2022;1917;0;88;1;Spese correnti;Trasferimenti correnti;Trasferimenti correnti a Famiglie;Interventi assistenziali;Altri assegni e sussidi assistenziali
284;2.424,73;COMUNE DI PISCINAS; ;ASSEGNAZIONI L.R. 8/99, ART. 4, COMMI 1, 2, 3, 7 E LETTERE A) B) C) E L.R. 09/04 ART. 1, LETTERA F) - SISTEMAZIONE CONTABILE - ANNUALITA 2021 -;22/02/2022;1917;0;212;1;Spese correnti;Trasferimenti correnti;Trasferimenti correnti a Famiglie;Interventi assistenziali;Altri assegni e sussidi assistenziali
285;2.695,00;AUTONOLEGGIO FRACCI ALESSANDRO;8417474F46;SALDO Fatt.n. FE5  del 04/02/2022 SERVIZIO TRASPORTO SCOLASTICO PRESSO SCUOLA PRIMARIA E SECONDARIA GIBA -  MESE DI GENNAIO 2022;22/02/2022;1417;3;83;1;Spese correnti;Acquisto di beni e servizi;Acquisto di servizi;Contratti di servizio pubblico;Contratti di servizio di trasporto scolastico
286;983,32;ISAR COOPERATIVA SOCIALE ONLUS;Z6E33B9DBA;SALDO Fatt.n. 21  del 08/02/2022 SERVIZIO PULIZIE UFFICI COMUNALI E BIBLIOTECA - MESE DI GENNAIO 2022 -;22/02/2022;1036;0;71;1;Spese correnti;Acquisto di beni e servizi;Acquisto di servizi;Servizi ausiliari per il funzionamento dell'ente;Servizi di pulizia e lavanderia
287;377,5;CAMBULA VANNINA;Z4D3451851;SALDO Fatt.n. 1  del 31/01/2022 FORNITURA DI N. 75 CICLAMINI E N. 10 STELLE DI NATALE -;22/02/2022;1092;0;324;1;Spese correnti;Acquisto di beni e servizi;Acquisto di beni;Flora e Fauna;Flora selvatica e non selvatica
288;1.344,95;CLINCO MARINELLA MATERIALI EDILI;ZA834FF4F1;SALDO Fatt.n. 07  del 11/02/2022 FORNITURA MATERIALI E ATTREZZATURE PER GESTIONE CANTIERE FORESTAZIONE - ANNUALITA 2020 -;22/02/2022;1742;3;344;1;Spese correnti;Acquisto di beni e servizi;Acquisto di servizi;Altri servizi;Altri servizi diversi n.a.c.
289;524,6;MAGGIOLI SPA -;Z48344DF15;SALDO Fatt.n. 0002100253  del 18/01/2022 AGGIORNAMENTO SERVIZI ENTI ON LINE - RAGIONERIA - PERSONALE - PERIDO 01.01.2022/31.12.2022 -;22/02/2022;1046;1;319;1;Spese correnti;Acquisto di beni e servizi;Acquisto di servizi;Altri servizi;Altri servizi diversi n.a.c.
290;17,43;ENEL ENERGIA S.P.A.;84181751C6;SALDO Fatt.n. 004198735190  del 06/02/2022 Descrizione Contratto CONSIPEE17_7_FIX18M - CONSUMI IMPIANTO SEMAFORICO   - MESE DI GENNAIO 2022 -;22/02/2022;1937;0;50;1;Spese correnti;Acquisto di beni e servizi;Acquisto di servizi;Utenze e canoni;Energia elettrica
290;20,92;ENEL ENERGIA S.P.A.;84181751C6;SALDO Fatt.n. 004204390224  del 11/02/2022 Descrizione Contratto CONSIPEE17_7_FIX18M - - CONSUMI ELETTRICI PIAZZETTA SOLIVARIU    - MESE DI GENNAIO 2022 -;22/02/2022;1937;0;50;1;Spese correnti;Acquisto di beni e servizi;Acquisto di servizi;Utenze e canoni;Energia elettrica
290;92,07;ENEL ENERGIA S.P.A.;84181751C6;SALDO Fatt.n. 004197978598  del 05/02/2022 Descrizione Contratto CONSIPEE17_7_FIX18M - CONSUMI ILLUMINAZIONE PUBBLICA P.E.E.P. - MESE DI GENNAIO 2022 -;22/02/2022;1937;0;50;1;Spese correnti;Acquisto di beni e servizi;Acquisto di servizi;Utenze e canoni;Energia elettrica
290;163,83;ENEL ENERGIA S.P.A.;84181751C6;SALDO Fatt.n. 004197978606  del 05/02/2022 Descrizione Contratto CONSIPEE17_7_FIX18M - CONSUMI ILLUMINAZIONE PUBBLICA SOLIVARIU  - MESE DI GENNAIO 2022 -;22/02/2022;1937;0;50;1;Spese correnti;Acquisto di beni e servizi;Acquisto di servizi;Utenze e canoni;Energia elettrica
290;305;ENEL ENERGIA S.P.A.;84181751C6;SALDO Fatt.n. 004197978600  del 05/02/2022 Descrizione Contratto CONSIPEE17_7_FIX18M - CONSUMI ILLUMINAZIONE PUBBLICA VIA MURRECCI - MESE DI GENNAIO 2022 -;22/02/2022;1937;0;50;1;Spese correnti;Acquisto di beni e servizi;Acquisto di servizi;Utenze e canoni;Energia elettrica
290;1.150,86;ENEL ENERGIA S.P.A.;84181751C6;SALDO Fatt.n. 004205344118  del 12/02/2022 Descrizione Contratto CONSIPEE17_7_FIX18M -  CONSUMI ILLUMINAZIONE PUBBLICA VIA CAMPAGNA   - MESE DI GENNAIO 2022 -;22/02/2022;1937;0;50;1;Spese correnti;Acquisto di beni e servizi;Acquisto di servizi;Utenze e canoni;Energia elettrica
291;29,94;ENEL ENERGIA S.P.A.;84181751C6;SALDO Fatt.n. 004197978602  del 05/02/2022 Descrizione Contratto CONSIPEE17_7_FIX18M - CONSUMI ELETTRICI EX SCUOLE MEDIE  - MESE DI GENNAIO 2022 -;22/02/2022;1386;2;51;1;Spese correnti;Acquisto di beni e servizi;Acquisto di servizi;Utenze e canoni;Energia elettrica
292;130,83;ENEL ENERGIA S.P.A.;84181751C6;SALDO Fatt.n. 004197978601  del 05/02/2022 Descrizione Contratto CONSIPEE17_7_FIX18M - CONSUMI ELETTRICI SCUOLE ELEMENTARI  - MESE DI GENNAIO 2022 -;22/02/2022;1366;3;52;1;Spese correnti;Acquisto di beni e servizi;Acquisto di servizi;Utenze e canoni;Energia elettrica
293;-32,82;ENEL ENERGIA S.P.A.;84181751C6;SALDO Fatt.n. 008403288745  del 25/11/2021 ACCREDITI DIVERSI;22/02/2022;1087;2;53;1;Spese correnti;Acquisto di beni e servizi;Acquisto di servizi;Utenze e canoni;Energia elettrica
293;21,3;ENEL ENERGIA S.P.A.;84181751C6;SALDO Fatt.n. 004197978599  del 05/02/2022 Descrizione Contratto CONSIPEE17_7_FIX18M - CONSUMI ELETTRICI EX CASA COMUNALE  - MESE DI GENNAIO 2022 -;22/02/2022;1087;2;53;1;Spese correnti;Acquisto di beni e servizi;Acquisto di servizi;Utenze e canoni;Energia elettrica
293;51,01;ENEL ENERGIA S.P.A.;84181751C6;SALDO Fatt.n. 004197978605  del 05/02/2022 Descrizione Contratto CONSIPEE17_7_FIX18M - CONSUMI ELETTRICI BIBLIOTECA COMUNALE - MESE DI GENNAIO 2022 -;22/02/2022;1087;2;53;1;Spese correnti;Acquisto di beni e servizi;Acquisto di servizi;Utenze e canoni;Energia elettrica
293;517,17;ENEL ENERGIA S.P.A.;84181751C6;SALDO Fatt.n. 004205344120  del 12/02/2022 Descrizione Contratto CONSIPEE17_7_FIX18M - CONSUMI ELETTRICI PALAZZO COMUNALE   - MESE DI GENNAIO 2022 -;22/02/2022;1087;2;53;1;Spese correnti;Acquisto di beni e servizi;Acquisto di servizi;Utenze e canoni;Energia elettrica
294;15,56;ENEL ENERGIA S.P.A.;84181751C6;SALDO Fatt.n. 004204390222  del 11/02/2022 Descrizione Contratto CONSIPEE17_7_FIX18M - - CONSUMI ELETTRICI CAMPO POLIVALENTE - MESE DI GENNAIO 2022 -;22/02/2022;1826;1;54;1;Spese correnti;Acquisto di beni e servizi;Acquisto di servizi;Utenze e canoni;Energia elettrica
294;123,44;ENEL ENERGIA S.P.A.;84181751C6;SALDO Fatt.n. 004198735188  del 06/02/2022 Descrizione Contratto CONSIPEE17_7_FIX18M - CONSUMI ELETTRICI CAMPO SPORTIVO   - MESE DI GENNAIO 2022 -;22/02/2022;1826;1;54;1;Spese correnti;Acquisto di beni e servizi;Acquisto di servizi;Utenze e canoni;Energia elettrica
295;10,58;ENEL ENERGIA S.P.A.;84181751C6;SALDO Fatt.n. 004204390223  del 11/02/2022 Descrizione Contratto CONSIPEE17_7_FIX18M - CONSUMI ELETTRICI VILLINO SALAZAR - MESE DI GENNAIO 2022 -;22/02/2022;1526;0;55;1;Spese correnti;Acquisto di beni e servizi;Acquisto di servizi;Utenze e canoni;Energia elettrica
295;23,92;ENEL ENERGIA S.P.A.;84181751C6;SALDO Fatt.n. 004205344119  del 12/02/2022 Descrizione Contratto CONSIPEE17_7_FIX18M - - CONSUMI ELETTRICI CENTRO SOCIALE    - MESE DI GENNAIO 2022 -;22/02/2022;1526;0;55;1;Spese correnti;Acquisto di beni e servizi;Acquisto di servizi;Utenze e canoni;Energia elettrica
295;143,44;ENEL ENERGIA S.P.A.;84181751C6;SALDO Fatt.n. 004198735189  del 06/02/2022 Descrizione Contratto CONSIPEE17_7_FIX18M - - CONSUMI ELETTRICI CENTRO SERVIZI  - MESE DI GENNAIO 2022 -;22/02/2022;1526;0;55;1;Spese correnti;Acquisto di beni e servizi;Acquisto di servizi;Utenze e canoni;Energia elettrica
296;26,5;ENEL ENERGIA S.P.A.;84181751C6;SALDO Fatt.n. 004197978603  del 05/02/2022 Descrizione Contratto CONSIPEE17_7_FIX18M - CONSUMI ELETTRICI CIMITERO  - MESE DI GENNAIO 2022 -;22/02/2022;1656;1;56;1;Spese correnti;Acquisto di beni e servizi;Acquisto di servizi;Utenze e canoni;Energia elettrica
297;22,16;ENEL ENERGIA S.P.A.;84181751C6;SALDO Fatt.n. 004197978604  del 05/02/2022 Descrizione Contratto CONSIPEE17_7_FIX18M - CONSUMI ILLUMINAZIONE PIAZZA ANFITEATRO  - MESE DI GENNAIO 2022 -;22/02/2022;1090;0;57;1;Spese correnti;Acquisto di beni e servizi;Acquisto di servizi;Utenze e canoni;Energia elettrica
298;356,2;ENEL ENERGIA S.P.A.;84181751C6;SALDO Fatt.n. 004205344121  del 12/02/2022 Descrizione Contratto CONSIPEE17_7_FIX18M - - CONSUMI ELETTRICI PIAZZA DON GARAU - MESE DI GENNAIO 2022 -;22/02/2022;1086;0;58;1;Spese correnti;Acquisto di beni e servizi;Acquisto di servizi;Utenze e canoni;Energia elettrica
299;784,36;DIVERSI; ;INDENNITA DI FUNZIONE SINDACO E ASSESSORI - MESE DI FEBBRAIO 2022 -;24/02/2022;1001;0;59;1;Spese correnti;Acquisto di beni e servizi;Acquisto di servizi;Organi e incarichi istituzionali dell'amministrazione;Organi istituzionali dell'amministrazione - Indennità
308;332;SEPEL SRL;Z56350266A;SALDO Fatt.n. 427/2  del 22/02/2022 ABBONAMENTO ALLA RIVISTA  LO STATO CIVILE ITALIANO - ANNO 2022 -;25/02/2022;1043;0;74;1;Spese correnti;Acquisto di beni e servizi;Acquisto di beni;Altri beni di consumo;Carta, cancelleria e stampati
309;2.600,00;CALAMINA FABIO;Z7D2EA08E2;SALDO Fatt.n. 2  del 14/02/2022 PREDISPOSIZIONE DOCUMENTAZIONE CARTE TEMATICHE E SPECIALISTICHE PDS E CONSULENZA SUPPORTO RUP - CANTIERE FORESTAZIONE ANNUALITA 2020 -;25/02/2022;1742;3;269;1;Spese correnti;Acquisto di beni e servizi;Acquisto di servizi;Altri servizi;Altri servizi diversi n.a.c.
310;2.977,00;ESSE & TI ASSICURAZIONI S.N.C.;ZCA34DB3C9;AFFIDAMENTO DI SERVIZI ASSICICURATIVI - R.C.A. AUTOMEZZI COMUNALI ANNO 2022 -;25/02/2022;1057;1;6;1;Spese correnti;Altre spese correnti;Premi di assicurazione;Premi di assicurazione contro i danni;Altri premi di assicurazione contro i danni
311;1.220,00;AGROCUI SRL;Z5E32976E5;SALDO Fatt.n. 2/PA  del 21/02/2022 FORNITURA ATTREZZATURE SPECIFICHE PER LA MANUTENZIONE DEL VERDE- CANTIERE FORESTAZIONE ANNUALITA 2020 -;25/02/2022;1742;3;344;1;Spese correnti;Acquisto di beni e servizi;Acquisto di servizi;Altri servizi;Altri servizi diversi n.a.c.
312;57,87;TECNOCASIC  S.P.A.;Z6434DAFD3;SALDO Fatt.n. PA0120/22  del 15/02/2022 SERVIZIO DI SMALTIMENTO RSU FRAZIONE SECCO INDIFFERENZIATO - ECOTASSA SALDO ANNO 2021 -;25/02/2022;1739;0;5;1;Spese correnti;Acquisto di beni e servizi;Acquisto di servizi;Contratti di servizio pubblico;Contratti di servizio per il conferimento in discarica dei rifiuti
313;3.564,88;DITTA DIANA CLAUDIO;ZAC34467F2;SALDO Fatt.n. FPA 14/22  del 18/02/2022 FORNITURA E POSA IN OPERA DI N. 12 CORPI ILLUMINANTI AL LED (RELAMPING) PRESSO LA VIA SALAZAR -;25/02/2022;3212;0;316;2;Spese in conto capitale;Investimenti fissi lordi e acquisto di terreni;Beni materiali;Beni immobili;Fabbricati ad uso commerciale
314;330,44;MONDOFFICE S.R.L.;Z613497399;SALDO Fatt.n. P0019703  del 15/02/2022 FORNITURA CANCELLERIA VARIA AD USO DEGLI UFFICI COMUNALI -;28/02/2022;1046;0;345;1;Spese correnti;Acquisto di beni e servizi;Acquisto di beni;Altri beni di consumo;Carta, cancelleria e stampati
315;315,07;COMUNE DI PISCINAS; ;REINTEGRO SPESE TENUTA C/C POSTALE 11437092 PRESSO POSTE ITALIANE S.P.A. - PERIODO GENNAIO/DICEMBRE 2021 -;28/02/2022;1046;2;197;1;Spese correnti;Acquisto di beni e servizi;Acquisto di servizi;Servizi amministrativi;Spese postali
317;258;SOGGETTI DIVERSI; ;L. 162/98 PIANI PERSONALIZZATI MESI DI GENNAIO E FEBBRAIO 2022 -;14/03/2022;1920;15;16;1;Spese correnti;Trasferimenti correnti;Trasferimenti correnti a Famiglie;Interventi assistenziali;Altri assegni e sussidi assistenziali
318;308;SOGGETTI DIVERSI; ;L. 162/98 PIANI PERSONALIZZATI  MESI DI GENNAIO E FEBBRAIO -;14/03/2022;1920;15;39;1;Spese correnti;Trasferimenti correnti;Trasferimenti correnti a Famiglie;Interventi assistenziali;Altri assegni e sussidi assistenziali
319;533,92;SOGGETTI DIVERSI; ;LL.RR. 11/85 E 43/93 - PROVVIDENZE MESE DI GENNAIO 2022 -;14/03/2022;1916;0;94;1;Spese correnti;Trasferimenti correnti;Trasferimenti correnti a Famiglie;Interventi assistenziali;Altri assegni e sussidi assistenziali
320;99,31;SOGGETTI DIVERSI; ;L. 162/98 PIANI PERSONALIZZATI  MESE DI FEBBRAIO 2022 -;14/03/2022;1920;15;26;1;Spese correnti;Trasferimenti correnti;Trasferimenti correnti a Famiglie;Interventi assistenziali;Altri assegni e sussidi assistenziali
321;198,9;SOGGETTI DIVERSI; ;L. 162/98 PIANI PERSONALIZZATI  MESE DI FEBBRAIO 2022.;14/03/2022;1920;15;19;1;Spese correnti;Trasferimenti correnti;Trasferimenti correnti a Famiglie;Interventi assistenziali;Altri assegni e sussidi assistenziali
322;147,67;SOGGETTI DIVERSI; ;L. 162/98 PIANI PERSONALIZZATI  MESE DI FEBBRAIO 2022.;14/03/2022;1920;15;13;1;Spese correnti;Trasferimenti correnti;Trasferimenti correnti a Famiglie;Interventi assistenziali;Altri assegni e sussidi assistenziali
323;286,54;SOGGETTI DIVERSI; ;L. 162/98 PIANI PERSONALIZZATI  MESE DI FEBBRAIO 2022.;14/03/2022;1920;15;15;1;Spese correnti;Trasferimenti correnti;Trasferimenti correnti a Famiglie;Interventi assistenziali;Altri assegni e sussidi assistenziali
324;127,16;SOGGETTI DIVERSI; ;L. 162/98 PIANI PERSONALIZZATI  MESE DI FEBBRAIO 2022.;14/03/2022;1920;15;12;1;Spese correnti;Trasferimenti correnti;Trasferimenti correnti a Famiglie;Interventi assistenziali;Altri assegni e sussidi assistenziali
325;99,25;SOGGETTI DIVERSI; ;L. 162/98 PIANI PERSONALIZZATI  MESE DI FEBBRAIO 2022.;14/03/2022;1920;15;49;1;Spese correnti;Trasferimenti correnti;Trasferimenti correnti a Famiglie;Interventi assistenziali;Altri assegni e sussidi assistenziali
326;112,75;SOGGETTI DIVERSI; ;L. 162/98 PIANI PERSONALIZZATI  MESE DI FEBBRAIO 2022.;14/03/2022;1920;15;45;1;Spese correnti;Trasferimenti correnti;Trasferimenti correnti a Famiglie;Interventi assistenziali;Altri assegni e sussidi assistenziali
327;297,92;SOGGETTI DIVERSI; ;L. 162/98 PIANI PERSONALIZZATI  MESE DI FEBBRAIO 2022.;14/03/2022;1920;15;42;1;Spese correnti;Trasferimenti correnti;Trasferimenti correnti a Famiglie;Interventi assistenziali;Altri assegni e sussidi assistenziali
328;198,9;SOGGETTI DIVERSI; ;L. 162/98 PIANI PERSONALIZZATI  MESE DI FEBBRAIO 2022.;14/03/2022;1920;15;37;1;Spese correnti;Trasferimenti correnti;Trasferimenti correnti a Famiglie;Interventi assistenziali;Altri assegni e sussidi assistenziali
329;307,65;SOGGETTI DIVERSI; ;L. 162/98 PIANI PERSONALIZZATI  MESE DI FEBBRAIO 2022.;14/03/2022;1920;15;33;1;Spese correnti;Trasferimenti correnti;Trasferimenti correnti a Famiglie;Interventi assistenziali;Altri assegni e sussidi assistenziali
330;375;ABILTECNO Societa' Cooperativa Onlus; ;L. 162/98 PIANI PERSONALIZZATI  MESE DI FEBBRAIO 2022.;14/03/2022;1920;15;30;1;Spese correnti;Trasferimenti correnti;Trasferimenti correnti a Famiglie;Interventi assistenziali;Altri assegni e sussidi assistenziali
331;375;SOGGETTI DIVERSI; ;L. 162/98 PIANI PERSONALIZZATI  MESE DI FEBBRAIO 2022.;14/03/2022;1920;15;14;1;Spese correnti;Trasferimenti correnti;Trasferimenti correnti a Famiglie;Interventi assistenziali;Altri assegni e sussidi assistenziali
332;166,66;ABILTECNO Societa' Cooperativa Onlus; ;L. 162/98 PIANI PERSONALIZZATI  MESE DI FEBBRAIO 2022.;14/03/2022;1920;15;11;1;Spese correnti;Trasferimenti correnti;Trasferimenti correnti a Famiglie;Interventi assistenziali;Altri assegni e sussidi assistenziali
333;1.494,13;SOGGETTI DIVERSI; ;PROGETTI RITORNARE A CASA PLUS   - MESE DI FEBBRAIO 2022 -;14/03/2022;1920;0;65;1;Spese correnti;Trasferimenti correnti;Trasferimenti correnti a Famiglie;Interventi assistenziali;Altri assegni e sussidi assistenziali
334;422,9;SOGGETTI DIVERSI; ;L. 162/98 PIANI PERSONALIZZATI  MESE DI FEBBRAIO 2022.;14/03/2022;1920;15;35;1;Spese correnti;Trasferimenti correnti;Trasferimenti correnti a Famiglie;Interventi assistenziali;Altri assegni e sussidi assistenziali
335;875,14;SOGGETTI DIVERSI; ;PROGETTI RITORNARE A CASA PLUS  I SEMESTRE . (CAREGIVER) - MESE DI GENNAIO 2022 -;14/03/2022;1920;0;66;1;Spese correnti;Trasferimenti correnti;Trasferimenti correnti a Famiglie;Interventi assistenziali;Altri assegni e sussidi assistenziali
336;553,01;SOGGETTI DIVERSI; ;PROGETTI RITORNARE A CASA PLUS  I SEMESTRE  - MESE DI GENNAIO 2022 -;14/03/2022;1920;0;67;1;Spese correnti;Trasferimenti correnti;Trasferimenti correnti a Famiglie;Interventi assistenziali;Altri assegni e sussidi assistenziali
337;156,25;SOGGETTI DIVERSI; ;L. 162/98 PIANI PERSONALIZZATI  MESE DI FEBBRAIO 2022.;14/03/2022;1920;15;47;1;Spese correnti;Trasferimenti correnti;Trasferimenti correnti a Famiglie;Interventi assistenziali;Altri assegni e sussidi assistenziali
338;429;SOGGETTI DIVERSI; ;L. 162/98 PIANI PERSONALIZZATI  MESE DI GENNAIO 2022.;14/03/2022;1920;15;25;1;Spese correnti;Trasferimenti correnti;Trasferimenti correnti a Famiglie;Interventi assistenziali;Altri assegni e sussidi assistenziali
339;200;SOGGETTI DIVERSI; ;INCARICO  AMMINISTRATORE DI SOSTEGNO EX DECRETO GIUDICE TUTELARE VG 4728/17 DEL 09.07.2020 - EQUO INDENNIZZO  FEBBRAIO 2022.;14/03/2022;1920;13;73;1;Spese correnti;Acquisto di beni e servizi;Acquisto di servizi;Prestazioni professionali e specialistiche;Altre prestazioni professionali e specialistiche n.a.c.
340;1.467,09;COMUNE DI CARBONIA; ;GESTIONE SISTEMA BIBLIOTECARIO INTERURBANO DEL SULCIS (SBIS)  - QUOTA ADESIONE E PARTECIPAZIONE ANNUALITA 2021.;14/03/2022;1478;0;295;1;Spese correnti;Trasferimenti correnti;Trasferimenti correnti a Amministrazioni Pubbliche;Trasferimenti correnti a Amministrazioni Locali;Trasferimenti correnti a Comuni
342;134,32;MINISTERO  - DIPARTIMENTO AFFARI INTERNI; ;CORRISPETTIVI DA VERSARE ALLO STATO PER IL RILASCIO DELLE CARTE DIDENTITA ELETTRONICHE (CIE)  - MESE DI GENNAIO 2022 -;14/03/2022;1037;1;90;1;Spese correnti;Trasferimenti correnti;Trasferimenti correnti a Amministrazioni Pubbliche;Trasferimenti correnti a Amministrazioni Centrali;Trasferimenti correnti a Ministeri
343;167,9;MINISTERO  - DIPARTIMENTO AFFARI INTERNI; ;CORRISPETTIVI DA VERSARE ALLO STATO PER IL RILASCIO DELLE CARTE DIDENTITA ELETTRONICHE (CIE) MESE DI FEBBRAIO 2022;14/03/2022;1037;1;90;1;Spese correnti;Trasferimenti correnti;Trasferimenti correnti a Amministrazioni Pubbliche;Trasferimenti correnti a Amministrazioni Centrali;Trasferimenti correnti a Ministeri
344;38.155,45;DITTA FANNI CRISTIAN;8891138F2C;SALDO Fatt.n. 33/FE  del 06/03/2022 LAVORI MANUTENZIONE STRAORDINARIA E MESSA IN SICUREZZA EDIFICIO COMUNALE DI VIA PIEMONTE -;15/03/2022;3006;0;243;2;Spese in conto capitale;Investimenti fissi lordi e acquisto di terreni;Beni materiali;Beni immobili;Beni immobili n.a.c.
345;805,81;VERDE VITA SRL;Z2734D619D;SALDO Fatt.n. 52/CCP  del 28/02/2022 CONFERIMENTO RIFIUTI CER 20 01 08 C/O IMPIANTO DI COMPOSTAGGIO - MESE DI FEBBRAIO 2022 -;16/03/2022;1739;0;1;1;Spese correnti;Acquisto di beni e servizi;Acquisto di servizi;Contratti di servizio pubblico;Contratti di servizio per il conferimento in discarica dei rifiuti
346;-162;KUWAIT PETROLEUM ITALIA SPA;Z5928641D0;SALDO Fatt.n. VW00007955  del 15/02/2022 NOTA DI CREDITO SU FORNITURA GENNAIO 2022 -;16/03/2022;1057;0;4;1;Spese correnti;Acquisto di beni e servizi;Acquisto di beni;Altri beni di consumo;Carburanti, combustibili e lubrificanti
346;462,99;KUWAIT PETROLEUM ITALIA SPA;Z5928641D0;SALDO Fatt.n. PJ05054084  del 28/02/2022 FORNITURA CARBURANTE MEZZI COMUNALI - MESE DI FEBBRAIO 2022 -;16/03/2022;1057;0;4;1;Spese correnti;Acquisto di beni e servizi;Acquisto di beni;Altri beni di consumo;Carburanti, combustibili e lubrificanti
347;1.220,00;FANNI VINCENZO;ZAF3451C2E;SALDO Fatt.n. 4-FE  del 11/02/2022 SERVIZIO DI NOLO A CALDO MEZZI MECCANICI - CANTIERE FORESTAZIONE ANNUALITA 2020 -;16/03/2022;1742;3;344;1;Spese correnti;Acquisto di beni e servizi;Acquisto di servizi;Altri servizi;Altri servizi diversi n.a.c.
348;198;TEKNOSERVICE S.R.L.;Z2D2FDFC27;SALDO Fatt.n. 547/PA  del 28/02/2022 SERVIZIO RACCOLTA E TRASPORTO RSU ABITAZIONI SOGGETTI POSITIVI COVID 19 - RACCOLTA EXTRA DEL 26.08.2021 -;16/03/2022;1738;0;179;1;Spese correnti;Acquisto di beni e servizi;Acquisto di servizi;Contratti di servizio pubblico;Contratti di servizio per la raccolta rifiuti
349;5.875,84;TEKNOSERVICE S.R.L.;Z2734449FB;SALDO Fatt.n. 515/PA  del 28/02/2022 SERVIZIO DI RACCOLTA R.S.U. DIFFERENZIATA - MESE DI FEBBRAIO 2022 -;16/03/2022;1738;0;327;1;Spese correnti;Acquisto di beni e servizi;Acquisto di servizi;Contratti di servizio pubblico;Contratti di servizio per la raccolta rifiuti
350;488;MEDIANET SRL;ZBD2A99DFB;SALDO Fatt.n. 3631/WT  del 01/03/2022 CANONE COTRATTO TELEFONIA FISSA PERIODDO MARZO/APRILE 2022 -;16/03/2022;1043;2;64;1;Spese correnti;Acquisto di beni e servizi;Acquisto di servizi;Utenze e canoni;Telefonia fissa
351;983,32;ISAR COOPERATIVA SOCIALE ONLUS;Z6E33B9DBA;SALDO Fatt.n. 34  del 08/03/2022 SERVIZIO DI PULIZIE PALAZZO COMUNALE E BIBLIOTECA - MESE DI FEBBRAIO 2022 -;16/03/2022;1036;0;71;1;Spese correnti;Acquisto di beni e servizi;Acquisto di servizi;Servizi ausiliari per il funzionamento dell'ente;Servizi di pulizia e lavanderia
352;130,44;SOGGETTI DIVERSI; ;L. 162/98 PIANI PERSONALIZZATI  MESE DI FEBBRAIO 2022 -;17/03/2022;1920;15;44;1;Spese correnti;Trasferimenti correnti;Trasferimenti correnti a Famiglie;Interventi assistenziali;Altri assegni e sussidi assistenziali
353;116,62;SOGGETTI DIVERSI; ;L. 162/98 PIANI PERSONALIZZATI  MESE DI FEBBRAIO 2022 -;17/03/2022;1920;15;48;1;Spese correnti;Trasferimenti correnti;Trasferimenti correnti a Famiglie;Interventi assistenziali;Altri assegni e sussidi assistenziali
354;180,89;SOGGETTI DIVERSI; ;L. 162/98 PIANI PERSONALIZZATI  MESE DI FEBBRAIO 2022 -;17/03/2022;1920;15;46;1;Spese correnti;Trasferimenti correnti;Trasferimenti correnti a Famiglie;Interventi assistenziali;Altri assegni e sussidi assistenziali
355;400,07;SOGGETTI DIVERSI; ;L. 162/98 PIANI PERSONALIZZATI  MESE DI FEBBRAIO 2022 -;17/03/2022;1920;15;40;1;Spese correnti;Trasferimenti correnti;Trasferimenti correnti a Famiglie;Interventi assistenziali;Altri assegni e sussidi assistenziali
356;206;SOGGETTI DIVERSI; ;L. 162/98 PIANI PERSONALIZZATI  MESE DI FEBBRAIO 2022 -;17/03/2022;1920;15;36;1;Spese correnti;Trasferimenti correnti;Trasferimenti correnti a Famiglie;Interventi assistenziali;Altri assegni e sussidi assistenziali
357;159,37;SOGGETTI DIVERSI; ;L. 162/98 PIANI PERSONALIZZATI  MESE DI FEBBRAIO 2022 -;17/03/2022;1920;15;27;1;Spese correnti;Trasferimenti correnti;Trasferimenti correnti a Famiglie;Interventi assistenziali;Altri assegni e sussidi assistenziali
358;953,44;SOGGETTI DIVERSI; ;PROGETTI RITORNARE A CASA PLUS  I SEMESTRE  - MESE DI FEBBRAIO 2022 -;17/03/2022;1920;0;69;1;Spese correnti;Trasferimenti correnti;Trasferimenti correnti a Famiglie;Interventi assistenziali;Altri assegni e sussidi assistenziali
359;3.165,00;LATTERIA SOCIALE SANTADI SOC. COOP. AGRICOLA; ;RIMBORSO BUONI PASTO - DELIB. G.R. N. 52/16 DEL 23.10.2020 E DELIB. G.R. N. 63/13 DEL 11.12.2020 RECANTE DISPOSIZIONI A FAVORE DELLE FAMIGLIE INDIGENTI. PROGRAMMA DI INTERVENTO E RELATIVE MODALITA DI ATTUAZIONE. ART. 31 L.R. 23.07.2020 N. 22 -;17/03/2022;1919;9;210;1;Spese correnti;Trasferimenti correnti;Trasferimenti correnti a Famiglie;Interventi assistenziali;Altri assegni e sussidi assistenziali
360;190,83;SOGGETTI DIVERSI; ;L. 162/98 PIANI PERSONALIZZATI  MESE DI FEBBRAIO 2022 -;17/03/2022;1920;15;34;1;Spese correnti;Trasferimenti correnti;Trasferimenti correnti a Famiglie;Interventi assistenziali;Altri assegni e sussidi assistenziali
361;1.333,33;COOP. SOCIALE ADEST A R.L. ONLUS; ;PROGETTI RITORNARE A CASA PLUS  I SEMESTRE - MESE DI FEBBRAIO 2022 -;17/03/2022;1920;0;68;1;Spese correnti;Trasferimenti correnti;Trasferimenti correnti a Famiglie;Interventi assistenziali;Altri assegni e sussidi assistenziali
362;568,74;COOP. SOCIALE ADEST A R.L. ONLUS; ;L. 162/98 PIANI PERSONALIZZATI MESI DI GENNAIO/FEBBRAIO 2022 -;17/03/2022;1920;15;17;1;Spese correnti;Trasferimenti correnti;Trasferimenti correnti a Famiglie;Interventi assistenziali;Altri assegni e sussidi assistenziali
363;363,74;COOP. SOCIALE ADEST A R.L. ONLUS; ;L. 162/98 PIANI PERSONALIZZATI MESI DI GENNAIO/FEBBRAIO 2022 -;17/03/2022;1920;15;18;1;Spese correnti;Trasferimenti correnti;Trasferimenti correnti a Famiglie;Interventi assistenziali;Altri assegni e sussidi assistenziali
364;500;COOP. SOCIALE ADEST A R.L. ONLUS; ;L. 162/98 PIANI PERSONALIZZATI MESI DI GENNAIO/FEBBRAIO 2022 -;17/03/2022;1920;15;21;1;Spese correnti;Trasferimenti correnti;Trasferimenti correnti a Famiglie;Interventi assistenziali;Altri assegni e sussidi assistenziali
365;2.101,66;COOP. SOCIALE ADEST A R.L. ONLUS; ;L. 162/98 PIANI PERSONALIZZATI MESI DI GENNAIO/FEBBRAIO 2022 -;17/03/2022;1920;15;22;1;Spese correnti;Trasferimenti correnti;Trasferimenti correnti a Famiglie;Interventi assistenziali;Altri assegni e sussidi assistenziali
366;375;COOP. SOCIALE ADEST A R.L. ONLUS; ;L. 162/98 PIANI PERSONALIZZATI MESI DI GENNAIO/FEBBRAIO 2022 -;17/03/2022;1920;15;23;1;Spese correnti;Trasferimenti correnti;Trasferimenti correnti a Famiglie;Interventi assistenziali;Altri assegni e sussidi assistenziali
367;485;COOP. SOCIALE ADEST A R.L. ONLUS; ;L. 162/98 PIANI PERSONALIZZATI MESI DI GENNAIO/FEBBRAIO 2022 -;17/03/2022;1920;15;28;1;Spese correnti;Trasferimenti correnti;Trasferimenti correnti a Famiglie;Interventi assistenziali;Altri assegni e sussidi assistenziali
368;485;COOP. SOCIALE ADEST A R.L. ONLUS; ;L. 162/98 PIANI PERSONALIZZATI MESI DI GENNAIO/FEBBRAIO 2022 -;17/03/2022;1920;15;29;1;Spese correnti;Trasferimenti correnti;Trasferimenti correnti a Famiglie;Interventi assistenziali;Altri assegni e sussidi assistenziali
369;858;COOP. SOCIALE ADEST A R.L. ONLUS; ;L. 162/98 PIANI PERSONALIZZATI MESI DI GENNAIO/FEBBRAIO 2022 -;17/03/2022;1920;15;36;1;Spese correnti;Trasferimenti correnti;Trasferimenti correnti a Famiglie;Interventi assistenziali;Altri assegni e sussidi assistenziali
370;727,5;COOP. SOCIALE ADEST A R.L. ONLUS; ;L. 162/98 PIANI PERSONALIZZATI MESI DI GENNAIO/FEBBRAIO 2022 -;17/03/2022;1920;15;38;1;Spese correnti;Trasferimenti correnti;Trasferimenti correnti a Famiglie;Interventi assistenziali;Altri assegni e sussidi assistenziali
371;750;COOP. SOCIALE ADEST A R.L. ONLUS; ;L. 162/98 PIANI PERSONALIZZATI MESI DI GENNAIO/FEBBRAIO 2022 -;17/03/2022;1920;15;43;1;Spese correnti;Trasferimenti correnti;Trasferimenti correnti a Famiglie;Interventi assistenziali;Altri assegni e sussidi assistenziali
372;127,35;SOGGETTI DIVERSI; ;L. 162/98 PIANI PERSONALIZZATI  MESE DI FEBBRAIO 2022 -;17/03/2022;1920;15;32;1;Spese correnti;Trasferimenti correnti;Trasferimenti correnti a Famiglie;Interventi assistenziali;Altri assegni e sussidi assistenziali
373;579;SOGGETTI DIVERSI; ;L. 162/98 PIANI PERSONALIZZATI  MESE DI FEBBRAIO 2022.;17/03/2022;1920;15;25;1;Spese correnti;Trasferimenti correnti;Trasferimenti correnti a Famiglie;Interventi assistenziali;Altri assegni e sussidi assistenziali
374;319,14;SOGGETTI DIVERSI; ;L. 162/98 PIANI PERSONALIZZATI  MESE DI FEBBRAIO 2022.;17/03/2022;1920;15;24;1;Spese correnti;Trasferimenti correnti;Trasferimenti correnti a Famiglie;Interventi assistenziali;Altri assegni e sussidi assistenziali
375;159,19;SOGGETTI DIVERSI; ;L. 162/98 PIANI PERSONALIZZATI  MESE DI FEBBRAIO 2022.;17/03/2022;1920;15;41;1;Spese correnti;Trasferimenti correnti;Trasferimenti correnti a Famiglie;Interventi assistenziali;Altri assegni e sussidi assistenziali
411;16,15;ENEL ENERGIA S.P.A.;84181751C6;SALDO Fatt.n. 004211957297  del 12/03/2022 CONSUMI ELETTRICI IMPIANTO SEMAFORICO  - MESE DI FEBBRAIO 2022 -;21/03/2022;1937;0;50;1;Spese correnti;Acquisto di beni e servizi;Acquisto di servizi;Utenze e canoni;Energia elettrica
411;21,29;ENEL ENERGIA S.P.A.;84181751C6;SALDO Fatt.n. 004207562543  del 09/03/2022 CONSUMI ELETTRICI PIAZZETTA SOLIVARIU  - MESE DI FEBBRAIO 2022 -;21/03/2022;1937;0;50;1;Spese correnti;Acquisto di beni e servizi;Acquisto di servizi;Utenze e canoni;Energia elettrica
411;77,23;ENEL ENERGIA S.P.A.;84181751C6;SALDO Fatt.n. 004205836288  del 07/03/2022 CONSUMI ILLUMINAZIONE PUBBLICA PEEP  - MESE DI FEBBRAIO 2022 -;21/03/2022;1937;0;50;1;Spese correnti;Acquisto di beni e servizi;Acquisto di servizi;Utenze e canoni;Energia elettrica
411;136,47;ENEL ENERGIA S.P.A.;84181751C6;SALDO Fatt.n. 004205836298  del 07/03/2022 CONSUMI ILLUMINAZIONE PUBBLICA SOLIVARIU  - MESE DI FEBBRAIO 2022 -;21/03/2022;1937;0;50;1;Spese correnti;Acquisto di beni e servizi;Acquisto di servizi;Utenze e canoni;Energia elettrica
411;253,99;ENEL ENERGIA S.P.A.;84181751C6;SALDO Fatt.n. 004205836290  del 07/03/2022 CONSUMI ELETTRICI ILLUMINAZIONE PPUBBLICA  - MESE DI FEBBRAIO 2022 -;21/03/2022;1937;0;50;1;Spese correnti;Acquisto di beni e servizi;Acquisto di servizi;Utenze e canoni;Energia elettrica
411;885,87;ENEL ENERGIA S.P.A.;84181751C6;SALDO Fatt.n. 004213022227  del 14/03/2022 CONSUMI  ILLUMINAZIONE PUBBLICA VIA CAMPAGNA - MESE DI FEBBRAIO 2022 -;21/03/2022;1937;0;50;1;Spese correnti;Acquisto di beni e servizi;Acquisto di servizi;Utenze e canoni;Energia elettrica
412;26,22;ENEL ENERGIA S.P.A.;84181751C6;SALDO Fatt.n. 004205836293  del 07/03/2022 CONSUMI ELETTRICI EX SCUOLE MEDIE  - MESE DI FEBBRAIO 2022 -;21/03/2022;1386;2;51;1;Spese correnti;Acquisto di beni e servizi;Acquisto di servizi;Utenze e canoni;Energia elettrica
413;130,28;ENEL ENERGIA S.P.A.;84181751C6;SALDO Fatt.n. 004205836292  del 07/03/2022 CONSUMI ELETTRICI SCUOLE ELEMENTARI - MESE DI FEBBRAIO 2022 -;21/03/2022;1366;3;52;1;Spese correnti;Acquisto di beni e servizi;Acquisto di servizi;Utenze e canoni;Energia elettrica
414;-26,33;ENEL ENERGIA S.P.A.;84181751C6;SALDO Fatt.n. 004205836299  del 07/03/2022 CONSUMI ELETTRICI PIAZZA DON GARAU  - MESE DI FEBBRAIO 2022 -;21/03/2022;1087;2;53;1;Spese correnti;Acquisto di beni e servizi;Acquisto di servizi;Utenze e canoni;Energia elettrica
414;18,69;ENEL ENERGIA S.P.A.;84181751C6;SALDO Fatt.n. 004205836289  del 07/03/2022 CONSUMI ELETTRICI EX COMUNE - MESE DI FEBBRAIO 2022 -;21/03/2022;1087;2;53;1;Spese correnti;Acquisto di beni e servizi;Acquisto di servizi;Utenze e canoni;Energia elettrica
414;50,43;ENEL ENERGIA S.P.A.;84181751C6;SALDO Fatt.n. 004205836296  del 07/03/2022 CONSUMI ELETTRICI BIBLIOTECA - MESE DI FEBBRAIO 2022 -;21/03/2022;1087;2;53;1;Spese correnti;Acquisto di beni e servizi;Acquisto di servizi;Utenze e canoni;Energia elettrica
414;545,23;ENEL ENERGIA S.P.A.;84181751C6;SALDO Fatt.n. 004205836297  del 07/03/2022 CONSUMI ELETTRICI PALAZZO COMUNALE  - MESE DI FEBBRAIO 2022 -;21/03/2022;1087;2;53;1;Spese correnti;Acquisto di beni e servizi;Acquisto di servizi;Utenze e canoni;Energia elettrica
415;11,21;ENEL ENERGIA S.P.A.;84181751C6;SALDO Fatt.n. 004213022228  del 14/03/2022 CONSUMI ELETTRICI CAMPO POLIVALENTE - MESE DI FEBBRAIO 2022 -;21/03/2022;1826;1;54;1;Spese correnti;Acquisto di beni e servizi;Acquisto di servizi;Utenze e canoni;Energia elettrica
415;64,95;ENEL ENERGIA S.P.A.;84181751C6;SALDO Fatt.n. 004213022229  del 14/03/2022 CONSUMI ELETTRICI CAMPO SPORTIVO- MESE DI FEBBRAIO 2022 -;21/03/2022;1826;1;54;1;Spese correnti;Acquisto di beni e servizi;Acquisto di servizi;Utenze e canoni;Energia elettrica
416;10,58;ENEL ENERGIA S.P.A.;84181751C6;SALDO Fatt.n. 004205836291  del 07/03/2022 CONSUMI ELETTRICI VILLINO SALAZAR - MESE DI FEBBRAIO 2022 -;21/03/2022;1526;0;55;1;Spese correnti;Acquisto di beni e servizi;Acquisto di servizi;Utenze e canoni;Energia elettrica
416;63,4;ENEL ENERGIA S.P.A.;84181751C6;SALDO Fatt.n. 004205836294  del 07/03/2022 CONSUMI ELETTRICI CENTRO SOCIALE  - MESE DI FEBBRAIO 2022 -;21/03/2022;1526;0;55;1;Spese correnti;Acquisto di beni e servizi;Acquisto di servizi;Utenze e canoni;Energia elettrica
416;143,19;ENEL ENERGIA S.P.A.;84181751C6;SALDO Fatt.n. 004205836295  del 07/03/2022 CONSUMI ELETTRICI CENTRO SERVIZI  - MESE DI FEBBRAIO 2022 -;21/03/2022;1526;0;55;1;Spese correnti;Acquisto di beni e servizi;Acquisto di servizi;Utenze e canoni;Energia elettrica
417;23,99;ENEL ENERGIA S.P.A.;84181751C6;SALDO Fatt.n. 004208640720  del 10/03/2022 CONSUMI ELETTRICI CIMITERO  - MESE DI FEBBRAIO 2022 -;21/03/2022;1656;1;56;1;Spese correnti;Acquisto di beni e servizi;Acquisto di servizi;Utenze e canoni;Energia elettrica
418;27,96;ENEL ENERGIA S.P.A.;84181751C6;SALDO Fatt.n. 004208640721  del 10/03/2022 CONSUMI ELETTRICI PIAZZA ANFITEATRO - MESE DI FEBBRAIO 2022 -;21/03/2022;1090;0;57;1;Spese correnti;Acquisto di beni e servizi;Acquisto di servizi;Utenze e canoni;Energia elettrica
419;268,89;FRANCESCO CONTINI EREDI SAS;Z65322AF64;SALDO Fatt.n. 278  del 07/03/2022 SERVIZIO DI MANUTENZIONE SEMESTRALE DEGLI ESTINTORI VARI CASEGGIATI COMUNALI -;22/03/2022;1089;2;203;1;Spese correnti;Acquisto di beni e servizi;Acquisto di servizi;Manutenzione ordinaria e riparazioni;Manutenzione ordinaria e riparazioni di attrezzature
420;640,5;SAIU ELETTROSERVICE DI CADDIA GIOVANNA ANGELA;7054703D12;SALDO Fatt.n. FATTPA 8_22  del 01/03/2022 SERVIZIO MANUTENZIONE IMPIANTI DI ILLUMINAZIONE PUBBLICA - MESE DI FEBBRAIO 2022 -;22/03/2022;1938;0;85;1;Spese correnti;Acquisto di beni e servizi;Acquisto di servizi;Contratti di servizio pubblico;Contratti di servizio per l'illuminazione pubblica
421;219,6;MAGGIOLI SPA -;Z48344DF15;SALDO Fatt.n. 0002107094  del 15/02/2022 MODULISTICA GESTIONE DEL PERSONALE SERVIZIO ENTI ON LINE PERIODO 08.02.2022/07.02.2023 -;22/03/2022;1046;1;70;1;Spese correnti;Acquisto di beni e servizi;Acquisto di servizi;Altri servizi;Altri servizi diversi n.a.c.
422;2.542,93;DITTA DIANA CLAUDIO;881478705A;ACCONTO Fatt.n. FPA 17/22  del 07/03/2022 - STATO FINALE E CRE LAVORI EFFICIENTAMENTO IMPIANTO DI ILLUMINAZIONE 2021 - L.. 160/2019;22/03/2022;3002;0;217;2;Spese in conto capitale;Investimenti fissi lordi e acquisto di terreni;Beni materiali;Beni immobili;Fabbricati ad uso commerciale
423;784,36;DIVERSI; ;STIPENDI MESE DI MARZO 22;25/03/2022;1001;0;59;1;Spese correnti;Acquisto di beni e servizi;Acquisto di servizi;Organi e incarichi istituzionali dell'amministrazione;Organi istituzionali dell'amministrazione - Indennità
432;997,1;DIVERSI; ;GETTONI PRESENZA CONSIGLIERI COMUNALI PERIOO 26.10.2020/31.12.2021-;29/03/2022;1001;0;282;1;Spese correnti;Acquisto di beni e servizi;Acquisto di servizi;Organi e incarichi istituzionali dell'amministrazione;Organi istituzionali dell'amministrazione - Indennità
437;31.043,11;IMPRESA MELIS MAURIZIO S.R.L.;9010223F39;SALDO Fatt.n. 34  del 16/03/2022 ANTICIPAZIONE CONTRATTUALE - LAVORI REALIZZAZIONE PARCHEGGIO PRESSO VIA REGINA MARGHERITA -;29/03/2022;3467;1;325;2;Spese in conto capitale;Investimenti fissi lordi e acquisto di terreni;Beni materiali;Beni immobili;Altre vie di comunicazione
438;2.695,00;AUTONOLEGGIO FRACCI ALESSANDRO;8417474F46;SALDO Fatt.n. FE8  del 16/03/2022 SERVIZIO TRASPORTO SCOLASTICO - MESE DI FEBBRAIO 2022 -;30/03/2022;1417;3;83;1;Spese correnti;Acquisto di beni e servizi;Acquisto di servizi;Contratti di servizio pubblico;Contratti di servizio di trasporto scolastico
439;452,71;SOGGETTI DIVERSI; ;CONCESSIONE E LEROGAZIONE DI SUSSIDI IN FAVORE DI PARTICOLARI CATEGORIE DI CITTADINI. L.R. 8/99 - PERIODO FEBBRAIO 2022 -;30/03/2022;1916;0;94;1;Spese correnti;Trasferimenti correnti;Trasferimenti correnti a Famiglie;Interventi assistenziali;Altri assegni e sussidi assistenziali
440;170;MARKET CAMBULA RITA; ;L.R. 18/16 FONDO REGIONALE PER IL REDDITO DI INCLUSIONE SOCIALE (REIS) AGIUDU TORRAU ANNUALIT 2021.PARTE PRIMA  SUSSIDIO ECONOMICO I SEMESTRE - RIMBORSO BUONI SPESA -;30/03/2022;1919;6;311;1;Spese correnti;Trasferimenti correnti;Trasferimenti correnti a Famiglie;Interventi assistenziali;Altri assegni e sussidi assistenziali
441;150;MARKET CAMBULA RITA; ;L.R. 18/16 FONDO REGIONALE PER IL REDDITO DI INCLUSIONE SOCIALE (REIS) AGIUDU TORRAU ANNUALIT 2021.PARTE PRIMA  SUSSIDIO ECONOMICO I SEMESTRE - RIMBORSO BUONI SPESA -;30/03/2022;1919;6;311;1;Spese correnti;Trasferimenti correnti;Trasferimenti correnti a Famiglie;Interventi assistenziali;Altri assegni e sussidi assistenziali
442;225;MARKET CAMBULA RITA; ;L.R. 18/16 FONDO REGIONALE PER IL REDDITO DI INCLUSIONE SOCIALE (REIS) AGIUDU TORRAU ANNUALIT 2021.PARTE PRIMA  SUSSIDIO ECONOMICO I SEMESTRE - RIMBORSO BUONI PASTO -;30/03/2022;1919;6;311;1;Spese correnti;Trasferimenti correnti;Trasferimenti correnti a Famiglie;Interventi assistenziali;Altri assegni e sussidi assistenziali
443;787,5;COOPERATIVA DIMENSIONE UMANA  a.r.l.  ONLUS;ZDB31B66F8;SALDO Fatt.n. 379/2022  del 23/03/2022 SERVIZIO ASSISTENZA EDUCATIVA PER MINORI CON DISABILITA E/O IN SITUAZIONI DI SVANTAGGIO - PERIODO AGOSTO/DICEMBRE 2021 -;30/03/2022;1920;12;192;1;Spese correnti;Acquisto di beni e servizi;Acquisto di servizi;Contratti di servizio pubblico;Altre spese per contratti di servizio pubblico
444;457,5;HALLEY SARDEGNA S.R.L.;ZAF333B1FD;SALDO Fatt.n. 0000293  del 21/03/2022 SPID ATTIVAZIONE/RINNOVO SISTEMA SPID - ORDINE N. 6372363 DEL 30.09.2021 -;30/03/2022;1043;1;252;1;Spese correnti;Acquisto di beni e servizi;Acquisto di servizi;Servizi informatici e di telecomunicazioni;Gestione e manutenzione applicazioni
445;200;SOGGETTI DIVERSI; ;DELEGA UFFICIO AMMINISTRATORE DI SOSTEGNO EX DECRETO GIUDICE TUTELARE VG 4728/17 DEL 09.07.2020. RICONOSCIMENTO EQUO INDENNIZZO  - MESE DI MARZO 2022 -;30/03/2022;1920;13;73;1;Spese correnti;Acquisto di beni e servizi;Acquisto di servizi;Prestazioni professionali e specialistiche;Altre prestazioni professionali e specialistiche n.a.c.
446;641,71;SOGGETTI DIVERSI; ;PROGETTI RITORNARE A CASA PLUS  I SEMESTRE . (CAREGIVER) - MESE DI FEBBRAIO 2022 -;30/03/2022;1920;0;66;1;Spese correnti;Trasferimenti correnti;Trasferimenti correnti a Famiglie;Interventi assistenziali;Altri assegni e sussidi assistenziali
447;553,01;SOGGETTI DIVERSI; ;PROGETTI RITORNARE A CASA PLUS  I SEMESTRE  - MESE DI FEBBRAIO 2022 -;30/03/2022;1920;0;67;1;Spese correnti;Trasferimenti correnti;Trasferimenti correnti a Famiglie;Interventi assistenziali;Altri assegni e sussidi assistenziali
448;7.496,90;NICOLA ZUDDAS S.R.L.;ZCF346365B;SALDO Fatt.n. 2022   176/E  del 21/03/2022 FORNITURA E INSTALLAZIONE DISPOSITIVI INFORMATICI -;30/03/2022;3004;0;333;2;Spese in conto capitale;Investimenti fissi lordi e acquisto di terreni;Beni materiali;Hardware;Hardware n.a.c.
449;393,1;NICOLA ZUDDAS S.R.L.;ZCF346365B;ACCONTO Fatt.n. 2022   177/E  del 21/03/2022 FORNITURA GRUPPI DI CONTINUITA E MOUSE -;30/03/2022;3004;0;333;2;Spese in conto capitale;Investimenti fissi lordi e acquisto di terreni;Beni materiali;Hardware;Hardware n.a.c.
450;626,82;NICOLA ZUDDAS S.R.L.;ZCF346365B;SALDO Fatt.n. 2022   177/E  del 21/03/2022 FORNITURA GRUPPI DI CONTINUITA E MOUSE -;30/03/2022;1100;0;334;1;Spese correnti;Acquisto di beni e servizi;Acquisto di beni;Altri beni di consumo;Strumenti tecnico-specialistici non sanitari
451;2.344,18;NICOLA ZUDDAS S.R.L.;ZCF346365B;ACCONTO Fatt.n. 2022   178/E  del 21/03/2022 FORNITURA E INSTALLAZIONE DISPOSITIVI INFORMATICI -;30/03/2022;1100;0;334;1;Spese correnti;Acquisto di beni e servizi;Acquisto di beni;Altri beni di consumo;Strumenti tecnico-specialistici non sanitari
452;2.097,82;NICOLA ZUDDAS S.R.L.;ZCF346365B;ACCONTO Fatt.n. 2022   178/E  del 21/03/2022 FORNITURA E INSTALLAZIONE DISPOSITIVI INFORMATICI -;30/03/2022;1043;1;335;1;Spese correnti;Acquisto di beni e servizi;Acquisto di servizi;Servizi informatici e di telecomunicazioni;Gestione e manutenzione applicazioni
453;1.548,20;NICOLA ZUDDAS S.R.L.;ZCF346365B;SALDO Fatt.n. 2022   178/E  del 21/03/2022 FORNITURA E INSTALLAZIONE DISPOSITIVI INFORMATICI -;30/03/2022;1042;0;336;1;Spese correnti;Acquisto di beni e servizi;Acquisto di beni;Altri beni di consumo;Strumenti tecnico-specialistici non sanitari
454;3.891,80;NICOLA ZUDDAS S.R.L.;ZCF346365B;SALDO Fatt.n. 2022   174/E  del 21/03/2022 FORNITURA E INSTALLAZIONE DISPOSITIVI INFORMATICI -;30/03/2022;1042;0;336;1;Spese correnti;Acquisto di beni e servizi;Acquisto di beni;Altri beni di consumo;Strumenti tecnico-specialistici non sanitari
455;371,9;SOGGETTI DIVERSI; ;L.R. 18/16 FONDO REGIONALE PER IL REDDITO DI INCLUSIONE SOCIALE (REIS) AGIUDU TORRAU ANNUALITA  2021 - PROGETTI DI INCLUSIONE ATTIVA I SEMESTRE;30/03/2022;1919;6;312;1;Spese correnti;Trasferimenti correnti;Trasferimenti correnti a Famiglie;Interventi assistenziali;Altri assegni e sussidi assistenziali
456;270;CAMBULA VANNINA; ;L.R. 18/16 FONDO REGIONALE PER IL REDDITO DI INCLUSIONE SOCIALE (REIS) AGIUDU TORRAU ANNUALIT 2021.PARTE PRIMA  SUSSIDIO ECONOMICO I SEMESTRE - RIMBORSO BUONI SPESA -;31/03/2022;1919;6;311;1;Spese correnti;Trasferimenti correnti;Trasferimenti correnti a Famiglie;Interventi assistenziali;Altri assegni e sussidi assistenziali
457;340;CAMBULA VANNINA; ;L.R. 18/16 FONDO REGIONALE PER IL REDDITO DI INCLUSIONE SOCIALE (REIS) AGIUDU TORRAU ANNUALIT 2021.PARTE PRIMA  SUSSIDIO ECONOMICO I SEMESTRE - RIMBORSO BUONI SPESA -;31/03/2022;1919;6;311;1;Spese correnti;Trasferimenti correnti;Trasferimenti correnti a Famiglie;Interventi assistenziali;Altri assegni e sussidi assistenziali
458;555;CAMBULA VANNINA; ;L.R. 18/16 FONDO REGIONALE PER IL REDDITO DI INCLUSIONE SOCIALE (REIS) AGIUDU TORRAU ANNUALIT 2021 - PARTE PRIMA  SUSSIDIO ECONOMICO I SEMESTRE - RIMBORSO BUONI SPESA -;31/03/2022;1919;6;311;1;Spese correnti;Trasferimenti correnti;Trasferimenti correnti a Famiglie;Interventi assistenziali;Altri assegni e sussidi assistenziali
459;566,06;SOGGETTI DIVERSI; ;CONCESSIONE E EROGAZIONE DI SUSSIDI IN FAVORE DI PARTICOLARI CATEGORIE DI CITTADINI. LL.RR. 27/83 E 6/92 - ANNUALITA 2022 - 1 TRIMESTRE -;31/03/2022;1916;0;94;1;Spese correnti;Trasferimenti correnti;Trasferimenti correnti a Famiglie;Interventi assistenziali;Altri assegni e sussidi assistenziali
460;490,13;SOGGETTI DIVERSI; ;CONCESSIONE E EROGAZIONE DI SUSSIDI IN FAVORE DI PARTICOLARI CATEGORIE DI CITTADINI. L.R. 8/99   ANNUALITA 2022 - 1 TRIMESTRE -;01/04/2022;1916;0;94;1;Spese correnti;Trasferimenti correnti;Trasferimenti correnti a Famiglie;Interventi assistenziali;Altri assegni e sussidi assistenziali
461;567,92;SOGGETTI DIVERSI; ;CONCESSIONE E EROGAZIONE DI SUSSIDI IN FAVORE DI PARTICOLARI CATEGORIE DI CITTADINI. L.R. 8/99   ANNUALITA 2022 - 1 TRIMESTRE -;01/04/2022;1916;0;94;1;Spese correnti;Trasferimenti correnti;Trasferimenti correnti a Famiglie;Interventi assistenziali;Altri assegni e sussidi assistenziali
462;566,06;SOGGETTI DIVERSI; ;CONCESSIONE E EROGAZIONE DI SUSSIDI IN FAVORE DI PARTICOLARI CATEGORIE DI CITTADINI. L.R. 8/99   ANNUALITA 2022 - 1 TRIMESTRE -;01/04/2022;1916;0;94;1;Spese correnti;Trasferimenti correnti;Trasferimenti correnti a Famiglie;Interventi assistenziali;Altri assegni e sussidi assistenziali
463;490,13;SOGGETTI DIVERSI; ;CONCESSIONE E EROGAZIONE DI SUSSIDI IN FAVORE DI PARTICOLARI CATEGORIE DI CITTADINI. L.R. 8/99   ANNUALITA 2022 - 1 TRIMESTRE -;01/04/2022;1916;0;94;1;Spese correnti;Trasferimenti correnti;Trasferimenti correnti a Famiglie;Interventi assistenziali;Altri assegni e sussidi assistenziali
465;8.800,00;ERARIO STATO; ;VERSAMENTO IVA COMMERCIALE COD. 614E - PRIMO TRIMESTRE 2022 -;01/04/2022;1056;0;0;1;Spese correnti;Altre spese correnti;Versamenti IVA a debito;Versamenti IVA a debito per le gestioni commerciali;Versamenti IVA a debito per le gestioni commerciali
466;1.398,68;DITTA DIANA CLAUDIO;881478705A;SALDO Fatt.n. FPA 17/22  del 07/03/2022 - STATO FINALE E CRE  LAVORI EFFICIENTAMENTO IMPIANTO DI ILLUMINAZIONE 2021 - L. 160/2019 -;04/04/2022;3002;0;355;2;Spese in conto capitale;Investimenti fissi lordi e acquisto di terreni;Beni materiali;Beni immobili;Fabbricati ad uso commerciale
467;47,4;ECONOMO COMUNALE USAI MARIA CARMINE; ;RIMBORSO BOLLETTE DA ECONOMATO I TRIMESTRE 2022 -;04/04/2022;1043;0;113;1;Spese correnti;Acquisto di beni e servizi;Acquisto di beni;Altri beni di consumo;Altri beni e materiali di consumo n.a.c.
468;42;ECONOMO COMUNALE USAI MARIA CARMINE; ;RIMBORSO BOLLETTE DA ECONOMATO I TRIMESTRE 2022 -;04/04/2022;1043;1;117;1;Spese correnti;Acquisto di beni e servizi;Acquisto di servizi;Servizi informatici e di telecomunicazioni;Gestione e manutenzione applicazioni
469;20,4;ECONOMO COMUNALE USAI MARIA CARMINE; ;RIMBORSO BOLLETTE DA ECONOMATO I TRIMESTRE 2022 -;04/04/2022;1046;0;110;1;Spese correnti;Acquisto di beni e servizi;Acquisto di beni;Altri beni di consumo;Altri beni e materiali di consumo n.a.c.
470;105,85;ECONOMO COMUNALE USAI MARIA CARMINE; ;RIMBORSO BOLLETTE DA ECONOMATO I TRIMESTRE 2022 -;04/04/2022;1046;2;111;1;Spese correnti;Acquisto di beni e servizi;Acquisto di servizi;Servizi amministrativi;Spese postali
471;24,99;ECONOMO COMUNALE USAI MARIA CARMINE; ;RIMBORSO BOLLETTE DA ECONOMATO I TRIMESTRE 2022 -;04/04/2022;1054;0;112;1;Spese correnti;Acquisto di beni e servizi;Acquisto di servizi;Servizi finanziari;Oneri per servizio di tesoreria
473;100,4;ECONOMO COMUNALE USAI MARIA CARMINE; ;RIMBORSO BOLLETTE DA ECONOMATO I TRIMESTRE 2022 -;04/04/2022;1089;0;109;1;Spese correnti;Acquisto di beni e servizi;Acquisto di beni;Altri beni di consumo;Altri beni e materiali di consumo n.a.c.
474;2.695,00;AUTONOLEGGIO FRACCI ALESSANDRO;8417474F46;SALDO Fatt.n. FE10  del 01/04/2022 SERVIZIO TRASPORTO SCOLASTICO C/O SCUOLA PRIMARIA E SECONDARIA GIBA -  MESE DI MARZO 2022 -;08/04/2022;1417;3;83;1;Spese correnti;Acquisto di beni e servizi;Acquisto di servizi;Contratti di servizio pubblico;Contratti di servizio di trasporto scolastico
475;2.896,28;HALLEY SARDEGNA S.R.L.;Z103470F86;SALDO Fatt.n. 0000395  del 04/04/2022 CANONE ASSISTENZA SOFTWARE SERVIZI HOSTING - SECONDO TRIMESTRE 2022 -;08/04/2022;1043;1;341;1;Spese correnti;Acquisto di beni e servizi;Acquisto di servizi;Servizi informatici e di telecomunicazioni;Gestione e manutenzione applicazioni
476;9.634,34;TESORIERE BANCO DI SARDEGNA;ZE327A6442;SALDO Fatt.n. 01015-4200000304-PA  del 01/04/2022 COMPENSI SERVIZIO TESORERIA - ESERCIZIO 2021 - GRUPPO BANCARIO BPER BANCA S.P.A.N.5387.6 - SOCIETA SOGGETTA AD ATTIVITA DI DIREZIONE E COORDINAMENTO DI BPER BANCA S.P.A.;08/04/2022;1054;0;80;1;Spese correnti;Acquisto di beni e servizi;Acquisto di servizi;Servizi finanziari;Oneri per servizio di tesoreria
477;640,5;SAIU ELETTROSERVICE DI CADDIA GIOVANNA ANGELA;7054703D12;SALDO Fatt.n. FATTPA 11_22  del 01/04/2022 SERVIZIO MANUTENZIONE ORDINARIA IMPIANTI DI ILLUMINAZIONE PUBBLICA - MESE DI MARZO 2022 -;08/04/2022;1938;0;85;1;Spese correnti;Acquisto di beni e servizi;Acquisto di servizi;Contratti di servizio pubblico;Contratti di servizio per l'illuminazione pubblica
478;163,09;SOGGETTI DIVERSI; ;L. 162/98 PIANI PERSONALIZZATI  PROROGA MESE DI MARZO 2022 E CONTRIBUTI INPS -;08/04/2022;1920;15;49;1;Spese correnti;Trasferimenti correnti;Trasferimenti correnti a Famiglie;Interventi assistenziali;Altri assegni e sussidi assistenziali
479;617,43;SOGGETTI DIVERSI; ;L. 162/98 PIANI PERSONALIZZATI  MESE DI MARZO 2022 E CONTR. INPS -;08/04/2022;1920;15;40;1;Spese correnti;Trasferimenti correnti;Trasferimenti correnti a Famiglie;Interventi assistenziali;Altri assegni e sussidi assistenziali
480;341,69;SOGGETTI DIVERSI; ;L. 162/98 PIANI PERSONALIZZATI   MESE DI MARZO E CONTR. INPS 2022.;11/04/2022;1920;15;19;1;Spese correnti;Trasferimenti correnti;Trasferimenti correnti a Famiglie;Interventi assistenziali;Altri assegni e sussidi assistenziali
481;218,82;SOGGETTI DIVERSI; ;L. 162/98 PIANI PERSONALIZZATI   MESE DI MARZO E CONTR. INPS 2022.;11/04/2022;1920;15;12;1;Spese correnti;Trasferimenti correnti;Trasferimenti correnti a Famiglie;Interventi assistenziali;Altri assegni e sussidi assistenziali
482;166,66;ABILTECNO Societa' Cooperativa Onlus; ;L. 162/98 PIANI PERSONALIZZATI   MESE DI MARZO  2022.;11/04/2022;1920;15;11;1;Spese correnti;Trasferimenti correnti;Trasferimenti correnti a Famiglie;Interventi assistenziali;Altri assegni e sussidi assistenziali
483;1.333,33;COOP. SOCIALE ADEST A R.L. ONLUS; ;PROGETTI RITORNARE A CASA PLUS  I SEMESTRE  - MESE DI MARZO 2022 -;11/04/2022;1920;0;68;1;Spese correnti;Trasferimenti correnti;Trasferimenti correnti a Famiglie;Interventi assistenziali;Altri assegni e sussidi assistenziali
484;156,25;SOGGETTI DIVERSI; ;L. 162/98 PIANI PERSONALIZZATI   MESE DI MARZO 2022.;11/04/2022;1920;15;47;1;Spese correnti;Trasferimenti correnti;Trasferimenti correnti a Famiglie;Interventi assistenziali;Altri assegni e sussidi assistenziali
485;235;SOGGETTI DIVERSI; ;L. 162/98 PIANI PERSONALIZZATI   MESE DI MARZO 2022.;11/04/2022;1920;15;45;1;Spese correnti;Trasferimenti correnti;Trasferimenti correnti a Famiglie;Interventi assistenziali;Altri assegni e sussidi assistenziali
486;324,18;SOGGETTI DIVERSI; ;L. 162/98 PIANI PERSONALIZZATI   MESE DI MARZO 2022.;11/04/2022;1920;15;42;1;Spese correnti;Trasferimenti correnti;Trasferimenti correnti a Famiglie;Interventi assistenziali;Altri assegni e sussidi assistenziali
487;221,61;SOGGETTI DIVERSI; ;L. 162/98 PIANI PERSONALIZZATI   MESE DI MARZO 2022.;11/04/2022;1920;15;37;1;Spese correnti;Trasferimenti correnti;Trasferimenti correnti a Famiglie;Interventi assistenziali;Altri assegni e sussidi assistenziali
488;257;SOGGETTI DIVERSI; ;L. 162/98 PIANI PERSONALIZZATI   MESE DI MARZO 2022.;11/04/2022;1920;15;36;1;Spese correnti;Trasferimenti correnti;Trasferimenti correnti a Famiglie;Interventi assistenziali;Altri assegni e sussidi assistenziali
489;437,23;SOGGETTI DIVERSI; ;L. 162/98 PIANI PERSONALIZZATI   MESE DI MARZO 2022.;11/04/2022;1920;15;35;1;Spese correnti;Trasferimenti correnti;Trasferimenti correnti a Famiglie;Interventi assistenziali;Altri assegni e sussidi assistenziali
490;334,23;SOGGETTI DIVERSI; ;L. 162/98 PIANI PERSONALIZZATI   MESE DI MARZO 2022.;11/04/2022;1920;15;34;1;Spese correnti;Trasferimenti correnti;Trasferimenti correnti a Famiglie;Interventi assistenziali;Altri assegni e sussidi assistenziali
491;546,5;SOGGETTI DIVERSI; ;L. 162/98 PIANI PERSONALIZZATI   MESE DI MARZO 2022.;11/04/2022;1920;15;33;1;Spese correnti;Trasferimenti correnti;Trasferimenti correnti a Famiglie;Interventi assistenziali;Altri assegni e sussidi assistenziali
492;185,83;SOGGETTI DIVERSI; ;L. 162/98 PIANI PERSONALIZZATI   MESE DI MARZO 2022.;11/04/2022;1920;15;26;1;Spese correnti;Trasferimenti correnti;Trasferimenti correnti a Famiglie;Interventi assistenziali;Altri assegni e sussidi assistenziali
493;514,07;SOGGETTI DIVERSI; ;L. 162/98 PIANI PERSONALIZZATI   MESE DI MARZO 2022.;11/04/2022;1920;15;15;1;Spese correnti;Trasferimenti correnti;Trasferimenti correnti a Famiglie;Interventi assistenziali;Altri assegni e sussidi assistenziali
494;375;SOGGETTI DIVERSI; ;L. 162/98 PIANI PERSONALIZZATI   MESE DI MARZO 2022.;11/04/2022;1920;15;14;1;Spese correnti;Trasferimenti correnti;Trasferimenti correnti a Famiglie;Interventi assistenziali;Altri assegni e sussidi assistenziali
495;283,55;SOGGETTI DIVERSI; ;L. 162/98 PIANI PERSONALIZZATI   MESE DI MARZO 2022.;11/04/2022;1920;15;13;1;Spese correnti;Trasferimenti correnti;Trasferimenti correnti a Famiglie;Interventi assistenziali;Altri assegni e sussidi assistenziali
496;1.665,08;SOGGETTI DIVERSI; ;PROGETTI RITORNARE A CASA PLUS  I SEMESTRE  - MESE DI MARZO 2022 -;11/04/2022;1920;0;65;1;Spese correnti;Trasferimenti correnti;Trasferimenti correnti a Famiglie;Interventi assistenziali;Altri assegni e sussidi assistenziali
497;490,13;SOGGETTI DIVERSI; ;CONCESSIONE E EROGAZIONE DI SUSSIDI IN FAVORE DI PARTICOLARI CATEGORIE DI CITTADINI. L.R. 8/99  - I TRIMESTRE 2022 -;11/04/2022;1916;0;94;1;Spese correnti;Trasferimenti correnti;Trasferimenti correnti a Famiglie;Interventi assistenziali;Altri assegni e sussidi assistenziali
498;515,44;SOGGETTI DIVERSI; ;CONCESSIONE E EROGAZIONE DI SUSSIDI IN FAVORE DI PARTICOLARI CATEGORIE DI CITTADINI. L.R. 8/99  - I TRIMESTRE 2022 -;11/04/2022;1916;0;94;1;Spese correnti;Trasferimenti correnti;Trasferimenti correnti a Famiglie;Interventi assistenziali;Altri assegni e sussidi assistenziali
499;1.546,24;SOGGETTI DIVERSI; ;PROGETTI RITORNARE A CASA PLUS   - ASSISTENZA DOMICILIARE E CONTR. INPS MESE DI MARZO 2022  -;11/04/2022;1920;0;69;1;Spese correnti;Trasferimenti correnti;Trasferimenti correnti a Famiglie;Interventi assistenziali;Altri assegni e sussidi assistenziali
500;427;NICOLA ZUDDAS S.R.L.;ZF535CBEE4;SALDO Fatt.n. 2022   299/E  del 05/04/2022 FORNITURA ED ATTIVAZIONE N. 5  LICENZE DUSO PROGRAMMA SUPREMO -;11/04/2022;1043;1;108;1;Spese correnti;Acquisto di beni e servizi;Acquisto di servizi;Servizi informatici e di telecomunicazioni;Gestione e manutenzione applicazioni
501;625;COMUNE DI PISCINAS; ;L.162/98 PIANI PERSONALIZZATI DI SOSTEGNO IN FAVORE DELLE PERSONE CON GRAVE DISABILITA - ANNUALITA 2020 GESTIONE 2021 - SISTEMAZIONE CONTABILE PER EURO 14.860,49 -;11/04/2022;1920;15;29;1;Spese correnti;Trasferimenti correnti;Trasferimenti correnti a Famiglie;Interventi assistenziali;Altri assegni e sussidi assistenziali
502;1.000,00;COMUNE DI PISCINAS; ;L.162/98 PIANI PERSONALIZZATI DI SOSTEGNO IN FAVORE DELLE PERSONE CON GRAVE DISABILITA - ANNUALITA 2020 GESTIONE 2021 - SISTEMAZIONE CONTABILE PER EURO 14.860,49 -;11/04/2022;1920;15;43;1;Spese correnti;Trasferimenti correnti;Trasferimenti correnti a Famiglie;Interventi assistenziali;Altri assegni e sussidi assistenziali
503;117,94;COMUNE DI PISCINAS; ;L.162/98 PIANI PERSONALIZZATI DI SOSTEGNO IN FAVORE DELLE PERSONE CON GRAVE DISABILITA - ANNUALITA 2020 GESTIONE 2021 - SISTEMAZIONE CONTABILE PER EURO 14.860,49 -;11/04/2022;1920;15;132;1;Spese correnti;Trasferimenti correnti;Trasferimenti correnti a Famiglie;Interventi assistenziali;Altri assegni e sussidi assistenziali
504;23,64;COMUNE DI PISCINAS; ;L.162/98 PIANI PERSONALIZZATI DI SOSTEGNO IN FAVORE DELLE PERSONE CON GRAVE DISABILITA - ANNUALITA 2020 GESTIONE 2021 - SISTEMAZIONE CONTABILE PER EURO 14.860,49 -;11/04/2022;1920;15;133;1;Spese correnti;Trasferimenti correnti;Trasferimenti correnti a Famiglie;Interventi assistenziali;Altri assegni e sussidi assistenziali
505;66,68;COMUNE DI PISCINAS; ;L.162/98 PIANI PERSONALIZZATI DI SOSTEGNO IN FAVORE DELLE PERSONE CON GRAVE DISABILITA - ANNUALITA 2020 GESTIONE 2021 - SISTEMAZIONE CONTABILE PER EURO 14.860,49 -;11/04/2022;1920;15;135;1;Spese correnti;Trasferimenti correnti;Trasferimenti correnti a Famiglie;Interventi assistenziali;Altri assegni e sussidi assistenziali
506;0,04;COMUNE DI PISCINAS; ;L.162/98 PIANI PERSONALIZZATI DI SOSTEGNO IN FAVORE DELLE PERSONE CON GRAVE DISABILITA - ANNUALITA 2020 GESTIONE 2021 - SISTEMAZIONE CONTABILE PER EURO 14.860,49 -;11/04/2022;1920;15;137;1;Spese correnti;Trasferimenti correnti;Trasferimenti correnti a Famiglie;Interventi assistenziali;Altri assegni e sussidi assistenziali
507;0,04;COMUNE DI PISCINAS; ;L.162/98 PIANI PERSONALIZZATI DI SOSTEGNO IN FAVORE DELLE PERSONE CON GRAVE DISABILITA - ANNUALITA 2020 GESTIONE 2021 - SISTEMAZIONE CONTABILE PER EURO 14.860,49 -;11/04/2022;1920;15;138;1;Spese correnti;Trasferimenti correnti;Trasferimenti correnti a Famiglie;Interventi assistenziali;Altri assegni e sussidi assistenziali
508;10,62;COMUNE DI PISCINAS; ;L.162/98 PIANI PERSONALIZZATI DI SOSTEGNO IN FAVORE DELLE PERSONE CON GRAVE DISABILITA - ANNUALITA 2020 GESTIONE 2021 - SISTEMAZIONE CONTABILE PER EURO 14.860,49 -;11/04/2022;1920;15;139;1;Spese correnti;Trasferimenti correnti;Trasferimenti correnti a Famiglie;Interventi assistenziali;Altri assegni e sussidi assistenziali
509;0,03;COMUNE DI PISCINAS; ;L.162/98 PIANI PERSONALIZZATI DI SOSTEGNO IN FAVORE DELLE PERSONE CON GRAVE DISABILITA - ANNUALITA 2020 GESTIONE 2021 - SISTEMAZIONE CONTABILE PER EURO 14.860,49 -;11/04/2022;1920;15;142;1;Spese correnti;Trasferimenti correnti;Trasferimenti correnti a Famiglie;Interventi assistenziali;Altri assegni e sussidi assistenziali
510;822,37;COMUNE DI PISCINAS; ;L.162/98 PIANI PERSONALIZZATI DI SOSTEGNO IN FAVORE DELLE PERSONE CON GRAVE DISABILITA - ANNUALITA 2020 GESTIONE 2021 - SISTEMAZIONE CONTABILE PER EURO 14.860,49 -;11/04/2022;1920;15;145;1;Spese correnti;Trasferimenti correnti;Trasferimenti correnti a Famiglie;Interventi assistenziali;Altri assegni e sussidi assistenziali
511;67,17;COMUNE DI PISCINAS; ;L.162/98 PIANI PERSONALIZZATI DI SOSTEGNO IN FAVORE DELLE PERSONE CON GRAVE DISABILITA - ANNUALITA 2020 GESTIONE 2021 - SISTEMAZIONE CONTABILE PER EURO 14.860,49 -;11/04/2022;1920;15;146;1;Spese correnti;Trasferimenti correnti;Trasferimenti correnti a Famiglie;Interventi assistenziali;Altri assegni e sussidi assistenziali
512;2;COMUNE DI PISCINAS; ;L.162/98 PIANI PERSONALIZZATI DI SOSTEGNO IN FAVORE DELLE PERSONE CON GRAVE DISABILITA - ANNUALITA 2020 GESTIONE 2021 - SISTEMAZIONE CONTABILE PER EURO 14.860,49 -;11/04/2022;1920;15;149;1;Spese correnti;Trasferimenti correnti;Trasferimenti correnti a Famiglie;Interventi assistenziali;Altri assegni e sussidi assistenziali
513;1.250,00;COMUNE DI PISCINAS; ;L.162/98 PIANI PERSONALIZZATI DI SOSTEGNO IN FAVORE DELLE PERSONE CON GRAVE DISABILITA - ANNUALITA 2020 GESTIONE 2021 - SISTEMAZIONE CONTABILE PER EURO 14.860,49 -;11/04/2022;1920;15;152;1;Spese correnti;Trasferimenti correnti;Trasferimenti correnti a Famiglie;Interventi assistenziali;Altri assegni e sussidi assistenziali
514;66,58;COMUNE DI PISCINAS; ;L.162/98 PIANI PERSONALIZZATI DI SOSTEGNO IN FAVORE DELLE PERSONE CON GRAVE DISABILITA - ANNUALITA 2020 GESTIONE 2021 - SISTEMAZIONE CONTABILE PER EURO 14.860,49 -;11/04/2022;1920;15;153;1;Spese correnti;Trasferimenti correnti;Trasferimenti correnti a Famiglie;Interventi assistenziali;Altri assegni e sussidi assistenziali
515;164,65;COMUNE DI PISCINAS; ;L.162/98 PIANI PERSONALIZZATI DI SOSTEGNO IN FAVORE DELLE PERSONE CON GRAVE DISABILITA - ANNUALITA 2020 GESTIONE 2021 - SISTEMAZIONE CONTABILE PER EURO 14.860,49 -;11/04/2022;1920;15;154;1;Spese correnti;Trasferimenti correnti;Trasferimenti correnti a Famiglie;Interventi assistenziali;Altri assegni e sussidi assistenziali
516;2,06;COMUNE DI PISCINAS; ;L.162/98 PIANI PERSONALIZZATI DI SOSTEGNO IN FAVORE DELLE PERSONE CON GRAVE DISABILITA - ANNUALITA 2020 GESTIONE 2021 - SISTEMAZIONE CONTABILE PER EURO 14.860,49 -;11/04/2022;1920;15;155;1;Spese correnti;Trasferimenti correnti;Trasferimenti correnti a Famiglie;Interventi assistenziali;Altri assegni e sussidi assistenziali
517;26,54;COMUNE DI PISCINAS; ;L.162/98 PIANI PERSONALIZZATI DI SOSTEGNO IN FAVORE DELLE PERSONE CON GRAVE DISABILITA - ANNUALITA 2020 GESTIONE 2021 - SISTEMAZIONE CONTABILE PER EURO 14.860,49 -;11/04/2022;1920;15;156;1;Spese correnti;Trasferimenti correnti;Trasferimenti correnti a Famiglie;Interventi assistenziali;Altri assegni e sussidi assistenziali
518;124,67;COMUNE DI PISCINAS; ;L.162/98 PIANI PERSONALIZZATI DI SOSTEGNO IN FAVORE DELLE PERSONE CON GRAVE DISABILITA - ANNUALITA 2020 GESTIONE 2021 - SISTEMAZIONE CONTABILE PER EURO 14.860,49 -;11/04/2022;1920;15;157;1;Spese correnti;Trasferimenti correnti;Trasferimenti correnti a Famiglie;Interventi assistenziali;Altri assegni e sussidi assistenziali
519;28;COMUNE DI PISCINAS; ;L.162/98 PIANI PERSONALIZZATI DI SOSTEGNO IN FAVORE DELLE PERSONE CON GRAVE DISABILITA - ANNUALITA 2020 GESTIONE 2021 - SISTEMAZIONE CONTABILE PER EURO 14.860,49 -;11/04/2022;1920;15;158;1;Spese correnti;Trasferimenti correnti;Trasferimenti correnti a Famiglie;Interventi assistenziali;Altri assegni e sussidi assistenziali
520;57,58;COMUNE DI PISCINAS; ;L.162/98 PIANI PERSONALIZZATI DI SOSTEGNO IN FAVORE DELLE PERSONE CON GRAVE DISABILITA - ANNUALITA 2020 GESTIONE 2021 - SISTEMAZIONE CONTABILE PER EURO 14.860,49 -;11/04/2022;1920;15;159;1;Spese correnti;Trasferimenti correnti;Trasferimenti correnti a Famiglie;Interventi assistenziali;Altri assegni e sussidi assistenziali
521;86;COMUNE DI PISCINAS; ;L.162/98 PIANI PERSONALIZZATI DI SOSTEGNO IN FAVORE DELLE PERSONE CON GRAVE DISABILITA - ANNUALITA 2020 GESTIONE 2021 - SISTEMAZIONE CONTABILE PER EURO 14.860,49 -;11/04/2022;1920;15;162;1;Spese correnti;Trasferimenti correnti;Trasferimenti correnti a Famiglie;Interventi assistenziali;Altri assegni e sussidi assistenziali
522;130,49;COMUNE DI PISCINAS; ;L.162/98 PIANI PERSONALIZZATI IN SOSTEGNO DELLE PERSONE CON DISABILITA GRAVE. AVVIO DEI NUOVI PIANI CON DECORRENZA A MAGGIO 2021.;11/04/2022;1920;15;163;1;Spese correnti;Trasferimenti correnti;Trasferimenti correnti a Famiglie;Interventi assistenziali;Altri assegni e sussidi assistenziali
523;3.000,00;COMUNE DI PISCINAS; ;L.162/98 PIANI PERSONALIZZATI DI SOSTEGNO IN FAVORE DELLE PERSONE CON GRAVE DISABILITA - ANNUALITA 2020 GESTIONE 2021 - SISTEMAZIONE CONTABILE PER EURO 14.860,49 -;11/04/2022;1920;15;164;1;Spese correnti;Trasferimenti correnti;Trasferimenti correnti a Famiglie;Interventi assistenziali;Altri assegni e sussidi assistenziali
524;272,59;COMUNE DI PISCINAS; ;L.162/98 PIANI PERSONALIZZATI DI SOSTEGNO IN FAVORE DELLE PERSONE CON GRAVE DISABILITA - ANNUALITA 2020 GESTIONE 2021 - SISTEMAZIONE CONTABILE PER EURO 14.860,49 -;11/04/2022;1920;15;165;1;Spese correnti;Trasferimenti correnti;Trasferimenti correnti a Famiglie;Interventi assistenziali;Altri assegni e sussidi assistenziali
525;1.500,00;COMUNE DI PISCINAS; ;L.162/98 PIANI PERSONALIZZATI DI SOSTEGNO IN FAVORE DELLE PERSONE CON GRAVE DISABILITA - ANNUALITA 2020 GESTIONE 2021 - SISTEMAZIONE CONTABILE PER EURO 14.860,49 -;11/04/2022;1920;15;166;1;Spese correnti;Trasferimenti correnti;Trasferimenti correnti a Famiglie;Interventi assistenziali;Altri assegni e sussidi assistenziali
526;871,56;COMUNE DI PISCINAS; ;L.162/98 PIANI PERSONALIZZATI DI SOSTEGNO IN FAVORE DELLE PERSONE CON GRAVE DISABILITA - ANNUALITA 2020 GESTIONE 2021 - SISTEMAZIONE CONTABILE PER EURO 14.860,49 -;11/04/2022;1920;15;168;1;Spese correnti;Trasferimenti correnti;Trasferimenti correnti a Famiglie;Interventi assistenziali;Altri assegni e sussidi assistenziali
527;1.333,33;COMUNE DI PISCINAS; ;L.162/98 PIANI PERSONALIZZATI DI SOSTEGNO IN FAVORE DELLE PERSONE CON GRAVE DISABILITA - ANNUALITA 2020 GESTIONE 2021 - SISTEMAZIONE CONTABILE PER EURO 14.860,49 -;11/04/2022;1920;15;170;1;Spese correnti;Trasferimenti correnti;Trasferimenti correnti a Famiglie;Interventi assistenziali;Altri assegni e sussidi assistenziali
528;197,25;COMUNE DI PISCINAS; ;L.162/98 PIANI PERSONALIZZATI DI SOSTEGNO IN FAVORE DELLE PERSONE CON GRAVE DISABILITA - ANNUALITA 2020 GESTIONE 2021 - SISTEMAZIONE CONTABILE PER EURO 14.860,49 -;11/04/2022;1920;15;171;1;Spese correnti;Trasferimenti correnti;Trasferimenti correnti a Famiglie;Interventi assistenziali;Altri assegni e sussidi assistenziali
529;47,2;COMUNE DI PISCINAS; ;L.162/98 PIANI PERSONALIZZATI DI SOSTEGNO IN FAVORE DELLE PERSONE CON GRAVE DISABILITA - ANNUALITA 2020 GESTIONE 2021 - SISTEMAZIONE CONTABILE PER EURO 14.860,49 -;11/04/2022;1920;15;172;1;Spese correnti;Trasferimenti correnti;Trasferimenti correnti a Famiglie;Interventi assistenziali;Altri assegni e sussidi assistenziali
530;466,45;COMUNE DI PISCINAS; ;L.162/98 PIANI PERSONALIZZATI DI SOSTEGNO IN FAVORE DELLE PERSONE CON GRAVE DISABILITA - ANNUALITA 2020 GESTIONE 2021 - SISTEMAZIONE CONTABILE PER EURO 14.860,49 -;11/04/2022;1920;15;176;1;Spese correnti;Trasferimenti correnti;Trasferimenti correnti a Famiglie;Interventi assistenziali;Altri assegni e sussidi assistenziali
531;2.500,00;COMUNE DI PISCINAS; ;L.162/98 PIANI PERSONALIZZATI DI SOSTEGNO IN FAVORE DELLE PERSONE CON GRAVE DISABILITA - ANNUALITA 2020 GESTIONE 2021 - SISTEMAZIONE CONTABILE PER EURO 14.860,49 -;11/04/2022;1920;15;173;1;Spese correnti;Trasferimenti correnti;Trasferimenti correnti a Famiglie;Interventi assistenziali;Altri assegni e sussidi assistenziali
532;0,01;COMUNE DI PISCINAS; ;L.162/98 PIANI PERSONALIZZATI DI SOSTEGNO IN FAVORE DELLE PERSONE CON GRAVE DISABILITA - ANNUALITA 2020 GESTIONE 2021 - SISTEMAZIONE CONTABILE PER EURO 14.860,49 -;11/04/2022;1902;0;131;1;Spese correnti;Acquisto di beni e servizi;Acquisto di servizi;Contratti di servizio pubblico;Contratti di servizio di assistenza sociale domiciliare
533;30;AUTORITA' NAZIONALE ANTICORRUZIONE (A.N.A.C.) EX AVCP;808911440B;MAV N.  01030641068021433 CONTRIBUZIONE ANAC - LAVORI RIQUALIFICAZIONE URBANA VIA CAMPAGNA - 3 INTERVENTO -;12/04/2022;3480;1;250;2;Spese in conto capitale;Investimenti fissi lordi e acquisto di terreni;Beni materiali;Beni immobili;Altre vie di comunicazione
534;30;AUTORITA' NAZIONALE ANTICORRUZIONE (A.N.A.C.) EX AVCP;80745197DD;MAV N. 01030641068021433 CONTRIBUZIONE ANAC - LAVORI  COMPLETAMENTO DELLA MANUTENZIONE STRAORDINARIA DELLA CARREGGIATA EX STRADA FMS -;12/04/2022;3483;0;239;2;Spese in conto capitale;Investimenti fissi lordi e acquisto di terreni;Beni materiali;Beni immobili;Altre vie di comunicazione
535;30;AUTORITA' NAZIONALE ANTICORRUZIONE (A.N.A.C.) EX AVCP; ;MAV N. 01030643344511118 CONTRIBUZIONE ANAC -  CANTIERE PATRIMONIO BOSCHIVO ANNUALITA 2019 -;12/04/2022;1742;3;344;1;Spese correnti;Acquisto di beni e servizi;Acquisto di servizi;Altri servizi;Altri servizi diversi n.a.c.
536;225;AUTORITA' NAZIONALE ANTICORRUZIONE (A.N.A.C.) EX AVCP;8688912D00;MAV N. 01030651454031559 CONTRIBUZIONE ANAC -  LAVORI DI RECUPERO E VALORIZZAZIONE DEL PARCO SALAZAR 2 INTERVENTO -;12/04/2022;3236;0;337;2;Spese in conto capitale;Investimenti fissi lordi e acquisto di terreni;Beni materiali;Beni immobili;Musei, teatri e biblioteche
537;30;AUTORITA' NAZIONALE ANTICORRUZIONE (A.N.A.C.) EX AVCP;8851417461;MAV N.  01030652663471487 CONTRIBUZIONE ANAC -  LAVORI DI MANUTENZIONE STRAORDINARIA, MESSA IN SICUREZZA ED EFFICIENTAMENTO ENERGETICO DEL PALAZZO COMUNALE - CONTRIBUTO PICCOLI COMUNI 2021 -;12/04/2022;3001;1;228;2;Spese in conto capitale;Investimenti fissi lordi e acquisto di terreni;Beni materiali;Beni immobili;Fabbricati ad uso commerciale
538;30;AUTORITA' NAZIONALE ANTICORRUZIONE (A.N.A.C.) EX AVCP; ;MAV N.  01030652663471487 CONTRIBUZIONE ANAC - LAVORI DI RIQUALIFICAZIONE MARCIAPIEDI E STRADE INTERNE -;12/04/2022;3481;0;335;2;Spese in conto capitale;Investimenti fissi lordi e acquisto di terreni;Beni materiali;Beni immobili;Altre vie di comunicazione
539;30;AUTORITA' NAZIONALE ANTICORRUZIONE (A.N.A.C.) EX AVCP;889102411D;MAV N. 01030654169991027 ONTRIBUZIONE ANAC -  LAVORI DI  MANUTENZIONE STRAORDINARIA CAMPO POLIVALENTE -;12/04/2022;3405;1;241;2;Spese in conto capitale;Investimenti fissi lordi e acquisto di terreni;Beni materiali;Beni immobili;Impianti sportivi
540;859,27;KUWAIT PETROLEUM ITALIA SPA;Z5928641D0;SALDO Fatt.n. PJ05175669  del 31/03/2022 FORNITURA CARBURANTE MEZZI COMUNALI - MESE DI MARZO 2022 -;14/04/2022;1057;0;4;1;Spese correnti;Acquisto di beni e servizi;Acquisto di beni;Altri beni di consumo;Carburanti, combustibili e lubrificanti
541;422,28;SOGGETTI DIVERSI; ;L. 162/98 PIANI PERSONALIZZATI  MESI DI FEBBRAIO/MARZO 2022 E CONTR. INPS;14/04/2022;1920;15;31;1;Spese correnti;Trasferimenti correnti;Trasferimenti correnti a Famiglie;Interventi assistenziali;Altri assegni e sussidi assistenziali
542;238,51;SOGGETTI DIVERSI; ;L. 162/98 PIANI PERSONALIZZATI  MESI DI MARZO 2022 E CONTR. INPS;14/04/2022;1920;15;32;1;Spese correnti;Trasferimenti correnti;Trasferimenti correnti a Famiglie;Interventi assistenziali;Altri assegni e sussidi assistenziali
543;159,37;SOGGETTI DIVERSI; ;L. 162/98 PIANI PERSONALIZZATI  MESE DI MARZO 2022;14/04/2022;1920;15;27;1;Spese correnti;Trasferimenti correnti;Trasferimenti correnti a Famiglie;Interventi assistenziali;Altri assegni e sussidi assistenziali
544;484,12;SOGGETTI DIVERSI; ;L. 162/98 PIANI PERSONALIZZATI  MESI DI MARZO 2022 E CONTR. INPS;14/04/2022;1920;15;24;1;Spese correnti;Trasferimenti correnti;Trasferimenti correnti a Famiglie;Interventi assistenziali;Altri assegni e sussidi assistenziali
545;533,92;SOGGETTI DIVERSI; ;CONCESSIONE E EROGAZIONE DI SUSSIDI IN FAVORE DI PARTICOLARI CATEGORIE DI CITTADINI. L.R. 8/99 - MESE DI MARZO 2022 -;14/04/2022;1916;0;94;1;Spese correnti;Trasferimenti correnti;Trasferimenti correnti a Famiglie;Interventi assistenziali;Altri assegni e sussidi assistenziali
546;983,32;ISAR COOPERATIVA SOCIALE ONLUS;Z6E33B9DBA;SALDO Fatt.n. 53  del 08/04/2022 SERVIZIO DI PULIZIE PALAZZO COMUALE E BIBLIOTECA - MESE DI MARZO 2022 -;14/04/2022;1036;0;71;1;Spese correnti;Acquisto di beni e servizi;Acquisto di servizi;Servizi ausiliari per il funzionamento dell'ente;Servizi di pulizia e lavanderia
547;189,01;SOGGETTI DIVERSI; ;L. 162/98 PIANI PERSONALIZZATI  MESE DI /MARZO 2022 E CONTR. INPS;14/04/2022;1920;15;48;1;Spese correnti;Trasferimenti correnti;Trasferimenti correnti a Famiglie;Interventi assistenziali;Altri assegni e sussidi assistenziali
548;188,46;SOGGETTI DIVERSI; ;L. 162/98 PIANI PERSONALIZZATI  MESI DI MARZO 2022 -;14/04/2022;1920;15;46;1;Spese correnti;Trasferimenti correnti;Trasferimenti correnti a Famiglie;Interventi assistenziali;Altri assegni e sussidi assistenziali
549;248,9;SOGGETTI DIVERSI; ;L. 162/98 PIANI PERSONALIZZATI  MESE DI MARZO 2022 E CONTR. INPS;14/04/2022;1920;15;39;1;Spese correnti;Trasferimenti correnti;Trasferimenti correnti a Famiglie;Interventi assistenziali;Altri assegni e sussidi assistenziali
550;185,94;SOGGETTI DIVERSI; ;L. 162/98 PIANI PERSONALIZZATI  MESE DI MARZO 2022 E CONTR. INPS;14/04/2022;1920;15;16;1;Spese correnti;Trasferimenti correnti;Trasferimenti correnti a Famiglie;Interventi assistenziali;Altri assegni e sussidi assistenziali
551;8.540,00;DITTA PILLAI SANDRO;Z16340F064;SALDO Fatt.n. 16  del 04/04/2022 MANUTENZIONE STRAORDINARIA E NUOVA FORNITURA CANCELLO PRESSO IL CIMITERO COMUNALE -;14/04/2022;3303;2;305;2;Spese in conto capitale;Investimenti fissi lordi e acquisto di terreni;Beni materiali;Beni immobili;Cimiteri
552;5.875,84;TEKNOSERVICE S.R.L.;Z2734449FB;SALDO Fatt.n. 814/PA  del 31/03/2022 SERVIZIO DI RACCOLTA E TRASPORTO RSU DIFFERENZIATI - MESE DI MARZO 2022 -;14/04/2022;1738;0;327;1;Spese correnti;Acquisto di beni e servizi;Acquisto di servizi;Contratti di servizio pubblico;Contratti di servizio per la raccolta rifiuti
553;1.961,96;VERDE VITA SRL;Z2734D619D;SALDO Fatt.n. 89/CCP  del 31/03/2022 CONFERIMENTO RIFIUTI CER 20 01 08 E CER 20 02 01 C/O IMPIANTO DI COMPOSTAGGIO CARBONIA- MESE DI MARZO 2022 -;14/04/2022;1739;0;1;1;Spese correnti;Acquisto di beni e servizi;Acquisto di servizi;Contratti di servizio pubblico;Contratti di servizio per il conferimento in discarica dei rifiuti
589;784,36;DIVERSI; ;STIPENDI MESE DI APRILE 22;28/04/2022;1001;0;59;1;Spese correnti;Acquisto di beni e servizi;Acquisto di servizi;Organi e incarichi istituzionali dell'amministrazione;Organi istituzionali dell'amministrazione - Indennità
598;55.110,00;IMPRESA MELIS MAURIZIO S.R.L.;9010223F39;SALDO Fatt.n. 42  del 15/04/2022 1 STATO AVANZAMENTO LAVORI DI REALIZZAZIONE DI UN PARCHEGGIO PRESSO VIA REGINA MARGHERITA -;28/04/2022;3467;1;325;2;Spese in conto capitale;Investimenti fissi lordi e acquisto di terreni;Beni materiali;Beni immobili;Altre vie di comunicazione
599;85.278,00;F.F. SERCI S.R.L.;88277390AE;SALDO Fatt.n. 144  del 13/04/2022 1 STATO AVANZAMENTO LAVORI SISTEMAZIONE MARCIAPIEDI E STRADE INTERNE -;28/04/2022;3481;0;335;2;Spese in conto capitale;Investimenti fissi lordi e acquisto di terreni;Beni materiali;Beni immobili;Altre vie di comunicazione
600;375;SOGGETTI DIVERSI; ;L. 162/98 PIANI PERSONALIZZATI  PERIODO GENNAIO,FEBBRAIO,MARZO E CONTR. INPS;29/04/2022;1920;15;20;1;Spese correnti;Trasferimenti correnti;Trasferimenti correnti a Famiglie;Interventi assistenziali;Altri assegni e sussidi assistenziali
601;1.064,20;SOGGETTI DIVERSI; ;L. 162/98 PIANI PERSONALIZZATI  MESE DI MARZO 2022 -;29/04/2022;1920;15;25;1;Spese correnti;Trasferimenti correnti;Trasferimenti correnti a Famiglie;Interventi assistenziali;Altri assegni e sussidi assistenziali
602;276,77;SOGGETTI DIVERSI; ;L. 162/98 PIANI PERSONALIZZATI  MESE DI MARZO 2022 -;29/04/2022;1920;15;41;1;Spese correnti;Trasferimenti correnti;Trasferimenti correnti a Famiglie;Interventi assistenziali;Altri assegni e sussidi assistenziali
604;1.779,98;ECO@ESCO SRL;Z1234E91C8;SALDO Fatt.n. Fattura 80/2022  del 09/03/2022 FORNITURA DI UNA WALLBOX DI RICARICA VEICOLI ELETTRICI 22KW - COMANDO A CHIAVE -;02/05/2022;1089;0;8;1;Spese correnti;Acquisto di beni e servizi;Acquisto di beni;Altri beni di consumo;Strumenti tecnico-specialistici non sanitari
605;1.460,00;SAIU ELETTROSERVICE DI CADDIA GIOVANNA ANGELA;ZB134B039F;ACCONTO Fatt.n. FATTPA 15_22  del 19/04/2022;02/05/2022;3303;2;353;2;Spese in conto capitale;Investimenti fissi lordi e acquisto di terreni;Beni materiali;Beni immobili;Cimiteri
606;800;SAIU ELETTROSERVICE DI CADDIA GIOVANNA ANGELA;ZB134B039F;ACCONTO Fatt.n. FATTPA 15_22  del 19/04/2022;02/05/2022;1656;2;354;1;Spese correnti;Acquisto di beni e servizi;Acquisto di servizi;Manutenzione ordinaria e riparazioni;Manutenzione ordinaria e riparazioni di beni immobili
607;1.143,80;SAIU ELETTROSERVICE DI CADDIA GIOVANNA ANGELA;ZB134B039F;SALDO Fatt.n. FATTPA 15_22  del 19/04/2022;02/05/2022;1938;0;92;1;Spese correnti;Acquisto di beni e servizi;Acquisto di servizi;Contratti di servizio pubblico;Contratti di servizio per l'illuminazione pubblica
608;30.436,28;Ditta Potettu Mauro;8851417461;ACCONTO Fatt.n. 17/2022  del 26/04/2022 STATO FINALE LAVORI MANUT.STRAORD.MESSA IN SICUREZZA ED EFFICIENTAMENTO ENERGETIO DEL PALAZZO COMUNALE;02/05/2022;3001;1;227;2;Spese in conto capitale;Investimenti fissi lordi e acquisto di terreni;Beni materiali;Beni immobili;Fabbricati ad uso commerciale
609;1.274,27;Ditta Potettu Mauro;8851417461;ACCONTO Fatt.n. 17/2022  del 26/04/2022 STATO FINALE LAVORI MANUT.STRAORD.MESSA IN SICUREZZA ED EFFICIENTAMENTO ENERGETIO DEL PALAZZO COMUNALE;02/05/2022;3001;1;227;2;Spese in conto capitale;Investimenti fissi lordi e acquisto di terreni;Beni materiali;Beni immobili;Fabbricati ad uso commerciale
610;135,17;Ditta Potettu Mauro;8851417461;SALDO Fatt.n. 17/2022  del 26/04/2022 STATO FINALE LAVORI MANUT.STRAORD.MESSA IN SICUREZZA ED EFFICIENTAMENTO ENERGETIO DEL PALAZZO COMUNALE;02/05/2022;3001;1;229;2;Spese in conto capitale;Investimenti fissi lordi e acquisto di terreni;Beni materiali;Beni immobili;Fabbricati ad uso commerciale
612;3.890,91;GRANELLA GIACINTO;Z153221E4A;SALDO Fatt.n. 2E  del 27/04/2022 SALDO D.L. CONTABILITA E CSE LAVORI DI MANUTENZIONE STAORDINAIRA, MESSA IN SICUREZZA E EFFICIENTAMENTO ENERGETICO PALAZZO COMUNALE - CONTRIBUTO AI PICCOLI COMUNI  2021 -;02/05/2022;3001;1;204;2;Spese in conto capitale;Investimenti fissi lordi e acquisto di terreni;Beni materiali;Beni immobili;Fabbricati ad uso commerciale
613;83,41;ABBANOA S.P.A.; ;ACCONTO Fatt.n. 0150020220001030100  del 15/04/2022 B/Bollettazione;02/05/2022;1367;0;76;1;Spese correnti;Acquisto di beni e servizi;Acquisto di servizi;Utenze e canoni;Acqua
613;474,05;ABBANOA S.P.A.; ;SALDO Fatt.n. 0150020220000878600  del 08/04/2022 B/Bollettazione CONSUMI IDRICI PERIODO  29 NOVEMBRE 2021/ 24 MARZO 2022 - SCUOLE ELEMENTARI -;02/05/2022;1367;0;76;1;Spese correnti;Acquisto di beni e servizi;Acquisto di servizi;Utenze e canoni;Acqua
614;29,94;ABBANOA S.P.A.; ;SALDO Fatt.n. 0150020220001030100  del 15/04/2022 B/Bollettazione;02/05/2022;1657;0;79;1;Spese correnti;Acquisto di beni e servizi;Acquisto di servizi;Utenze e canoni;Acqua
615;40,05;ABBANOA S.P.A.; ;SALDO Fatt.n. 0150020220000878800  del 08/04/2022 B/Bollettazione CONSUMI IDRICI PERIODO  29 NOVEMBRE 2021/ 24 MARZO 2022 - EX COMUNE -;02/05/2022;1087;3;75;1;Spese correnti;Acquisto di beni e servizi;Acquisto di servizi;Utenze e canoni;Acqua
615;58,09;ABBANOA S.P.A.; ;SALDO Fatt.n. 0150020220000878400  del 08/04/2022 B/Bollettazione CONSUMI IDRICI PERIODO  29 NOVEMBRE 2021/ 24 MARZO 2022 - EX POMPE DI SOLLEVAMENTO -;02/05/2022;1087;3;75;1;Spese correnti;Acquisto di beni e servizi;Acquisto di servizi;Utenze e canoni;Acqua
615;58,1;ABBANOA S.P.A.; ;SALDO Fatt.n. 0150020220000878100  del 08/04/2022 B/Bollettazione CONSUMI IDRICI PERIODO  29 NOVEMBRE 2021/ 24 MARZO 2022 - CAMPO SPORTIVO -;02/05/2022;1087;3;75;1;Spese correnti;Acquisto di beni e servizi;Acquisto di servizi;Utenze e canoni;Acqua
615;58,15;ABBANOA S.P.A.; ;SALDO Fatt.n. 0150020220000878500  del 08/04/2022 B/Bollettazione CONSUMI IDRICI PERIODO  29 NOVEMBRE 2021/ 24 MARZO 2022  - EX SCUOLE MEDIE;02/05/2022;1087;3;75;1;Spese correnti;Acquisto di beni e servizi;Acquisto di servizi;Utenze e canoni;Acqua
615;61,35;ABBANOA S.P.A.; ;SALDO Fatt.n. 0150020220000878300  del 08/04/2022 B/Bollettazione CONSUMI IDRICI PERIODO  29 NOVEMBRE 2021/ 24 MARZO 2022  - CENTRO SOCIALE -;02/05/2022;1087;3;75;1;Spese correnti;Acquisto di beni e servizi;Acquisto di servizi;Utenze e canoni;Acqua
615;61,36;ABBANOA S.P.A.; ;SALDO Fatt.n. 0150020220000878900  del 08/04/2022 B/Bollettazione CONSUMI IDRICI PERIODO  29 NOVEMBRE 2021/ 24 MARZO 2022 - EX  ESMAS -;02/05/2022;1087;3;75;1;Spese correnti;Acquisto di beni e servizi;Acquisto di servizi;Utenze e canoni;Acqua
615;67,96;ABBANOA S.P.A.; ;SALDO Fatt.n. 0150020220000878700  del 08/04/2022 B/Bollettazione CONSUMI IDRICI PERIODO  29 NOVEMBRE 2021/ 24 MARZO 2022 - CAMPO POLIVALENTE -;02/05/2022;1087;3;75;1;Spese correnti;Acquisto di beni e servizi;Acquisto di servizi;Utenze e canoni;Acqua
615;67,98;ABBANOA S.P.A.; ;SALDO Fatt.n. 0150020220000878000  del 08/04/2022 B/Bollettazione - CONSUMI IDRICI PERIODO  29 NOVEMBRE 2021/ 24 MARZO 2022 - VILLINO SALAZAR;02/05/2022;1087;3;75;1;Spese correnti;Acquisto di beni e servizi;Acquisto di servizi;Utenze e canoni;Acqua
615;153,39;ABBANOA S.P.A.; ;SALDO Fatt.n. 0150020220000878200  del 08/04/2022 B/Bollettazione CONSUMI IDRICI PERIODO  29 NOVEMBRE 2021/ 24 MARZO 2022 - PALAZZO COMUNALE -;02/05/2022;1087;3;75;1;Spese correnti;Acquisto di beni e servizi;Acquisto di servizi;Utenze e canoni;Acqua
616;17,19;ENEL ENERGIA S.P.A.;84181751C6;SALDO Fatt.n. 004213719899  del 07/04/2022 Descrizione Contratto CONSIPEE17_7_FIX18M - CONSUMI ELETTRICI MESE DI MARZO 2022 - IMPIANTO SEMAFORICO -;02/05/2022;1937;0;50;1;Spese correnti;Acquisto di beni e servizi;Acquisto di servizi;Utenze e canoni;Energia elettrica
616;21,13;ENEL ENERGIA S.P.A.;84181751C6;SALDO Fatt.n. 004216185003  del 10/04/2022 Descrizione Contratto CONSIPEE17_7_FIX18M - CONSUMI ELETTRICI MESE DI MARZO 2022 - PIAZZA SOLIVARIU  -;02/05/2022;1937;0;50;1;Spese correnti;Acquisto di beni e servizi;Acquisto di servizi;Utenze e canoni;Energia elettrica
616;79,02;ENEL ENERGIA S.P.A.;84181751C6;SALDO Fatt.n. 004220549892  del 13/04/2022 Descrizione Contratto CONSIPEE17_7_FIX18M - CONSUMI LLUMINAZIONE PUBBLICA PEEP - MESE DDI MARZO 2022 -;02/05/2022;1937;0;50;1;Spese correnti;Acquisto di beni e servizi;Acquisto di servizi;Utenze e canoni;Energia elettrica
616;137,4;ENEL ENERGIA S.P.A.;84181751C6;SALDO Fatt.n. 004213719898  del 07/04/2022 Descrizione Contratto CONSIPEE17_7_FIX18M - CONSUMI ELETTRICI MESE DI MARZO 2022 - ILLUMINAZIONE PUBBLICA SOLIVARIU -;02/05/2022;1937;0;50;1;Spese correnti;Acquisto di beni e servizi;Acquisto di servizi;Utenze e canoni;Energia elettrica
616;255,9;ENEL ENERGIA S.P.A.;84181751C6;SALDO Fatt.n. 004213719889  del 07/04/2022 Descrizione Contratto CONSIPEE17_7_FIX18M - CONSUMI ELETTRICI MESE DI MARZO 2022 - ILLUMINAZIONE PUBBLICA VIA MURRECCI -;02/05/2022;1937;0;50;1;Spese correnti;Acquisto di beni e servizi;Acquisto di servizi;Utenze e canoni;Energia elettrica
616;876,22;ENEL ENERGIA S.P.A.;84181751C6;SALDO Fatt.n. 004220947906  del 14/04/2022 Descrizione Contratto CONSIPEE17_7_FIX18M - CONSUMI LLUMINAZIONE PUBBLICA VIA CAMPAGNA - MESE DI MARZO 2022 -;02/05/2022;1937;0;50;1;Spese correnti;Acquisto di beni e servizi;Acquisto di servizi;Utenze e canoni;Energia elettrica
617;29,29;ENEL ENERGIA S.P.A.;84181751C6;SALDO Fatt.n. 004213719893  del 07/04/2022 Descrizione Contratto CONSIPEE17_7_FIX18M - CONSUMI ELETTRICI MESE DI MARZO 2022 - EX SCUOLE MEDIE  -;02/05/2022;1386;2;51;1;Spese correnti;Acquisto di beni e servizi;Acquisto di servizi;Utenze e canoni;Energia elettrica
618;142,32;ENEL ENERGIA S.P.A.;84181751C6;SALDO Fatt.n. 004213719892  del 07/04/2022 Descrizione Contratto CONSIPEE17_7_FIX18M - CONSUMI ELETTRICI MESE DI MARZO 2022 - SCUOLE ELEMENTARI  -;02/05/2022;1366;3;52;1;Spese correnti;Acquisto di beni e servizi;Acquisto di servizi;Utenze e canoni;Energia elettrica
619;19,28;ENEL ENERGIA S.P.A.;84181751C6;SALDO Fatt.n. 004213719888  del 07/04/2022 Descrizione Contratto CONSIPEE17_7_FIX18M CONSUMI ELETTRICI EX COMUNE - MESE DI MARZO 2022 -;02/05/2022;1087;2;53;1;Spese correnti;Acquisto di beni e servizi;Acquisto di servizi;Utenze e canoni;Energia elettrica
619;53,81;ENEL ENERGIA S.P.A.;84181751C6;SALDO Fatt.n. 004213719897  del 07/04/2022 Descrizione Contratto CONSIPEE17_7_FIX18M - CONSUMI ELETTRICI MESE DI MARZO 2022 - BIBLIOTECA -;02/05/2022;1087;2;53;1;Spese correnti;Acquisto di beni e servizi;Acquisto di servizi;Utenze e canoni;Energia elettrica
619;408,22;ENEL ENERGIA S.P.A.;84181751C6;SALDO Fatt.n. 004220947908  del 14/04/2022 Descrizione Contratto CONSIPEE17_7_FIX18M - CONSUMI LLUMINAZIONE PUBBLICA PEEP - MESE DI MARZO 2022 -;02/05/2022;1087;2;53;1;Spese correnti;Acquisto di beni e servizi;Acquisto di servizi;Utenze e canoni;Energia elettrica
620;17,35;ENEL ENERGIA S.P.A.;84181751C6;SALDO Fatt.n. 004213719887  del 07/04/2022 Descrizione Contratto CONSIPEE17_7_FIX18M - CONSUMI ELETTRICI MESE DI MARZO 2022 - CAMPO POLIVALENTE -;02/05/2022;1826;1;54;1;Spese correnti;Acquisto di beni e servizi;Acquisto di servizi;Utenze e canoni;Energia elettrica
620;119,57;ENEL ENERGIA S.P.A.;84181751C6;SALDO Fatt.n. 004213719890  del 07/04/2022 Descrizione Contratto CONSIPEE17_7_FIX18M - CONSUMI ELETTRICI MESE DI MARZO 2022 - CAMPO SPORTIVO -;02/05/2022;1826;1;54;1;Spese correnti;Acquisto di beni e servizi;Acquisto di servizi;Utenze e canoni;Energia elettrica
621;10,58;ENEL ENERGIA S.P.A.;84181751C6;SALDO Fatt.n. 004213719891  del 07/04/2022 Descrizione Contratto CONSIPEE17_7_FIX18M - CONSUMI ELETTRICI MESE DI MARZO 2022 - VILLINO SALAZAR -;02/05/2022;1526;0;55;1;Spese correnti;Acquisto di beni e servizi;Acquisto di servizi;Utenze e canoni;Energia elettrica
621;56,94;ENEL ENERGIA S.P.A.;84181751C6;SALDO Fatt.n. 004213719895  del 07/04/2022 Descrizione Contratto CONSIPEE17_7_FIX18M - CONSUMI ELETTRICI MESE DI MARZO 2022 - CENTRO SOCIALE  -;02/05/2022;1526;0;55;1;Spese correnti;Acquisto di beni e servizi;Acquisto di servizi;Utenze e canoni;Energia elettrica
621;151,26;ENEL ENERGIA S.P.A.;84181751C6;SALDO Fatt.n. 004213719896  del 07/04/2022 Descrizione Contratto CONSIPEE17_7_FIX18M - CONSUMI ELETTRICI MESE DI MARZO 2022 - CENTRO SERVIZI -;02/05/2022;1526;0;55;1;Spese correnti;Acquisto di beni e servizi;Acquisto di servizi;Utenze e canoni;Energia elettrica
622;26,8;ENEL ENERGIA S.P.A.;84181751C6;SALDO Fatt.n. 004213719894  del 07/04/2022 Descrizione Contratto CONSIPEE17_7_FIX18M - CONSUMI ELETTRICI MESE DI MARZO 2022 - CIMITERO -;02/05/2022;1656;1;56;1;Spese correnti;Acquisto di beni e servizi;Acquisto di servizi;Utenze e canoni;Energia elettrica
623;28,54;ENEL ENERGIA S.P.A.;84181751C6;SALDO Fatt.n. 004220947907  del 14/04/2022 Descrizione Contratto CONSIPEE17_7_FIX18M - CONSUMI ILLUMINAZIONE PIAZZA ANFITEATRO  MESE DI MARZO 2022 -;02/05/2022;1090;0;57;1;Spese correnti;Acquisto di beni e servizi;Acquisto di servizi;Utenze e canoni;Energia elettrica
624;130,72;ENEL ENERGIA S.P.A.;84181751C6;SALDO Fatt.n. 004218609925  del 12/04/2022 Descrizione Contratto CONSIPEE17_7_FIX18M - CONSUMI LLUMINAZIONE PUBBLICA PEEP - MESE DI MARZO 2022 -;02/05/2022;1086;0;58;1;Spese correnti;Acquisto di beni e servizi;Acquisto di servizi;Utenze e canoni;Energia elettrica
625;1.288,68;CERAMICHE ORBANA S.R.L. DEI F.LLI ORBANA; ;F.DO DI SOSTEGNO  ATTIVITA ECONOMICHE ARTIGIANALI E COMM.LI NELLE AREE INTERNE EX ART. 1, COMMI 65-TER, 65-QUATER E 65-QUINQUIES, L. 205/17 E DPCM 24.09.2020 ANNUALITA 2020  -;03/05/2022;1748;0;238;1;Spese correnti;Trasferimenti correnti;Trasferimenti correnti a Imprese;Trasferimenti correnti a altre imprese;Trasferimenti correnti a altre imprese
626;1.288,68;CLINCO MARINELLA MATERIALI EDILI; ;F.DO DI SOSTEGNO  ATTIVITA ECONOMICHE ARTIGIANALI E COMM.LI NELLE AREE INTERNE EX ART. 1, COMMI 65-TER, 65-QUATER E 65-QUINQUIES, L. 205/17 E DPCM 24.09.2020 ANNUALITA 2020  -;03/05/2022;1748;0;238;1;Spese correnti;Trasferimenti correnti;Trasferimenti correnti a Imprese;Trasferimenti correnti a altre imprese;Trasferimenti correnti a altre imprese
627;1.288,68;TAZZA GIAMPAOLO; ;F.DO DI SOSTEGNO  ATTIVITA ECONOMICHE ARTIGIANALI E COMM.LI NELLE AREE INTERNE EX ART. 1, COMMI 65-TER, 65-QUATER E 65-QUINQUIES, L. 205/17 E DPCM 24.09.2020 ANNUALITA 2020  -;03/05/2022;1748;0;238;1;Spese correnti;Trasferimenti correnti;Trasferimenti correnti a Imprese;Trasferimenti correnti a altre imprese;Trasferimenti correnti a altre imprese
628;1.288,68;ATZORI SERGIO DI ATZORI EZIO INFISSI IN ALLUMINIO; ;F.DO DI SOSTEGNO  ATTIVITA ECONOMICHE ARTIGIANALI E COMM.LI NELLE AREE INTERNE EX ART. 1, COMMI 65-TER, 65-QUATER E 65-QUINQUIES, L. 205/17 E DPCM 24.09.2020 ANNUALITA 2020  -;03/05/2022;1748;0;238;1;Spese correnti;Trasferimenti correnti;Trasferimenti correnti a Imprese;Trasferimenti correnti a altre imprese;Trasferimenti correnti a altre imprese
629;1.288,68;GIOVANNI MUSUMECI VIAGGI; ;F.DO DI SOSTEGNO  ATTIVITA ECONOMICHE ARTIGIANALI E COMM.LI NELLE AREE INTERNE EX ART. 1, COMMI 65-TER, 65-QUATER E 65-QUINQUIES, L. 205/17 E DPCM 24.09.2020 ANNUALITA 2020  -;03/05/2022;1748;0;238;1;Spese correnti;Trasferimenti correnti;Trasferimenti correnti a Imprese;Trasferimenti correnti a altre imprese;Trasferimenti correnti a altre imprese
630;1.288,68;LA BOTTEGUCCIA DI MEI ZEUDY; ;F.DO DI SOSTEGNO  ATTIVITA ECONOMICHE ARTIGIANALI E COMM.LI NELLE AREE INTERNE EX ART. 1, COMMI 65-TER, 65-QUATER E 65-QUINQUIES, L. 205/17 E DPCM 24.09.2020 ANNUALITA 2020  -;03/05/2022;1748;0;238;1;Spese correnti;Trasferimenti correnti;Trasferimenti correnti a Imprese;Trasferimenti correnti a altre imprese;Trasferimenti correnti a altre imprese
631;1.288,68;CAMBULA VANNINA; ;F.DO DI SOSTEGNO  ATTIVITA ECONOMICHE ARTIGIANALI E COMM.LI NELLE AREE INTERNE EX ART. 1, COMMI 65-TER, 65-QUATER E 65-QUINQUIES, L. 205/17 E DPCM 24.09.2020 ANNUALITA 2020  -;03/05/2022;1748;0;238;1;Spese correnti;Trasferimenti correnti;Trasferimenti correnti a Imprese;Trasferimenti correnti a altre imprese;Trasferimenti correnti a altre imprese
632;1.288,68;CAMBULA RITA; ;F.DO DI SOSTEGNO  ATTIVITA ECONOMICHE ARTIGIANALI E COMM.LI NELLE AREE INTERNE EX ART. 1, COMMI 65-TER, 65-QUATER E 65-QUINQUIES, L. 205/17 E DPCM 24.09.2020 ANNUALITA 2020  -;03/05/2022;1748;0;238;1;Spese correnti;Trasferimenti correnti;Trasferimenti correnti a Imprese;Trasferimenti correnti a altre imprese;Trasferimenti correnti a altre imprese
633;1.288,68;CENTRO CARNI F.LLI PINNA; ;F.DO DI SOSTEGNO  ATTIVITA ECONOMICHE ARTIGIANALI E COMM.LI NELLE AREE INTERNE EX ART. 1, COMMI 65-TER, 65-QUATER E 65-QUINQUIES, L. 205/17 E DPCM 24.09.2020 ANNUALITA 2020  -;03/05/2022;1748;0;238;1;Spese correnti;Trasferimenti correnti;Trasferimenti correnti a Imprese;Trasferimenti correnti a altre imprese;Trasferimenti correnti a altre imprese
634;1.288,68;CAMBULA MARIO; ;F.DO DI SOSTEGNO  ATTIVITA ECONOMICHE ARTIGIANALI E COMM.LI NELLE AREE INTERNE EX ART. 1, COMMI 65-TER, 65-QUATER E 65-QUINQUIES, L. 205/17 E DPCM 24.09.2020 ANNUALITA 2020  -;03/05/2022;1748;0;238;1;Spese correnti;Trasferimenti correnti;Trasferimenti correnti a Imprese;Trasferimenti correnti a altre imprese;Trasferimenti correnti a altre imprese
635;1.288,68;MURGIA FABRIZIO; ;F.DO DI SOSTEGNO  ATTIVITA ECONOMICHE ARTIGIANALI E COMM.LI NELLE AREE INTERNE EX ART. 1, COMMI 65-TER, 65-QUATER E 65-QUINQUIES, L. 205/17 E DPCM 24.09.2020 ANNUALITA 2020  -;03/05/2022;1748;0;238;1;Spese correnti;Trasferimenti correnti;Trasferimenti correnti a Imprese;Trasferimenti correnti a altre imprese;Trasferimenti correnti a altre imprese
636;1.288,68;MARMERIA LO RICO DI MAURO LO RICO; ;F.DO DI SOSTEGNO  ATTIVITA ECONOMICHE ARTIGIANALI E COMM.LI NELLE AREE INTERNE EX ART. 1, COMMI 65-TER, 65-QUATER E 65-QUINQUIES, L. 205/17 E DPCM 24.09.2020 ANNUALITA 2020  -;03/05/2022;1748;0;238;1;Spese correnti;Trasferimenti correnti;Trasferimenti correnti a Imprese;Trasferimenti correnti a altre imprese;Trasferimenti correnti a altre imprese
637;5.875,84;TEKNOSERVICE S.R.L.;Z2734449FB;SALDO Fatt.n. 1090/PA  del 30/04/2022 SERVIZIO RACCOLTA E TRASPORTO R.S.U. DIFFERENZIATI - MESE DI APRILE 2022 -;03/05/2022;1738;0;327;1;Spese correnti;Acquisto di beni e servizi;Acquisto di servizi;Contratti di servizio pubblico;Contratti di servizio per la raccolta rifiuti
638;1.220,00;HALLEY SARDEGNA S.R.L.;Z0035AFA8D;SALDO Fatt.n. 0000467  del 26/04/2022 CONSULENZA SERVIZIO CONTABILITA ECONOMICO PATRIMONIALE -;03/05/2022;1046;1;101;1;Spese correnti;Acquisto di beni e servizi;Acquisto di servizi;Altri servizi;Altri servizi diversi n.a.c.
639;1.537,20;KIBERNETES S.R.L. - SILEA;Z7E3574DED;ACCONTO Fatt.n. 0001183/SPLIT  del 21/04/2022;03/05/2022;1046;1;97;1;Spese correnti;Acquisto di beni e servizi;Acquisto di servizi;Altri servizi;Altri servizi diversi n.a.c.
640;1.464,00;KIBERNETES S.R.L. - SILEA;Z7E3574DED;SALDO Fatt.n. 0001183/SPLIT  del 21/04/2022;03/05/2022;1043;4;98;1;Spese correnti;Acquisto di beni e servizi;Acquisto di servizi;Prestazioni professionali e specialistiche;Altre prestazioni professionali e specialistiche n.a.c.
644;10.936,60;QUARTO SANTINO;Z64328C41B;SALDO Fatt.n. FATTPA 222  del 29/04/2022 ONORARI PROFESSIONALI LAVORI MANUT.STRAORDINARIA MESSA IN SICUREZZA EDIFICIO COMUNALE DI VIA PIEMONTE;06/05/2022;3006;0;225;2;Spese in conto capitale;Investimenti fissi lordi e acquisto di terreni;Beni materiali;Beni immobili;Beni immobili n.a.c.
646;5.859,51;GARAU FRANCESCO;ZC331C268E;SALDO Fatt.n. 20/FE  del 05/05/2022 PROGETT.FATT.DEFINITIVA ESECUTIVA, D.L. COORD. SICUREZZA CONTABILITA C.R.E. LAVORI EFFICIENTAMENTO IMPIANTO ILLUMINAZIONE PUBBLICA  -;09/05/2022;3485;0;190;2;Spese in conto capitale;Investimenti fissi lordi e acquisto di terreni;Beni materiali;Beni immobili;Altre vie di comunicazione
647;502,63;UNIONE DEI COMUNI DEL SULCIS; ;QUOTA COMUNE DI PISCINAS GESTIONE  SERVIZIO ASSOCIATO SUAPEE ALLINTERNO DELL UNIONE DEI COMUNI DEL SULCIS - ANNUALITA 2022 -;09/05/2022;1095;1;178;1;Spese correnti;Trasferimenti correnti;Trasferimenti correnti a Amministrazioni Pubbliche;Trasferimenti correnti a Amministrazioni Locali;Trasferimenti correnti a Unioni di Comuni
648;375;ABILTECNO Societa' Cooperativa Onlus; ;L. 162/98 PIANI PERSONALIZZATI  MESE DI MARZO 2022 - RIMBORSO FATT. 58/2022 -;09/05/2022;1920;15;30;1;Spese correnti;Trasferimenti correnti;Trasferimenti correnti a Famiglie;Interventi assistenziali;Altri assegni e sussidi assistenziali
649;106,48;SOGGETTI DIVERSI; ;L. 162/98 PIANI PERSONALIZZATI  MESE DI APRILE 2022 -;09/05/2022;1920;15;26;1;Spese correnti;Trasferimenti correnti;Trasferimenti correnti a Famiglie;Interventi assistenziali;Altri assegni e sussidi assistenziali
650;159,85;SOGGETTI DIVERSI; ;L. 162/98 PIANI PERSONALIZZATI  MESE DI APRILE 2022 -;09/05/2022;1920;15;13;1;Spese correnti;Trasferimenti correnti;Trasferimenti correnti a Famiglie;Interventi assistenziali;Altri assegni e sussidi assistenziali
651;116,11;SOGGETTI DIVERSI; ;L. 162/98 PIANI PERSONALIZZATI  MESE DI APRILE 2022 -;09/05/2022;1920;15;48;1;Spese correnti;Trasferimenti correnti;Trasferimenti correnti a Famiglie;Interventi assistenziali;Altri assegni e sussidi assistenziali
652;156,25;SOGGETTI DIVERSI; ;L. 162/98 PIANI PERSONALIZZATI  MESE DI APRILE 2022 -;09/05/2022;1920;15;47;1;Spese correnti;Trasferimenti correnti;Trasferimenti correnti a Famiglie;Interventi assistenziali;Altri assegni e sussidi assistenziali
653;156,86;SOGGETTI DIVERSI; ;L. 162/98 PIANI PERSONALIZZATI  MESE DI APRILE 2022 -;09/05/2022;1920;15;45;1;Spese correnti;Trasferimenti correnti;Trasferimenti correnti a Famiglie;Interventi assistenziali;Altri assegni e sussidi assistenziali
654;503,93;SOGGETTI DIVERSI; ;L. 162/98 PIANI PERSONALIZZATI  MESE DI APRILE 2022 -;09/05/2022;1920;15;42;1;Spese correnti;Trasferimenti correnti;Trasferimenti correnti a Famiglie;Interventi assistenziali;Altri assegni e sussidi assistenziali
655;313,25;SOGGETTI DIVERSI; ;L. 162/98 PIANI PERSONALIZZATI  MESE DI APRILE 2022 -;09/05/2022;1920;15;37;1;Spese correnti;Trasferimenti correnti;Trasferimenti correnti a Famiglie;Interventi assistenziali;Altri assegni e sussidi assistenziali
656;351,88;SOGGETTI DIVERSI; ;L. 162/98 PIANI PERSONALIZZATI  MESE DI APRILE 2022.;09/05/2022;1920;15;35;1;Spese correnti;Trasferimenti correnti;Trasferimenti correnti a Famiglie;Interventi assistenziali;Altri assegni e sussidi assistenziali
657;194,8;SOGGETTI DIVERSI; ;L. 162/98 PIANI PERSONALIZZATI  MESE DI APRILE 2022.;09/05/2022;1920;15;34;1;Spese correnti;Trasferimenti correnti;Trasferimenti correnti a Famiglie;Interventi assistenziali;Altri assegni e sussidi assistenziali
658;331,29;SOGGETTI DIVERSI; ;L. 162/98 PIANI PERSONALIZZATI  MESE DI APRILE 2022.;09/05/2022;1920;15;33;1;Spese correnti;Trasferimenti correnti;Trasferimenti correnti a Famiglie;Interventi assistenziali;Altri assegni e sussidi assistenziali
659;375;SOGGETTI DIVERSI; ;L. 162/98 PIANI PERSONALIZZATI  MESE DI APRILE 2022.;09/05/2022;1920;15;14;1;Spese correnti;Trasferimenti correnti;Trasferimenti correnti a Famiglie;Interventi assistenziali;Altri assegni e sussidi assistenziali
660;329,76;SOGGETTI DIVERSI; ;L. 162/98 PIANI PERSONALIZZATI  MESE DI APRILE 2022.;09/05/2022;1920;15;15;1;Spese correnti;Trasferimenti correnti;Trasferimenti correnti a Famiglie;Interventi assistenziali;Altri assegni e sussidi assistenziali
661;200;SOGGETTI DIVERSI; ;AMMINISTRATORE DI SOSTEGNO EX DECRETO GIUDICE TUTELARE VG 4728/17 DEL 09.07.2020. RICONOSCIMENTO EQUO INDENNIZZO  ANNO 2022.;09/05/2022;1920;13;73;1;Spese correnti;Acquisto di beni e servizi;Acquisto di servizi;Prestazioni professionali e specialistiche;Altre prestazioni professionali e specialistiche n.a.c.
662;150;SOGGETTI DIVERSI; ;L.R. 18/16 FONDO REGIONALE PER IL REDDITO DI INCLUSIONE SOCIALE (REIS) AGIUDU TORRAU ANNUALIT 2021 - PROGETTI DI INCLUSIONE ATTIVA I SEMESTRE;09/05/2022;1919;6;312;1;Spese correnti;Trasferimenti correnti;Trasferimenti correnti a Famiglie;Interventi assistenziali;Altri assegni e sussidi assistenziali
663;1.997,67;SOGGETTI DIVERSI; ;PROGETTI RITORNARE A CASA PLUS  I SEMESTRE - MESE DI APRILE 2022 -;09/05/2022;1920;0;65;1;Spese correnti;Trasferimenti correnti;Trasferimenti correnti a Famiglie;Interventi assistenziali;Altri assegni e sussidi assistenziali
664;2.695,00;AUTONOLEGGIO FRACCI ALESSANDRO;8417474F46;SALDO Fatt.n. FE14  del 02/05/2022 SERVIZIO TRASPORTO SCOLASTICO IN RIF. AL MESE DI APRILE 2022;09/05/2022;1417;3;83;1;Spese correnti;Acquisto di beni e servizi;Acquisto di servizi;Contratti di servizio pubblico;Contratti di servizio di trasporto scolastico
665;200;CAMBULA VANNINA; ;RIMBORSO BUONI SPESA C.S.  -L.R. 18/16 FONDO REGIONALE PER IL REDDITO DI INCLUSIONE SOCIALE (REIS) AGIUDU TORRAU ANNUALIT 2021.PARTE PRIMA  SUSSIDIO ECONOMICO I SEMESTRE -;09/05/2022;1919;6;311;1;Spese correnti;Trasferimenti correnti;Trasferimenti correnti a Famiglie;Interventi assistenziali;Altri assegni e sussidi assistenziali
666;360;CAMBULA VANNINA; ;RIMBORSO BUONI SPESA  C.O. -L.R. 18/16 FONDO REGIONALE PER IL REDDITO DI INCLUSIONE SOCIALE (REIS) AGIUDU TORRAU ANNUALIT 2021.PARTE PRIMA  SUSSIDIO ECONOMICO I SEMESTRE -;09/05/2022;1919;6;311;1;Spese correnti;Trasferimenti correnti;Trasferimenti correnti a Famiglie;Interventi assistenziali;Altri assegni e sussidi assistenziali
667;210;CAMBULA VANNINA; ;L.R. 18/16 FONDO REGIONALE PER IL REDDITO DI INCLUSIONE SOCIALE (REIS) AGIUDU TORRAU ANNUALIT 2021.PARTE PRIMA  SUSSIDIO ECONOMICO I SEMESTRE - RIMBORSO BUONI SPESA -;09/05/2022;1919;6;311;1;Spese correnti;Trasferimenti correnti;Trasferimenti correnti a Famiglie;Interventi assistenziali;Altri assegni e sussidi assistenziali
668;280;CENTRO CARNI F.LLI PINNA; ;RIMBORSO BUONI SPESA C.S. - L.R. 18/16 FONDO REGIONALE PER IL REDDITO DI INCLUSIONE SOCIALE (REIS) AGIUDU TORRAU ANNUALIT 2021.PARTE PRIMA  SUSSIDIO ECONOMICO I SEMESTRE;09/05/2022;1919;6;311;1;Spese correnti;Trasferimenti correnti;Trasferimenti correnti a Famiglie;Interventi assistenziali;Altri assegni e sussidi assistenziali
669;70;CENTRO CARNI F.LLI PINNA; ;RIMBORSO BUONI SPESA C.O. - L.R. 18/16 FONDO REGIONALE PER IL REDDITO DI INCLUSIONE SOCIALE (REIS) AGIUDU TORRAU ANNUALIT 2021.PARTE PRIMA  SUSSIDIO ECONOMICO I SEMESTRE;09/05/2022;1919;6;311;1;Spese correnti;Trasferimenti correnti;Trasferimenti correnti a Famiglie;Interventi assistenziali;Altri assegni e sussidi assistenziali
670;495;CENTRO CARNI F.LLI PINNA; ;RIMBORSO BUONI SPESA P.S. - L.R. 18/16 FONDO REGIONALE PER IL REDDITO DI INCLUSIONE SOCIALE (REIS) AGIUDU TORRAU ANNUALITA 2021.PARTE PRIMA  SUSSIDIO ECONOMICO I SEMESTRE;09/05/2022;1919;6;311;1;Spese correnti;Trasferimenti correnti;Trasferimenti correnti a Famiglie;Interventi assistenziali;Altri assegni e sussidi assistenziali
672;506,85;SOGGETTI DIVERSI; ;LL.RR. 11/85 E 43/93 EROGAZIONE PROVVIDENZE - MESE DI APRILE 2022 -;11/05/2022;1916;0;94;1;Spese correnti;Trasferimenti correnti;Trasferimenti correnti a Famiglie;Interventi assistenziali;Altri assegni e sussidi assistenziali
673;144,27;SOGGETTI DIVERSI; ;L. 162/98 PIANI PERSONALIZZATI  MESE DI APRILE 2022 -;11/05/2022;1920;15;12;1;Spese correnti;Trasferimenti correnti;Trasferimenti correnti a Famiglie;Interventi assistenziali;Altri assegni e sussidi assistenziali
674;214,04;SOGGETTI DIVERSI; ;L. 162/98 PIANI PERSONALIZZATI  MESE DI APRILE 2022 -;11/05/2022;1920;15;19;1;Spese correnti;Trasferimenti correnti;Trasferimenti correnti a Famiglie;Interventi assistenziali;Altri assegni e sussidi assistenziali
675;419,56;SOGGETTI DIVERSI; ;L. 162/98 PIANI PERSONALIZZATI  MESI DI MARZO/APRILE 2022 -;11/05/2022;1920;15;44;1;Spese correnti;Trasferimenti correnti;Trasferimenti correnti a Famiglie;Interventi assistenziali;Altri assegni e sussidi assistenziali
676;152,55;SOGGETTI DIVERSI; ;L. 162/98 PIANI PERSONALIZZATI  MESE DI APRILE 2022 -;11/05/2022;1920;15;46;1;Spese correnti;Trasferimenti correnti;Trasferimenti correnti a Famiglie;Interventi assistenziali;Altri assegni e sussidi assistenziali
677;122,72;SOGGETTI DIVERSI; ;L. 162/98 PIANI PERSONALIZZATI  MESE DI APRILE 2022 -.;11/05/2022;1920;15;16;1;Spese correnti;Trasferimenti correnti;Trasferimenti correnti a Famiglie;Interventi assistenziali;Altri assegni e sussidi assistenziali
678;125,6;SOGGETTI DIVERSI; ;L. 162/98 PIANI PERSONALIZZATI  MESE DI APRILE 2022 -;11/05/2022;1920;15;39;1;Spese correnti;Trasferimenti correnti;Trasferimenti correnti a Famiglie;Interventi assistenziali;Altri assegni e sussidi assistenziali
679;1.144,47;SOGGETTI DIVERSI; ;PROGETTI RITORNARE A CASA PLUS  I SEMESTRE . (CAREGIVER) - MESE DI MARZO E CONTR. INPS -;11/05/2022;1920;0;66;1;Spese correnti;Trasferimenti correnti;Trasferimenti correnti a Famiglie;Interventi assistenziali;Altri assegni e sussidi assistenziali
680;882,71;SOGGETTI DIVERSI; ;PROGETTI RITORNARE A CASA PLUS  I SEMESTRE  - MESE DI MARZO E CONTR. INPS -;11/05/2022;1920;0;67;1;Spese correnti;Trasferimenti correnti;Trasferimenti correnti a Famiglie;Interventi assistenziali;Altri assegni e sussidi assistenziali
681;319,14;SOGGETTI DIVERSI; ;L. 162/98 PIANI PERSONALIZZATI  MESE DI APRILE 2022.;11/05/2022;1920;15;24;1;Spese correnti;Trasferimenti correnti;Trasferimenti correnti a Famiglie;Interventi assistenziali;Altri assegni e sussidi assistenziali
682;953,44;SOGGETTI DIVERSI; ;PROGETTI RITORNARE A CASA PLUS  I SEMESTRE  - MESE DI APRILE 2022 -;11/05/2022;1920;0;69;1;Spese correnti;Trasferimenti correnti;Trasferimenti correnti a Famiglie;Interventi assistenziali;Altri assegni e sussidi assistenziali
683;173,99;KUWAIT PETROLEUM ITALIA SPA;Z5928641D0;SALDO Fatt.n. PJ05298496  del 30/04/2022 FORNITURA CARBURANTE PER AUTOTRAZIONE MEZZI COMUNALI - MESE DI APRILE 2022 -;11/05/2022;1057;0;4;1;Spese correnti;Acquisto di beni e servizi;Acquisto di beni;Altri beni di consumo;Carburanti, combustibili e lubrificanti
684;488;MEDIANET SRL;ZBD2A99DFB;SALDO Fatt.n. 7271/WT  del 01/05/2022 CANONE CONTRATTO DI TELEFONIA FISSA PERIODO MAGGIO/GIUGNO 2022 -;11/05/2022;1043;2;64;1;Spese correnti;Acquisto di beni e servizi;Acquisto di servizi;Utenze e canoni;Telefonia fissa
685;494;S.I.P.A.L. SRL;Z64239C8D1;SALDO Fatt.n. 592  del 06/05/2022 CIG: Z64239C8D1 - Determina: AREA AMMINISTRATIVA Na 76 DEL 22/05/2018 - Servizio:  INCARICO RESPONSABILE PROTEZIONE DATI E FORMAZIONE REGOLAMENTO UE 679/2016;11/05/2022;1043;4;186;1;Spese correnti;Acquisto di beni e servizi;Acquisto di servizi;Prestazioni professionali e specialistiche;Altre prestazioni professionali e specialistiche n.a.c.
686;1.038,71;DITTA DIANA CLAUDIO;ZE335E968C;SALDO Fatt.n. FPA 27/22  del 29/04/2022 FORNITURA E POSA IN OPERA RICAMBI OROLOGIO STRADALE DI VIA REGINA MARGHERITA -;11/05/2022;1089;0;129;1;Spese correnti;Acquisto di beni e servizi;Acquisto di beni;Altri beni di consumo;Altri materiali tecnico-specialistici non sanitari
687;600;DITTA DIANA CLAUDIO;ZCD2ABCD3D;SALDO Fatt.n. FPA 28/22  del 29/04/2022 MANUTENZIONE E CONDUZIONE IMPIANTO DI RISCALDAMENTO SCUOLA ELEMENTARE E MATERNA PISCINAS -;11/05/2022;1366;2;185;1;Spese correnti;Acquisto di beni e servizi;Acquisto di servizi;Manutenzione ordinaria e riparazioni;Manutenzione ordinaria e riparazioni di beni immobili
688;54.494,00;FRATELLI ALEDDA DI GIANCARLO E MARCELLO ALEDDA SOCIETA' IN NOME COLLETTIVO;8688912D00;SALDO Fatt.n. 19/E/2022  del 06/05/2022 - 2 STATO DI AVANZAMENTO LAVORI DI RECUPERO E VALORIZZAZIONE DEL PARCO SALAZAR SECONDO INTERVENTO -;11/05/2022;3236;0;337;2;Spese in conto capitale;Investimenti fissi lordi e acquisto di terreni;Beni materiali;Beni immobili;Musei, teatri e biblioteche
693;750;COOP. SOCIALE ADEST A R.L. ONLUS; ;RIMBORSO FATTURA N. 1662/2022 - L. 162/98 PIANI PERSONALIZZATI  MESI DI MARZO/APRILE -;13/05/2022;1920;15;43;1;Spese correnti;Trasferimenti correnti;Trasferimenti correnti a Famiglie;Interventi assistenziali;Altri assegni e sussidi assistenziali
694;727,5;COOP. SOCIALE ADEST A R.L. ONLUS; ;RIMBORSO FATTURA N. 1666/2022 - L. 162/98 PIANI PERSONALIZZATI PERIODO MARZO/APRILE 2022.;13/05/2022;1920;15;38;1;Spese correnti;Trasferimenti correnti;Trasferimenti correnti a Famiglie;Interventi assistenziali;Altri assegni e sussidi assistenziali
695;693;COOP. SOCIALE ADEST A R.L. ONLUS; ;RIMBORSO FATTURA N. 1670/2022 - L. 162/98 PIANI PERSONALIZZATI   PERIODO MARZO/APRILE 2022.;13/05/2022;1920;15;36;1;Spese correnti;Trasferimenti correnti;Trasferimenti correnti a Famiglie;Interventi assistenziali;Altri assegni e sussidi assistenziali
696;485;COOP. SOCIALE ADEST A R.L. ONLUS; ;RIMBORSO FATTURA N. 1668/2022 - L. 162/98 PIANI PERSONALIZZATI   PERIODO MARZO/APRILE 2022.;13/05/2022;1920;15;29;1;Spese correnti;Trasferimenti correnti;Trasferimenti correnti a Famiglie;Interventi assistenziali;Altri assegni e sussidi assistenziali
697;485;COOP. SOCIALE ADEST A R.L. ONLUS; ;RIMBORSO FATTURA N. 1669/2022 - L. 162/98 PIANI PERSONALIZZATI   PERIODO MARZO/APRILE 2022.;13/05/2022;1920;15;28;1;Spese correnti;Trasferimenti correnti;Trasferimenti correnti a Famiglie;Interventi assistenziali;Altri assegni e sussidi assistenziali
698;375;COOP. SOCIALE ADEST A R.L. ONLUS; ;RIMBORSO FATTURA N. 1664/2022 - L. 162/98 PIANI PERSONALIZZATI   PERIODO MARZO/APRILE 2022.;13/05/2022;1920;15;23;1;Spese correnti;Trasferimenti correnti;Trasferimenti correnti a Famiglie;Interventi assistenziali;Altri assegni e sussidi assistenziali
699;2.101,66;COOP. SOCIALE ADEST A R.L. ONLUS; ;RIMBORSO FATTURA N. 1667/2022 - L. 162/98 PIANI PERSONALIZZATI   PERIODO MARZO/APRILE 2022.;13/05/2022;1920;15;22;1;Spese correnti;Trasferimenti correnti;Trasferimenti correnti a Famiglie;Interventi assistenziali;Altri assegni e sussidi assistenziali
700;500;COOP. SOCIALE ADEST A R.L. ONLUS; ;RIMBORSO FATTURA N. 1661/2022 - L. 162/98 PIANI PERSONALIZZATI   PERIODO MARZO/APRILE 2022.;13/05/2022;1920;15;21;1;Spese correnti;Trasferimenti correnti;Trasferimenti correnti a Famiglie;Interventi assistenziali;Altri assegni e sussidi assistenziali
701;363,74;COOP. SOCIALE ADEST A R.L. ONLUS; ;RIMBORSO FATTURA N. 1663/2022 - L. 162/98 PIANI PERSONALIZZATI   PERIODO MARZO/APRILE 2022.;13/05/2022;1920;15;18;1;Spese correnti;Trasferimenti correnti;Trasferimenti correnti a Famiglie;Interventi assistenziali;Altri assegni e sussidi assistenziali
702;284,37;COOP. SOCIALE ADEST A R.L. ONLUS; ;RIMBORSO FATTURA N. 1665/2022 - L. 162/98 PIANI PERSONALIZZATI   PERIODO MARZO/APRILE 2022.;13/05/2022;1920;15;17;1;Spese correnti;Trasferimenti correnti;Trasferimenti correnti a Famiglie;Interventi assistenziali;Altri assegni e sussidi assistenziali
703;1.333,33;COOP. SOCIALE ADEST A R.L. ONLUS; ;RIMBORSO FATTURA N. 1660/2022 - PROGETTI RITORNARE A CASA PLUS  MESE DI APRILE 2022 -;13/05/2022;1920;0;68;1;Spese correnti;Trasferimenti correnti;Trasferimenti correnti a Famiglie;Interventi assistenziali;Altri assegni e sussidi assistenziali
704;136,57;SOGGETTI DIVERSI; ;L. 162/98 PIANI PERSONALIZZATI  PERIODO APRILE 2022.;13/05/2022;1920;15;32;1;Spese correnti;Trasferimenti correnti;Trasferimenti correnti a Famiglie;Interventi assistenziali;Altri assegni e sussidi assistenziali
705;155;SOGGETTI DIVERSI; ;L. 162/98 PIANI PERSONALIZZATI  PERIODO APRILE 2022.;13/05/2022;1920;15;36;1;Spese correnti;Trasferimenti correnti;Trasferimenti correnti a Famiglie;Interventi assistenziali;Altri assegni e sussidi assistenziali
706;664,9;NEMEA SISTEMI SRL;ZB731630A7;SALDO Fatt.n. 104-2022  del 29/04/2022 CANONE SOFTWARE G.I.S. GEOMEDIA - ANNUALITA 2022 -;13/05/2022;1087;0;187;1;Spese correnti;Acquisto di beni e servizi;Acquisto di servizi;Servizi informatici e di telecomunicazioni;Gestione e manutenzione applicazioni
707;640,5;SAIU ELETTROSERVICE DI CADDIA GIOVANNA ANGELA;7054703D12;SALDO Fatt.n. FATTPA 1722  del 02/05/2022 SERVIZIO DI MANUTENZIONE ORDINARIA IMPIANTI DI ILLUMINAZIONE PUBBLICA - MESE DI APRILE 2022 -;13/05/2022;1938;0;85;1;Spese correnti;Acquisto di beni e servizi;Acquisto di servizi;Contratti di servizio pubblico;Contratti di servizio per l'illuminazione pubblica
708;125;VERDE VITA SRL;Z2734D619D;SALDO Fatt.n. 125/CCP  del 11/04/2022 INTEGRAZIONE TARIFFARIA CER 200108 GENN/FEBB/MAR - CER 200201 MAR.- 2022 -;13/05/2022;1739;0;1;1;Spese correnti;Acquisto di beni e servizi;Acquisto di servizi;Contratti di servizio pubblico;Contratti di servizio per il conferimento in discarica dei rifiuti
708;506,01;VERDE VITA SRL;Z2734D619D;SALDO Fatt.n. 180/CCP  del 30/04/2022 Ft Split Payment ex art.17-ter DPR 633/72 - CONFERIMENTO CER 20 03 07 C/O IMPIANTO COMPOSTAGGIO CARBONIA - MESE DI APRILE 2022 -;13/05/2022;1739;0;1;1;Spese correnti;Acquisto di beni e servizi;Acquisto di servizi;Contratti di servizio pubblico;Contratti di servizio per il conferimento in discarica dei rifiuti
708;1.816,74;VERDE VITA SRL;Z2734D619D;SALDO Fatt.n. 164/CCP  del 30/04/2022 Ft Split Payment ex art.17-ter DPR 633/72 - CONFERIMENTO CER 20 01 08 E CER 20 02 01 C/O IMPIANTO DI COMPOSTAGGIO APRILE 2022 -;13/05/2022;1739;0;1;1;Spese correnti;Acquisto di beni e servizi;Acquisto di servizi;Contratti di servizio pubblico;Contratti di servizio per il conferimento in discarica dei rifiuti
709;2.464,04;COMUNE DI PISCINAS;Z6434DAFD3;FONDO PREMIALITA (DEL.G.R. 14/23 DEL 20/03/2018) RACCOLTA DIFFERENZIATA TASSA RIFIUTI - ANNO 2021 -;13/05/2022;1739;0;5;1;Spese correnti;Acquisto di beni e servizi;Acquisto di servizi;Contratti di servizio pubblico;Contratti di servizio per il conferimento in discarica dei rifiuti
710;841,31;TECNOCASIC  S.P.A.;Z6434DAFD3;SALDO Fatt.n. PA0331/22  del 07/04/2022 SERVIZIO SMALTIMENTO RSU C/O DISCARICA - FRAZIONE SECCO INDIFFERENZIATO - MESE DI GENNAIO 2022 -;13/05/2022;1739;0;5;1;Spese correnti;Acquisto di beni e servizi;Acquisto di servizi;Contratti di servizio pubblico;Contratti di servizio per il conferimento in discarica dei rifiuti
710;887,14;TECNOCASIC  S.P.A.;Z6434DAFD3;SALDO Fatt.n. PA0469/22  del 06/05/2022 SERVIZIO SMALTIMENTO RSU FRAZIONE SECCO INDIFFERENZIATO - MESE DI APRILE 2022 -;13/05/2022;1739;0;5;1;Spese correnti;Acquisto di beni e servizi;Acquisto di servizi;Contratti di servizio pubblico;Contratti di servizio per il conferimento in discarica dei rifiuti
710;960,45;TECNOCASIC  S.P.A.;Z6434DAFD3;SALDO Fatt.n. PA0371/22  del 14/04/2022 SERVIZIO DI SMALTIMENTO RSU - FRAZIONE SECCO INDIFFERENZIATO C/O DISCARICA MESE DI MARZO 2022 -;13/05/2022;1739;0;5;1;Spese correnti;Acquisto di beni e servizi;Acquisto di servizi;Contratti di servizio pubblico;Contratti di servizio per il conferimento in discarica dei rifiuti
710;-2.710,44;TECNOCASIC  S.P.A.;Z6434DAFD3;SALDO Fatt.n. PA0187/22  del 01/03/2022 FONDO PREMIALITA RACCOLTA DIFFERENZIATA TASSA RIFIUTI -  ANNO 2021 -;13/05/2022;1739;0;5;1;Spese correnti;Acquisto di beni e servizi;Acquisto di servizi;Contratti di servizio pubblico;Contratti di servizio per il conferimento in discarica dei rifiuti
710;768;TECNOCASIC  S.P.A.;Z6434DAFD3;SALDO Fatt.n. PA0332/22  del 07/04/2022 SERVIZIO SMALTIMENTO RSU FRAZIONE SECCO INDIFFERENZIATO C/O DISCARICA - MESE DI FEBBRAIO 2022 -;13/05/2022;1739;0;5;1;Spese correnti;Acquisto di beni e servizi;Acquisto di servizi;Contratti di servizio pubblico;Contratti di servizio per il conferimento in discarica dei rifiuti
711;141,95;PROVINCIA SUD SARDEGNA; ;ADDIZIONALE PROVINCIALE TARI  ANNO 2015 (T.E.F.A.) - RIVERSAMENTI DA LUGLIO 2020 A MARZO 2022 ANNUALITA PRECEDENTI IL 2020 E TEFA DA SISTEMAZIONE CONTABILE -;16/05/2022;2160;0;159;1;Spese correnti;Trasferimenti correnti;Trasferimenti correnti a Amministrazioni Pubbliche;Trasferimenti correnti a Amministrazioni Locali;Trasferimenti correnti a Province
712;41,34;PROVINCIA SUD SARDEGNA; ;ADDIZIONALE PROVINCIALE TARI  ANNO 2016 (T.E.F.A.) - RIVERSAMENTI DA LUGLIO 2020 A MARZO 2022 ANNUALITA PRECEDENTI IL 2020 E TEFA DA SISTEMAZIONE CONTABILE -;16/05/2022;2160;0;222;1;Spese correnti;Trasferimenti correnti;Trasferimenti correnti a Amministrazioni Pubbliche;Trasferimenti correnti a Amministrazioni Locali;Trasferimenti correnti a Province
713;71,77;PROVINCIA SUD SARDEGNA; ;ADDIZIONALE PROVINCIALE TARI  ANNO 2017 (T.E.F.A.) - RIVERSAMENTI DA LUGLIO 2020 A MARZO 2022 ANNUALITA PRECEDENTI IL 2020 E TEFA DA SISTEMAZIONE CONTABILE -;16/05/2022;2160;0;297;1;Spese correnti;Trasferimenti correnti;Trasferimenti correnti a Amministrazioni Pubbliche;Trasferimenti correnti a Amministrazioni Locali;Trasferimenti correnti a Province
714;312,34;PROVINCIA SUD SARDEGNA; ;ADDIZIONALE PROVINCIALE TARI  ANNO 2018 (T.E.F.A.) - RIVERSAMENTI DA LUGLIO 2020 A MARZO 2022 ANNUALITA PRECEDENTI IL 2020 E TEFA DA SISTEMAZIONE CONTABILE -;16/05/2022;2160;0;280;1;Spese correnti;Trasferimenti correnti;Trasferimenti correnti a Amministrazioni Pubbliche;Trasferimenti correnti a Amministrazioni Locali;Trasferimenti correnti a Province
715;280,4;PROVINCIA SUD SARDEGNA; ;ADDIZIONALE PROVINCIALE TARI  ANNO 2019 (T.E.F.A.) - RIVERSAMENTI DA LUGLIO 2020 A MARZO 2022 ANNUALITA PRECEDENTI IL 2020 E TEFA DA SISTEMAZIONE CONTABILE -;16/05/2022;2160;0;240;1;Spese correnti;Trasferimenti correnti;Trasferimenti correnti a Amministrazioni Pubbliche;Trasferimenti correnti a Amministrazioni Locali;Trasferimenti correnti a Province
716;73,56;PROVINCIA SUD SARDEGNA; ;ADDIZIONALE PROVINCIALE TARI ANNO 2020(T.E.F.A.) - TEFA DA SISTEMAZIONE CONTABILE (TARI 2020) -;16/05/2022;2160;0;240;1;Spese correnti;Trasferimenti correnti;Trasferimenti correnti a Amministrazioni Pubbliche;Trasferimenti correnti a Amministrazioni Locali;Trasferimenti correnti a Province
717;118,89;PROVINCIA SUD SARDEGNA; ;ADDIZIONALE PROVINCIALE TARI ANNO 2021 (T.E.F.A.) - TEFA DA SISTEMAZIONE CONTABILE (TARI 2021) -;16/05/2022;2160;0;240;1;Spese correnti;Trasferimenti correnti;Trasferimenti correnti a Amministrazioni Pubbliche;Trasferimenti correnti a Amministrazioni Locali;Trasferimenti correnti a Province
718;146,7;BALIA GINETTA; ;LL.RR.NN. 27/83 E 09/04 - RIMBORSO SPESE DI VIAGGIO E DI SOGGIORNO - ESERCIZIO 2022 -;16/05/2022;1917;0;95;1;Spese correnti;Trasferimenti correnti;Trasferimenti correnti a Famiglie;Interventi assistenziali;Altri assegni e sussidi assistenziali
719;54.390,37;AGRINOA SOCIETA' AGRICOLA COOPERATIVA SOCIALE;889102411D;SALDO Fatt.n. 10/2.001  del 10/05/2022 LAVORI DI MANUTENZIONE STRAORDINARIA CAMPO POLIVALENTE - STATO FINALE DEI LAVORI E C.R.E. -;16/05/2022;3405;1;239;2;Spese in conto capitale;Investimenti fissi lordi e acquisto di terreni;Beni materiali;Beni immobili;Impianti sportivi
756;463,6;Cooperativa Artigiana Tipografica Editoriale;Z753557AC2;SALDO Fatt.n. 33/PA  del 10/05/2022 FORNITURA N. 2000 BUSTE INTESTATE CON FINESTRA 11X23  E N. 2000 BUSTE 18X24 -;23/05/2022;1043;0;96;1;Spese correnti;Acquisto di beni e servizi;Acquisto di beni;Altri beni di consumo;Carta, cancelleria e stampati
757;68,32;RAP PROFESSIONALE S.R.L.;ZEC35BACE0;SALDO Fatt.n. 309/2022  del 28/04/2022 FORNITURA MANETTE IN ACCIAIO E PORTAMANETTE CHIUSO IN PELLE BIANCA  -;23/05/2022;1265;0;102;1;Spese correnti;Acquisto di beni e servizi;Acquisto di beni;Altri beni di consumo;Vestiario
758;415,19;SOGGETTI DIVERSI; ;L. 162/98 PIANI PERSONALIZZATI  MESE DI APRILE 2022 -;23/05/2022;1920;15;40;1;Spese correnti;Trasferimenti correnti;Trasferimenti correnti a Famiglie;Interventi assistenziali;Altri assegni e sussidi assistenziali
759;242,7;SOGGETTI DIVERSI; ;L. 162/98 PIANI PERSONALIZZATI  MESE DI APRILE 2022 -;23/05/2022;1920;15;41;1;Spese correnti;Trasferimenti correnti;Trasferimenti correnti a Famiglie;Interventi assistenziali;Altri assegni e sussidi assistenziali
760;166,68;ABILTECNO Societa' Cooperativa Onlus; ;RIMBORSO FATTURA N. 88/2022 - L. 162/98 PIANI PERSONALIZZATI  MESE DI APRILE 2022 -;23/05/2022;1920;15;11;1;Spese correnti;Trasferimenti correnti;Trasferimenti correnti a Famiglie;Interventi assistenziali;Altri assegni e sussidi assistenziali
761;375;ABILTECNO Societa' Cooperativa Onlus; ;RIMBORSO FATTURA N. 75/2022 - L. 162/98 PIANI PERSONALIZZATI  MESE DI APRILE 2022 -;23/05/2022;1920;15;30;1;Spese correnti;Trasferimenti correnti;Trasferimenti correnti a Famiglie;Interventi assistenziali;Altri assegni e sussidi assistenziali
762;159,39;SOGGETTI DIVERSI; ;L. 162/98 PIANI PERSONALIZZATI  PROROGA PERIODO APRILE 2022.;23/05/2022;1920;15;27;1;Spese correnti;Trasferimenti correnti;Trasferimenti correnti a Famiglie;Interventi assistenziali;Altri assegni e sussidi assistenziali
763;983,32;ISAR COOPERATIVA SOCIALE ONLUS;Z6E33B9DBA;SALDO Fatt.n. 58  del 13/05/2022 SERVIZIO DI PULIZIE PALAZZO COMUNALE E BIBLIOTECA - MESE DI APRILE 2022 -;23/05/2022;1036;0;304;1;Spese correnti;Acquisto di beni e servizi;Acquisto di servizi;Servizi ausiliari per il funzionamento dell'ente;Servizi di pulizia e lavanderia
764;784,36;DIVERSI; ;INDENNITA DI FUNZIONE SINDACO E ASSESSORI - MESE DI MAGGIO 2022 -;25/05/2022;1001;0;59;1;Spese correnti;Acquisto di beni e servizi;Acquisto di servizi;Organi e incarichi istituzionali dell'amministrazione;Organi istituzionali dell'amministrazione - Indennità
773;2.000,00;UNIONE DEI COMUNI DEL SULCIS; ;CONTRIBUTO ADESIONE ALL UNIONE DEI COMUNI DEL SULCIS. VERSAMENTO QUOTA ANNO 2022 -;27/05/2022;1014;0;193;1;Spese correnti;Acquisto di beni e servizi;Acquisto di servizi;Altri servizi;Quote di associazioni
774;6.329,72;MURRONI MAURIZIO;Z6431CB1AB;SALDO Fatt.n. 2/FE  del 10/05/2022 SALDO D.L. , CONTABILITA, COORD. SICUREZZA E C.R.E. LAVORI DI MANUTENZIONE STAORDINARIA DEL CAMPO POLIVALENTE -;27/05/2022;3405;1;196;2;Spese in conto capitale;Investimenti fissi lordi e acquisto di terreni;Beni materiali;Beni immobili;Impianti sportivi
775;7.161,38;ZUCCA PIERANGELO;ZB4342B0E4;SALDO Fatt.n. 10/FE  del 06/05/2022 COMPLETAMENTO LAVORI DI RIQUALIFICAZIONE E VALORIZZAZIONE VIA REGINA MARGHERITA - 1 ACCONTO -;27/05/2022;3467;2;179;2;Spese in conto capitale;Investimenti fissi lordi e acquisto di terreni;Beni materiali;Beni immobili;Altre vie di comunicazione
776;285,9;FATICONI S.P.A.;Z10310615F;ACCONTO Fatt.n. 000613PA  del 11/05/2022 SERVIZIO DI NOLEGGIO FOTOCOPIATRICI STAMPANTI MULTIFUNZIONE CANON PERIODO PRIMO TRIMESTRE 2022 -;27/05/2022;1043;5;272;1;Spese correnti;Acquisto di beni e servizi;Acquisto di servizi;Utilizzo di beni di terzi;Noleggi di impianti e macchinari
777;285,91;FATICONI S.P.A.;Z10310615F;SALDO Fatt.n. 000613PA  del 11/05/2022 SERVIZIO DI NOLEGGIO FOTOCOPIATRICI STAMPANTI MULTIFUNZIONE CANON PERIODO PRIMO TRIMESTRE 2022 -;27/05/2022;1087;1;197;1;Spese correnti;Acquisto di beni e servizi;Acquisto di servizi;Utilizzo di beni di terzi;Noleggi di impianti e macchinari
778;757,13;CAMBULA VANNINA;Z493621D3B;ACCONTO Fatt.n. 2  del 17/05/2022 FORNITURA PRODOTTI FLOROVIVAISTICI -;27/05/2022;1742;3;317;1;Spese correnti;Acquisto di beni e servizi;Acquisto di servizi;Altri servizi;Altri servizi diversi n.a.c.
779;301,07;CAMBULA VANNINA;Z493621D3B;SALDO Fatt.n. 2  del 17/05/2022 FORNITURA PRODOTTI FLOROVIVAISTICI -;27/05/2022;1742;3;344;1;Spese correnti;Acquisto di beni e servizi;Acquisto di servizi;Altri servizi;Altri servizi diversi n.a.c.
780;667,37;MASCIA BRUNO;Z0236219C8;ACCONTO Fatt.n. 6/2  del 25/05/2022 - FORNITURA DI N. 2 POTE DA CALCETTO COPLETE DI RETI PER CAMPO POLIVALENTE PISCINAS -;27/05/2022;1089;0;135;1;Spese correnti;Acquisto di beni e servizi;Acquisto di beni;Altri beni di consumo;Altri beni e materiali di consumo n.a.c.
781;109,77;MASCIA BRUNO;Z0236219C8;SALDO Fatt.n. 6/2  del 25/05/2022 - FORNITURA DI N. 2 PORTE DA CALCETTO DA SISTEMARE PRESSO IL CAMPO POLIVALENTE DI PISCINAS -;27/05/2022;3405;1;242;2;Spese in conto capitale;Investimenti fissi lordi e acquisto di terreni;Beni materiali;Beni immobili;Impianti sportivi
782;395,28;NICOLA ZUDDAS S.R.L.;ZEC35EBD40;SALDO Fatt.n. 2022   411/E  del 19/05/2022 FORNTURA BANDIERE PER ESTERNO;27/05/2022;1089;0;130;1;Spese correnti;Acquisto di beni e servizi;Acquisto di beni;Altri beni di consumo;Altri materiali tecnico-specialistici non sanitari
784;1.237,13;SOGGETTI DIVERSI; ;FONDO DI SOSTEGNO ALLE ATTIVITA ECONOMICHE ARTIGIANALI E COMMERCIALI NELLE AREE INTERNE EX ART. 1, COMMI 65-TER, 65-QUATER E 65-QUINQUIES, L. 205/17 E DPCM 24.09.2020 ANNUALITA 2020 - INTERVENTO SOSTITUTIVO PER DURC IRREGOLARE - LIQUIDAZIONE ALLINPS;06/06/2022;1748;0;238;1;Spese correnti;Trasferimenti correnti;Trasferimenti correnti a Imprese;Trasferimenti correnti a altre imprese;Trasferimenti correnti a altre imprese
786;95,98;SOGGETTI DIVERSI; ;L. 162/98 PIANI PERSONALIZZATI  - MESE DI APRILE 2022 -;06/06/2022;1920;15;49;1;Spese correnti;Trasferimenti correnti;Trasferimenti correnti a Famiglie;Interventi assistenziali;Altri assegni e sussidi assistenziali
787;405;SOGGETTI DIVERSI; ;MISURE PER INTERVENTI DI CONTRASTO AL DISAGIO ECONOMICO DA PANDEMIA COVID-19 DI CUI ALLART. 3, COMMI 4 E 5 DELLA LEGGE REGIONALE N. 4/2021 (PARTE II). ANNUALITA 2021 - PRIMA MENSILITA -;06/06/2022;1919;10;196;1;Spese correnti;Trasferimenti correnti;Trasferimenti correnti a Famiglie;Interventi assistenziali;Altri assegni e sussidi assistenziali
788;350;SOGGETTI DIVERSI; ;MISURE PER INTERVENTI DI CONTRASTO AL DISAGIO ECONOMICO DA PANDEMIA COVID-19 DI CUI ALLART. 3, COMMI 4 E 5 DELLA LEGGE REGIONALE N. 4/2021 (PARTE II). ANNUALITA 2021 - PRIMA MENSILITA -;06/06/2022;1919;10;196;1;Spese correnti;Trasferimenti correnti;Trasferimenti correnti a Famiglie;Interventi assistenziali;Altri assegni e sussidi assistenziali
789;90;SOGGETTI DIVERSI; ;MISURE PER INTERVENTI DI CONTRASTO AL DISAGIO ECONOMICO DA PANDEMIA COVID-19 DI CUI ALLART. 3, COMMI 4 E 5 DELLA LEGGE REGIONALE N. 4/2021 (PARTE II). ANNUALITA 2021 - PRIMA MENSILITA -;06/06/2022;1919;10;196;1;Spese correnti;Trasferimenti correnti;Trasferimenti correnti a Famiglie;Interventi assistenziali;Altri assegni e sussidi assistenziali
790;270;SOGGETTI DIVERSI; ;MISURE PER INTERVENTI DI CONTRASTO AL DISAGIO ECONOMICO DA PANDEMIA COVID-19 DI CUI ALLART. 3, COMMI 4 E 5 DELLA LEGGE REGIONALE N. 4/2021 (PARTE II). ANNUALITA 2021 - PRIMA MENSILITA -;06/06/2022;1919;10;196;1;Spese correnti;Trasferimenti correnti;Trasferimenti correnti a Famiglie;Interventi assistenziali;Altri assegni e sussidi assistenziali
791;350;SOGGETTI DIVERSI; ;MISURE PER INTERVENTI DI CONTRASTO AL DISAGIO ECONOMICO DA PANDEMIA COVID-19 DI CUI ALLART. 3, COMMI 4 E 5 DELLA LEGGE REGIONALE N. 4/2021 (PARTE II). ANNUALITA 2021 - PRIMA MENSILITA -;06/06/2022;1919;10;196;1;Spese correnti;Trasferimenti correnti;Trasferimenti correnti a Famiglie;Interventi assistenziali;Altri assegni e sussidi assistenziali
792;487;SOGGETTI DIVERSI; ;L. 162/98 PIANI PERSONALIZZATI  PERIODO APRILE/MAGGIO 2022 -;06/06/2022;1920;15;25;1;Spese correnti;Trasferimenti correnti;Trasferimenti correnti a Famiglie;Interventi assistenziali;Altri assegni e sussidi assistenziali
793;150;BONACCORSI TORENO; ;DELIB. G.R. N. 52/16 DEL 23.10.2020 E DELIB. G.R. N. 63/13 DEL 11.12.2020  - RIMBORSO BUONI SPESA FORNITURA GRATUITA PRODOTTI DELLA PANIFICAZIONE -;06/06/2022;1919;9;210;1;Spese correnti;Trasferimenti correnti;Trasferimenti correnti a Famiglie;Interventi assistenziali;Altri assegni e sussidi assistenziali
794;640,5;SAIU ELETTROSERVICE DI CADDIA GIOVANNA ANGELA;7054703D12;SALDO Fatt.n. FATTPA 2222  del 31/05/2022 SERVIZIO DI MANUTENZIONE ORDINARIA IMPIANTI DI ILLUMAZIONE PUBBLICA - MESE DI MAGGIO 2022 -;09/06/2022;1938;0;85;1;Spese correnti;Acquisto di beni e servizi;Acquisto di servizi;Contratti di servizio pubblico;Contratti di servizio per l'illuminazione pubblica
795;4.859,19;AGRINOA SOCIETA' AGRICOLA COOPERATIVA SOCIALE;Z3235A2F58;SALDO Fatt.n. 45/1.001  del 23/05/2022 GESTIONE PERSONALE CANTIERE FORESTAZIONE - ANNUALITA 2021 - DELIBERA DELLA G.R. 16/35 DEL 05/05/2021 - MESE DI APRILE 2022 -;09/06/2022;1742;3;317;1;Spese correnti;Acquisto di beni e servizi;Acquisto di servizi;Altri servizi;Altri servizi diversi n.a.c.
796;1.049,51;VERDE VITA SRL;Z2734D619D;SALDO Fatt.n. 202/CCP  del 31/05/2022 Ft Split Payment ex art.17-ter DPR 633/72 - CONFERIMENTO RIFIUTI CER 200108 C/O IMPIANTO DI COMPOSTAGGIO CARBONIA- MESE DI MAGGIO 2022 -;09/06/2022;1739;0;1;1;Spese correnti;Acquisto di beni e servizi;Acquisto di servizi;Contratti di servizio pubblico;Contratti di servizio per il conferimento in discarica dei rifiuti
797;114,21;SOGGETTI DIVERSI; ;L. 162/98 PIANI PERSONALIZZATI  MESE DI MAGGIO 2022 -;09/06/2022;1920;15;49;1;Spese correnti;Trasferimenti correnti;Trasferimenti correnti a Famiglie;Interventi assistenziali;Altri assegni e sussidi assistenziali
798;1.845,77;SOGGETTI DIVERSI; ;PROGETTI RITORNARE A CASA PLUS  MESE DI MAGGIO E CONTRIBUTI INPS -;09/06/2022;1920;0;65;1;Spese correnti;Trasferimenti correnti;Trasferimenti correnti a Famiglie;Interventi assistenziali;Altri assegni e sussidi assistenziali
799;953,44;SOGGETTI DIVERSI; ;PROGETTI RITORNARE A CASA PLUS   - MESE DI MAGGIO 2022 -;09/06/2022;1920;0;69;1;Spese correnti;Trasferimenti correnti;Trasferimenti correnti a Famiglie;Interventi assistenziali;Altri assegni e sussidi assistenziali
800;156,25;SOGGETTI DIVERSI; ;L. 162/98 PIANI PERSONALIZZATI  MESE DI MAGGIO 2022 -;09/06/2022;1920;15;175;1;Spese correnti;Trasferimenti correnti;Trasferimenti correnti a Famiglie;Interventi assistenziali;Altri assegni e sussidi assistenziali
801;47,73;SOGGETTI DIVERSI; ;L. 162/98 PIANI PERSONALIZZATI  MESE DI MAGGIO 2022 -;09/06/2022;1920;15;42;1;Spese correnti;Trasferimenti correnti;Trasferimenti correnti a Famiglie;Interventi assistenziali;Altri assegni e sussidi assistenziali
802;276,45;SOGGETTI DIVERSI; ;L. 162/98 PIANI PERSONALIZZATI  MESE DI MAGGIO 2022 -;09/06/2022;1920;15;169;1;Spese correnti;Trasferimenti correnti;Trasferimenti correnti a Famiglie;Interventi assistenziali;Altri assegni e sussidi assistenziali
803;146,52;SOGGETTI DIVERSI; ;L. 162/98 PIANI PERSONALIZZATI  MESE DI MAGGIO 2022 -;09/06/2022;1920;15;166;1;Spese correnti;Trasferimenti correnti;Trasferimenti correnti a Famiglie;Interventi assistenziali;Altri assegni e sussidi assistenziali
804;50,63;SOGGETTI DIVERSI; ;L. 162/98 PIANI PERSONALIZZATI  MESE DI MAGGIO 2022 -;09/06/2022;1920;15;37;1;Spese correnti;Trasferimenti correnti;Trasferimenti correnti a Famiglie;Interventi assistenziali;Altri assegni e sussidi assistenziali
805;178,55;SOGGETTI DIVERSI; ;L. 162/98 PIANI PERSONALIZZATI  MESE DI MAGGIO 2022 -;09/06/2022;1920;15;164;1;Spese correnti;Trasferimenti correnti;Trasferimenti correnti a Famiglie;Interventi assistenziali;Altri assegni e sussidi assistenziali
806;397,33;SOGGETTI DIVERSI; ;L. 162/98 PIANI PERSONALIZZATI  MESE DI MAGGIO 2022 -;09/06/2022;1920;15;35;1;Spese correnti;Trasferimenti correnti;Trasferimenti correnti a Famiglie;Interventi assistenziali;Altri assegni e sussidi assistenziali
807;245,23;SOGGETTI DIVERSI; ;L. 162/98 PIANI PERSONALIZZATI  MESE DI MAGGIO 2022 -;09/06/2022;1920;15;162;1;Spese correnti;Trasferimenti correnti;Trasferimenti correnti a Famiglie;Interventi assistenziali;Altri assegni e sussidi assistenziali
808;77,01;SOGGETTI DIVERSI; ;L. 162/98 PIANI PERSONALIZZATI  MESE DI MAGGIO 2022 -;09/06/2022;1920;15;34;1;Spese correnti;Trasferimenti correnti;Trasferimenti correnti a Famiglie;Interventi assistenziali;Altri assegni e sussidi assistenziali
809;191,98;SOGGETTI DIVERSI; ;L. 162/98 PIANI PERSONALIZZATI  MESE DI MAGGIO 2022 -;09/06/2022;1920;15;161;1;Spese correnti;Trasferimenti correnti;Trasferimenti correnti a Famiglie;Interventi assistenziali;Altri assegni e sussidi assistenziali
810;73,91;SOGGETTI DIVERSI; ;L. 162/98 PIANI PERSONALIZZATI  MESE DI MAGGIO 2022 -;09/06/2022;1920;15;33;1;Spese correnti;Trasferimenti correnti;Trasferimenti correnti a Famiglie;Interventi assistenziali;Altri assegni e sussidi assistenziali
811;268,89;SOGGETTI DIVERSI; ;L. 162/98 PIANI PERSONALIZZATI  MESE DI MAGGIO 2022 -;09/06/2022;1920;15;160;1;Spese correnti;Trasferimenti correnti;Trasferimenti correnti a Famiglie;Interventi assistenziali;Altri assegni e sussidi assistenziali
812;122,76;SOGGETTI DIVERSI; ;L. 162/98 PIANI PERSONALIZZATI  MESE DI MAGGIO 2022 -;09/06/2022;1920;15;142;1;Spese correnti;Trasferimenti correnti;Trasferimenti correnti a Famiglie;Interventi assistenziali;Altri assegni e sussidi assistenziali
813;91,15;SOGGETTI DIVERSI; ;L. 162/98 PIANI PERSONALIZZATI  MESE DI MAGGIO 2022 -;09/06/2022;1920;15;15;1;Spese correnti;Trasferimenti correnti;Trasferimenti correnti a Famiglie;Interventi assistenziali;Altri assegni e sussidi assistenziali
814;206;SOGGETTI DIVERSI; ;L. 162/98 PIANI PERSONALIZZATI  MESE DI MAGGIO 2022 -;09/06/2022;1920;15;141;1;Spese correnti;Trasferimenti correnti;Trasferimenti correnti a Famiglie;Interventi assistenziali;Altri assegni e sussidi assistenziali
815;506,85;SOGGETTI DIVERSI; ;CONCESSIONE E EROGAZIONE DI SUSSIDI NEFROPATICI  IN FAVORE DI PARTICOLARI CATEGORIE DI CITTADINI. L.R. 8/99  - MESE DI MAGGIO 2022.;09/06/2022;1916;0;94;1;Spese correnti;Trasferimenti correnti;Trasferimenti correnti a Famiglie;Interventi assistenziali;Altri assegni e sussidi assistenziali
816;49,7;SOGGETTI DIVERSI; ;L. 162/98 PIANI PERSONALIZZATI  MESE DI MAGGIO 2022 E CONTR. INPS -;09/06/2022;1920;15;46;1;Spese correnti;Trasferimenti correnti;Trasferimenti correnti a Famiglie;Interventi assistenziali;Altri assegni e sussidi assistenziali
817;240,83;SOGGETTI DIVERSI; ;L. 162/98 PIANI PERSONALIZZATI  MESE DI MAGGIO 2022 E CONTR. INPS 2022 -;09/06/2022;1920;15;173;1;Spese correnti;Trasferimenti correnti;Trasferimenti correnti a Famiglie;Interventi assistenziali;Altri assegni e sussidi assistenziali
818;127;SOGGETTI DIVERSI; ;L. 162/98 PIANI PERSONALIZZATI  MESE DI MAGGIO 2022 -;09/06/2022;1920;15;36;1;Spese correnti;Trasferimenti correnti;Trasferimenti correnti a Famiglie;Interventi assistenziali;Altri assegni e sussidi assistenziali
819;79;SOGGETTI DIVERSI; ;L.162/98 PIANI PERSONALIZZATI  MESE DI MAGGIO 2022 -;09/06/2022;1920;15;163;1;Spese correnti;Trasferimenti correnti;Trasferimenti correnti a Famiglie;Interventi assistenziali;Altri assegni e sussidi assistenziali
820;55,46;SOGGETTI DIVERSI; ;L. 162/98 PIANI PERSONALIZZATI  MESE DI MAGGIO 2022 -;09/06/2022;1920;15;24;1;Spese correnti;Trasferimenti correnti;Trasferimenti correnti a Famiglie;Interventi assistenziali;Altri assegni e sussidi assistenziali
821;263,68;SOGGETTI DIVERSI; ;L. 162/98 PIANI PERSONALIZZATI  MESE DI MAGGIO 2022 -;09/06/2022;1920;15;149;1;Spese correnti;Trasferimenti correnti;Trasferimenti correnti a Famiglie;Interventi assistenziali;Altri assegni e sussidi assistenziali
822;31,33;SOGGETTI DIVERSI; ;L. 162/98 PIANI PERSONALIZZATI  MESE DI MAGGIO 2022 -;09/06/2022;1920;15;19;1;Spese correnti;Trasferimenti correnti;Trasferimenti correnti a Famiglie;Interventi assistenziali;Altri assegni e sussidi assistenziali
823;190,28;SOGGETTI DIVERSI; ;L. 162/98 PIANI PERSONALIZZATI  MESE DI MAGGIO 2022 -;09/06/2022;1920;15;144;1;Spese correnti;Trasferimenti correnti;Trasferimenti correnti a Famiglie;Interventi assistenziali;Altri assegni e sussidi assistenziali
824;39,46;SOGGETTI DIVERSI; ;L. 162/98 PIANI PERSONALIZZATI  MESE DI MAGGIO 2022 -;09/06/2022;1920;15;12;1;Spese correnti;Trasferimenti correnti;Trasferimenti correnti a Famiglie;Interventi assistenziali;Altri assegni e sussidi assistenziali
825;99,87;SOGGETTI DIVERSI; ;L. 162/98 PIANI PERSONALIZZATI  MESE DI MAGGIO 2022 -;09/06/2022;1920;15;138;1;Spese correnti;Trasferimenti correnti;Trasferimenti correnti a Famiglie;Interventi assistenziali;Altri assegni e sussidi assistenziali
826;166,66;ABILTECNO Societa' Cooperativa Onlus; ;L. 162/98 PIANI PERSONALIZZATI  MESE DI MAGGIO 2022 -;09/06/2022;1920;15;137;1;Spese correnti;Trasferimenti correnti;Trasferimenti correnti a Famiglie;Interventi assistenziali;Altri assegni e sussidi assistenziali
827;375;ABILTECNO Societa' Cooperativa Onlus; ;L. 162/98 PIANI PERSONALIZZATI  MESE DI MAGGIO 2022 -;09/06/2022;1920;15;156;1;Spese correnti;Trasferimenti correnti;Trasferimenti correnti a Famiglie;Interventi assistenziali;Altri assegni e sussidi assistenziali
828;122,07;SOGGETTI DIVERSI; ;L. 162/98 PIANI PERSONALIZZATI  MESE DI MAGGIO 2022 -;09/06/2022;1920;15;172;1;Spese correnti;Trasferimenti correnti;Trasferimenti correnti a Famiglie;Interventi assistenziali;Altri assegni e sussidi assistenziali
829;375;SOGGETTI DIVERSI; ;L. 162/98 PIANI PERSONALIZZATI  MESE DI MAGGIO 2022 -;09/06/2022;1920;15;140;1;Spese correnti;Trasferimenti correnti;Trasferimenti correnti a Famiglie;Interventi assistenziali;Altri assegni e sussidi assistenziali
830;67,16;MINISTERO  - DIPARTIMENTO AFFARI INTERNI; ;COMUNE DI PISCINAS - M291 - CORRISPETTIVO PER RILASCIO DI N. 4 CIE - PERIODO DAL 01.03.2022 AL 31.03.2022 -;09/06/2022;1037;1;90;1;Spese correnti;Trasferimenti correnti;Trasferimenti correnti a Amministrazioni Pubbliche;Trasferimenti correnti a Amministrazioni Centrali;Trasferimenti correnti a Ministeri
831;134,32;MINISTERO  - DIPARTIMENTO AFFARI INTERNI; ;COMUNE DI PISCINAS - M291 - CORRISPETTIVO RILASCIO N. 8 CIE - PERIODO DAL 01.04.2022 AL 30.04.2022 -;09/06/2022;1037;1;90;1;Spese correnti;Trasferimenti correnti;Trasferimenti correnti a Amministrazioni Pubbliche;Trasferimenti correnti a Amministrazioni Centrali;Trasferimenti correnti a Ministeri
832;83,95;MINISTERO  - DIPARTIMENTO AFFARI INTERNI; ;COMUNE DI PISCINAS - M291 - CORRISPETTIVO PER RILASCIO N. 5 CIE - PERIODO DAL 01.05.2022 AL 30.05.2022 -;09/06/2022;1037;1;90;1;Spese correnti;Trasferimenti correnti;Trasferimenti correnti a Amministrazioni Pubbliche;Trasferimenti correnti a Amministrazioni Centrali;Trasferimenti correnti a Ministeri
833;8.815,63;AGRINOA SOCIETA' AGRICOLA COOPERATIVA SOCIALE;ZF5360062C;ACCONTO Fatt.n. 11/2.001  del 10/05/2022 Lavori Aggiuntivi e di Completamento relativi alla Manutenzione straordinaria del campo polivalente     STATO FINALE DEI LAVORI  E C.R.EE. -  CUP  G67H21001580004  CIG ZF5360062C;09/06/2022;3405;1;239;2;Spese in conto capitale;Investimenti fissi lordi e acquisto di terreni;Beni materiali;Beni immobili;Impianti sportivi
834;326,15;AGRINOA SOCIETA' AGRICOLA COOPERATIVA SOCIALE;ZF5360062C;SALDO Fatt.n. 11/2.001  del 10/05/2022 Lavori Aggiuntivi e di Completamento relativi alla Manutenzione straordinaria del campo polivalente     STATO FINALE DEI LAVORI   E C.R.E. - CUP  G67H21001580004  CIG ZF5360062C;09/06/2022;3405;1;242;2;Spese in conto capitale;Investimenti fissi lordi e acquisto di terreni;Beni materiali;Beni immobili;Impianti sportivi
836;7.345,47;CASSA DEPOSITI E PRESTITI; ;QUOTA INTERESSI MUTUO VIA PIEMONTE  I SEM/2022;09/06/2022;1942;0;0;1;Spese correnti;Interessi passivi;Interessi su Mutui e altri finanziamenti a medio lungo termine;Interessi passivi su finanziamenti a medio lungo termine a Imprese;Interessi passivi a Cassa Depositi e Prestiti SPA su mutui e altri finanziamenti a medio lungo termine
837;16,34;ENEL ENERGIA S.P.A.;84181751C6;SALDO Fatt.n. 004222633508  del 07/05/2022 Descrizione Contratto CONSIPEE177FIX18M  - CONSUMI ELETTRICI IMPIANTO SEMAFORICO - MESE DI APRILE 2022 -;09/06/2022;1937;0;50;1;Spese correnti;Acquisto di beni e servizi;Acquisto di servizi;Utenze e canoni;Energia elettrica
837;25,89;ENEL ENERGIA S.P.A.;84181751C6;SALDO Fatt.n. 004222633507  del 07/05/2022 Descrizione Contratto CONSIPEE177FIX18M - CONSUMI ELETTRICI PIAZZA SOLIVARIU - MESE DI APRILE 2022 -;09/06/2022;1937;0;50;1;Spese correnti;Acquisto di beni e servizi;Acquisto di servizi;Utenze e canoni;Energia elettrica
837;67;ENEL ENERGIA S.P.A.;84181751C6;SALDO Fatt.n. 004224905767  del 10/05/2022 Descrizione Contratto CONSIPEE177FIX18M - CONSUMI ILLUMINAZIONE PUBBLICA P.E.E.P. - MESE DI APRILE 2022 -;09/06/2022;1937;0;50;1;Spese correnti;Acquisto di beni e servizi;Acquisto di servizi;Utenze e canoni;Energia elettrica
837;111,95;ENEL ENERGIA S.P.A.;84181751C6;SALDO Fatt.n. 004221476292  del 06/05/2022 Descrizione Contratto CONSIPEE177FIX18M  - CONSUMI ILLUMINAZIONE PUBBLICA SOLIVARIU - MESE DI APRILE 2022 -;09/06/2022;1937;0;50;1;Spese correnti;Acquisto di beni e servizi;Acquisto di servizi;Utenze e canoni;Energia elettrica
837;208,21;ENEL ENERGIA S.P.A.;84181751C6;SALDO Fatt.n. 004221476289  del 06/05/2022 Descrizione Contratto CONSIPEE177FIX18M  - CONSUMI ILLUMINAZIONE PUBBLICA VIA MURRECCI  - MESE DI APRILE 2022 -;09/06/2022;1937;0;50;1;Spese correnti;Acquisto di beni e servizi;Acquisto di servizi;Utenze e canoni;Energia elettrica
837;751,67;ENEL ENERGIA S.P.A.;84181751C6;SALDO Fatt.n. 004229279180  del 13/05/2022 Descrizione Contratto CONSIPEE177FIX18M - CONSUMI ILLUMINAZIONE PUBBLICA VIA CAMPAGNA - MESE DI APRILE 2022 -;09/06/2022;1937;0;50;1;Spese correnti;Acquisto di beni e servizi;Acquisto di servizi;Utenze e canoni;Energia elettrica
838;25,39;ENEL ENERGIA S.P.A.;84181751C6;SALDO Fatt.n. 004221476290  del 06/05/2022 Descrizione Contratto CONSIPEE177FIX18M  - CONSUMI ELETTRICI EX SCUOLE MEDIE - MESE DI APRILE 2022 -;09/06/2022;1386;2;51;1;Spese correnti;Acquisto di beni e servizi;Acquisto di servizi;Utenze e canoni;Energia elettrica
839;116,59;ENEL ENERGIA S.P.A.;84181751C6;SALDO Fatt.n. 004227094648  del 11/05/2022 Descrizione Contratto CONSIPEE177FIX18M - CONSUMI ELETTRICI SCUOLE ELEMENTARI - MESE DI APRILE 2022 -;09/06/2022;1366;3;52;1;Spese correnti;Acquisto di beni e servizi;Acquisto di servizi;Utenze e canoni;Energia elettrica
840;14,87;ENEL ENERGIA S.P.A.;84181751C6;SALDO Fatt.n. 004224016439  del 09/05/2022 Descrizione Contratto CONSIPEE177FIX18M  - CONSUMI ELETTRICI EX COMUNE  - MESE DI APRILE 2022 -;09/06/2022;1087;2;53;1;Spese correnti;Acquisto di beni e servizi;Acquisto di servizi;Utenze e canoni;Energia elettrica
840;43,32;ENEL ENERGIA S.P.A.;84181751C6;SALDO Fatt.n. 004221476291  del 06/05/2022 Descrizione Contratto CONSIPEE177FIX18M  - CONSUMI ELETTRICI BIBLIOTECA  - MESE DI APRILE 2022 -;09/06/2022;1087;2;53;1;Spese correnti;Acquisto di beni e servizi;Acquisto di servizi;Utenze e canoni;Energia elettrica
840;281,91;ENEL ENERGIA S.P.A.;84181751C6;SALDO Fatt.n. 004229279182  del 13/05/2022 Descrizione Contratto CONSIPEE177FIX18M - CONSUMI ELETTRICI PALAZZO COMUNALE -  MESE DI APRILE 2022 -;09/06/2022;1087;2;53;1;Spese correnti;Acquisto di beni e servizi;Acquisto di servizi;Utenze e canoni;Energia elettrica
841;5,25;ENEL ENERGIA S.P.A.;84181751C6;SALDO Fatt.n. 004224905766  del 10/05/2022 Descrizione Contratto CONSIPEE177FIX18M - CONSUMI ELETTRICI CAMPO POLIVALENTE - MESE DI APRILE 2022 -;09/06/2022;1826;1;54;1;Spese correnti;Acquisto di beni e servizi;Acquisto di servizi;Utenze e canoni;Energia elettrica
841;83,39;ENEL ENERGIA S.P.A.;84181751C6;SALDO Fatt.n. 004224016440  del 09/05/2022 Descrizione Contratto CONSIPEE177FIX18M  - CONSUMI ELETTRICI CAMPO SPORTIVO  - MESE DI APRILE 2022 -;09/06/2022;1826;1;54;1;Spese correnti;Acquisto di beni e servizi;Acquisto di servizi;Utenze e canoni;Energia elettrica
842;10,58;ENEL ENERGIA S.P.A.;84181751C6;SALDO Fatt.n. 004223253597  del 08/05/2022 Descrizione Contratto CONSIPEE177FIX18M - CONSUMI ELETTRICI VILLINO SALAZAR - MESE DI APRILE 2022 -;09/06/2022;1526;0;55;1;Spese correnti;Acquisto di beni e servizi;Acquisto di servizi;Utenze e canoni;Energia elettrica
842;48,46;ENEL ENERGIA S.P.A.;84181751C6;SALDO Fatt.n. 004222633506  del 07/05/2022 Descrizione Contratto CONSIPEE177FIX18M  - CONSUMI ELETTRICI CENTRO SOCIALE  - MESE DI APRILE 2022 -;09/06/2022;1526;0;55;1;Spese correnti;Acquisto di beni e servizi;Acquisto di servizi;Utenze e canoni;Energia elettrica
842;151,28;ENEL ENERGIA S.P.A.;84181751C6;SALDO Fatt.n. 004223253598  del 08/05/2022 Descrizione Contratto CONSIPEE177FIX18M  - CONSUMI ELETTRICI CENTRO SERVIZI - MESE DI APRILE 2022 -;09/06/2022;1526;0;55;1;Spese correnti;Acquisto di beni e servizi;Acquisto di servizi;Utenze e canoni;Energia elettrica
